Workbook

Sheet Inscriptions
A1: =IF(F9="Finale CD62",1,IF(F9="Finale Ligue",1,IF(F9="Barreg Artois",1,IF(F9="Barrage Maritime",1,0)))) -> 1
A2: =IF(AND(C5="",C9=""),"",IF(AND(C5>0,C9=""),1,IF(AND(C5>0,C9>0),""))) ->  | B2: Fichier Optimisé pour l'organisation des Finales CD62 | D2: Infos de la Compétition
N3: leopoldmarlard@wanadoo.fr ; stephaneleducq@yahoo.fr ; auto_franck@hotmail.fr ; 0 ; dominique.sauvage@neuf.fr
B4: Cellules à Remplir | C4: Choix de la compétition | E4: Date | F4: Club | G4: Limite de reprises | H4: Département ou club de la Finale Suivante
C5: Finale CD62 Cadre Régionale 1 WIZERNES | E5: =IF($C$5<>"",VLOOKUP($C$5,Calendrier!$A$4:$M$63,2,FALSE),"") -> 2026-01-25 | F5: =IF($C$5<>"",VLOOKUP($C$5,Calendrier!$A$4:$M$63,3,FALSE),"") -> WIZERNES | G5: =IF($C$5<>"",VLOOKUP($C$5,Calendrier!$A4:$M$63,11,FALSE),"") -> Aucune Limitation | H5: =IF($C$5<>"",VLOOKUP($C$5,Calendrier!$A$4:$I$63,9,FALSE),"") -> OISE
C6: Adversaire du Joueur 1 au 1er Tour | E6: Mode de jeu | F6: Catégorie | G6: Moyenne | H6: Date de la Finale Suivante
C7: J1 contre J2 | E7: =IF($C$5<>"",VLOOKUP($C$5,Calendrier!$A$4:$M$63,4,FALSE),"") -> Cadre | F7: =IF($C$5<>"",VLOOKUP($C$5,Calendrier!$A$4:$M$63,5,FALSE),"") -> Régionale 1 | G7: =IF($C$5<>"",VLOOKUP($C$5,Calendrier!$A$4:$M$63,12,FALSE),"") -> 0,00 à 4,50 | H7: =IF($C$5<>"",VLOOKUP($C$5,Calendrier!$A$4:$I$63,8,FALSE),"") -> 2025-02-15
B8: Lien FFB SPORTIF | C8: Format | D8: Responsable de la compétition | F8: Stade | G8: Points | H8: Finalistes du Comité :
C9: =IF($C$5<>"",VLOOKUP($C$5,Calendrier!$A$4:$M$63,13,FALSE),"") -> 2,80 m | D9: =IF(C5="","",'base de données'!F83) -> André DESBLEUMORTIERS | F9: =IF($C$5<>"",VLOOKUP($C$5,Calendrier!$A$4:$M$63,6,FALSE),"") -> Finale CD62 | G9: =IF($C$5<>"",VLOOKUP($C$5,Calendrier!$A$4:$M$63,10,FALSE),"") -> 80 Points | H9: =IF($C$5<>"",VLOOKUP($C$5,Calendrier!$A$4:$O$63,15,FALSE),"") -> Pas de Calais
F10: Catégorie abregé : | G10: =LEFT(F7,1)& "" &RIGHT(F7,1) -> R1
B11: NOM - PRENOM | C11: MOY GEN | E11: Club | F11: NOM | G11: Prénom | H11: Licence | I11: Adresse | J11: Code Postal | K11: Ville | L11: Tél Fixe | M11: Tél Portable | N11: Mail
B12: FALSE FRANCK | C12: 4.62 | D12: Joueur 1 | E12: =IF(B12="","",VLOOKUP(B12,Tableau1[],6,FALSE)) -> BILLY | F12: =IF(B12="","",VLOOKUP(B12,Tableau1[],8,FALSE)) -> FALSE | G12: =IF(B12="","",VLOOKUP(B12,Tableau1[],7,FALSE)) -> FRANCK | H12: =IF(B12="","",VLOOKUP(B12,Tableau1[],2,FALSE)) -> 016907H | I12: =IF(B12="","",VLOOKUP(B12,Tableau1[],11,FALSE)) -> 5 RUE LEON JOUHAUX | J12: =IF(B12="","",VLOOKUP(B12,Tableau1[],14,FALSE)) -> 62420 | K12: =IF(B12="","",VLOOKUP(B12,Tableau1[],15,FALSE)) -> BILLY MONTIGNY | L12: =IF(B12="","",VLOOKUP(B12,Tableau1[],17,FALSE)) -> 0 | M12: =IF(B12="","",VLOOKUP(B12,Tableau1[],18,FALSE)) -> 0634180422 | N12: =IF(B12="","",VLOOKUP(B12,Tableau1[],19,FALSE)) -> auto_franck@hotmail.fr
B13: BRAZY ALAIN | C13: 3.58 | D13: Joueur 2 | E13: =IF(B13="","",VLOOKUP(B13,Tableau1[],6,FALSE)) -> CALAIS | F13: =IF(B13="","",VLOOKUP(B13,Tableau1[],8,FALSE)) -> BRAZY | G13: =IF(B13="","",VLOOKUP(B13,Tableau1[],7,FALSE)) -> ALAIN | H13: =IF(B13="","",VLOOKUP(B13,Tableau1[],2,FALSE)) -> 102980U | I13: =IF(B13="","",VLOOKUP(B13,Tableau1[],11,FALSE)) -> 110 RIVIERE D OYE | J13: =IF(B13="","",VLOOKUP(B13,Tableau1[],14,FALSE)) -> 62370 | K13: =IF(B13="","",VLOOKUP(B13,Tableau1[],15,FALSE)) -> OFFEKERQUE | L13: =IF(B13="","",VLOOKUP(B13,Tableau1[],17,FALSE)) -> 0 | M13: =IF(B13="","",VLOOKUP(B13,Tableau1[],18,FALSE)) -> 0641384118 | N13: =IF(B13="","",VLOOKUP(B13,Tableau1[],19,FALSE)) -> alain.brazy@hotmail.fr
B14: HUBERT HERVE | C14: 3.1 | D14: Joueur 3 | E14: =IF(B14="","",VLOOKUP(B14,Tableau1[],6,FALSE)) -> AVION | F14: =IF(B14="","",VLOOKUP(B14,Tableau1[],8,FALSE)) -> HUBERT | G14: =IF(B14="","",VLOOKUP(B14,Tableau1[],7,FALSE)) -> HERVE | H14: =IF(B14="","",VLOOKUP(B14,Tableau1[],2,FALSE)) -> 101140A | I14: =IF(B14="","",VLOOKUP(B14,Tableau1[],11,FALSE)) -> 340 RUE DU 10 MARS | J14: =IF(B14="","",VLOOKUP(B14,Tableau1[],14,FALSE)) -> 62221 | K14: =IF(B14="","",VLOOKUP(B14,Tableau1[],15,FALSE)) -> NOYELLES SOUS LENS | L14: =IF(B14="","",VLOOKUP(B14,Tableau1[],17,FALSE)) -> 0 | M14: =IF(B14="","",VLOOKUP(B14,Tableau1[],18,FALSE)) -> 0661941985 | N14: =IF(B14="","",VLOOKUP(B14,Tableau1[],19,FALSE)) -> h.hubert@neuf.fr
B15: BAILLET BERNARD | C15: 2.88 | D15: Joueur 4 | E15: =IF(B15="","",VLOOKUP(B15,Tableau1[],6,FALSE)) -> CUCQ | F15: =IF(B15="","",VLOOKUP(B15,Tableau1[],8,FALSE)) -> BAILLET | G15: =IF(B15="","",VLOOKUP(B15,Tableau1[],7,FALSE)) -> BERNARD | H15: =IF(B15="","",VLOOKUP(B15,Tableau1[],2,FALSE)) -> 147240T | I15: =IF(B15="","",VLOOKUP(B15,Tableau1[],11,FALSE)) -> 2 RUE BAILLET | J15: =IF(B15="","",VLOOKUP(B15,Tableau1[],14,FALSE)) -> 62600 | K15: =IF(B15="","",VLOOKUP(B15,Tableau1[],15,FALSE)) -> BERCK SUR MER | L15: =IF(B15="","",VLOOKUP(B15,Tableau1[],17,FALSE)) -> 0321093352 | M15: =IF(B15="","",VLOOKUP(B15,Tableau1[],18,FALSE)) -> 0620798344 | N15: =IF(B15="","",VLOOKUP(B15,Tableau1[],19,FALSE)) -> bernard.baillet@club-internet.fr
B16: MONNEYRAC SEBASTIEN | C16: 3.96 | D16: =IF('base de données'!$C$200<>"",VLOOKUP('base de données'!$C$200,'base de données'!$C$201:$E$203,2,FALSE),"") -> Remplaçant Maritime : | E16: =IF(B16="","",VLOOKUP(B16,Tableau1[],6,FALSE)) -> COURRIERES | F16: =IF(B16="","",VLOOKUP(B16,Tableau1[],8,FALSE)) -> MONNEYRAC | G16: =IF(B16="","",VLOOKUP(B16,Tableau1[],7,FALSE)) -> SEBASTIEN | H16: =IF(B16="","",VLOOKUP(B16,Tableau1[],2,FALSE)) -> 017277N | I16: =IF(B16="","",VLOOKUP(B16,Tableau1[],11,FALSE)) -> 9 RUE JEAN MOULIN | J16: =IF(B16="","",VLOOKUP(B16,Tableau1[],14,FALSE)) -> 59194 | K16: =IF(B16="","",VLOOKUP(B16,Tableau1[],15,FALSE)) -> RACHES | L16: =IF(B16="","",VLOOKUP(B16,Tableau1[],17,FALSE)) -> 0 | M16: =IF(B16="","",VLOOKUP(B16,Tableau1[],18,FALSE)) -> 0622195417 | N16: =IF(B16="","",VLOOKUP(B16,Tableau1[],19,FALSE)) -> christine.monneyrac@sfr.fr
B17: LEBECQ JEAN PIERRE | D17: =IF('base de données'!$C$200<>"",VLOOKUP('base de données'!$C$200,'base de données'!$C$201:$E$203,3,FALSE),"") -> Remplaçant Artois : | E17: =IF(B17="","",VLOOKUP(B17,Tableau1[],6,FALSE)) -> OUTREAU | F17: =IF(B17="","",VLOOKUP(B17,Tableau1[],8,FALSE)) -> LEBECQ | G17: =IF(B17="","",VLOOKUP(B17,Tableau1[],7,FALSE)) -> JEAN PIERRE | H17: =IF(B17="","",VLOOKUP(B17,Tableau1[],2,FALSE)) -> 017236Y | I17: =IF(B17="","",VLOOKUP(B17,Tableau1[],11,FALSE)) -> 157 RUE DES IRIS | J17: =IF(B17="","",VLOOKUP(B17,Tableau1[],14,FALSE)) -> 62780 | K17: =IF(B17="","",VLOOKUP(B17,Tableau1[],15,FALSE)) -> CUCQ | L17: =IF(B17="","",VLOOKUP(B17,Tableau1[],17,FALSE)) -> 0 | M17: =IF(B17="","",VLOOKUP(B17,Tableau1[],18,FALSE)) -> 0659355049 | N17: =IF(B17="","",VLOOKUP(B17,Tableau1[],19,FALSE)) -> jpv.lebecq@gmail.com

Sheet Convocation
Q1: Convocation
Q2: =IF($Q$8<>"",VLOOKUP(Q8,$Q$10:$R$12,2,FALSE),"") -> Finale du Comité Départemental Sport Billard 62
Q4: Limitation de reprises
Q5: =IF(Inscriptions!G5="","",Inscriptions!G5) -> Aucune Limitation
Q7: Stade
D8: =IF(Inscriptions!E7="","",Inscriptions!E7) -> Cadre | G8: =IF(Inscriptions!F7="","",Inscriptions!F7) -> Régionale 1 | K8: =IF(Inscriptions!E5="","",Inscriptions!E5) -> 2026-01-25 | Q8: =IF(Inscriptions!F9="","",Inscriptions!F9) -> Finale CD62
Q10: Finale CD62 | R10: Finale du Comité Départemental Sport Billard 62
Q11: Finale Ligue | R11: Finale Ligue Nord Pas de Calais Sport Billard
C12: DISTANCE : | E12: =IF(Inscriptions!G9="","",Inscriptions!G9) -> 80 Points | G12: =IF(Inscriptions!F5="","",Inscriptions!F5) -> WIZERNES | K12: ="MAX REPRISES :"&" " &Q5 -> MAX REPRISES : Aucune Limitation | Q12: Barrage Artois | R12: Barrage Artois du Comité Départemental Sport Billard 62 Du Pas de Calais
C15: RDV : | D15: =IF(E15="","",IF(E15="D","8H30","14H00")) -> 8H30 | E15: =IF(K8="","",IF(WEEKDAY(K8)=7,"S","D")) -> D | L15: DEBUT MATCHS : | N15: =IF(E15="","",IF(E15="D","9H00","14H30")) -> 9H00
J18: =IF($G$12<>"",VLOOKUP($G$12,'base de données'!$O$8:$T$36,2,FALSE),"") -> WIZERNES BILLARD CLUB
J19: =IF($G$12<>"",VLOOKUP($G$12,'base de données'!$O$8:$T$36,3,FALSE),"") -> Rue des Ecoles 62570 WIZERNES | V19: Ordre des matchs
J20: =IF($G$12<>"",VLOOKUP($G$12,'base de données'!$O$8:$T$36,4,FALSE),"") -> Résidence Marie Curie
J21: =IF($G$12<>"",VLOOKUP($G$12,'base de données'!$O$8:$T$36,5,FALSE),"") -> 321392007 | V21: J1 contre J2 | W21: J3 contre J4 | X21: J1 contre J2 | Y21: Match restant du J2
J22: =IF($G$12<>"",VLOOKUP($G$12,'base de données'!$O$8:$U$36,7,FALSE),"") -> 0 | V22: J1 contre J3 | W22: J2 contre j4 | X22: J1 contre J3 | Y22: Match restant du J3
V23: J1 contre J4 | W23: J2 contre J3 | X23: J1 contre J4 | Y23: Match restant du J4
C49: P1 | D49: P2
C50: =IF(G19="","",IF(Convocation!G19=Convocation!G20,1,0)) ->  | D50: =IF(M19="","",IF(Convocation!M19=Convocation!M20,1,0)) -> 
C51: =IF(G19="","",IF(Convocation!G20=Convocation!G21,1,0)) ->  | D51: =IF(M19="","",IF(Convocation!M20=Convocation!M21,1,0)) -> 
C52: =IF(G19="","",IF(Convocation!G21=Convocation!G19,1,0)) ->  | D52: =IF(M19="","",IF(Convocation!M21=Convocation!M19,1,0)) -> 
C53: =SUM(C50:C52) -> 0 | D53: =SUM(D50:D52) -> 0
C54: P3 | D54: P4
C55: =IF(G25="","",IF(Convocation!G25=Convocation!G26,1,0)) ->  | D55: =IF(M25="","",IF(Convocation!M25=Convocation!M26,1,0)) -> 
C56: =IF(G25="","",IF(Convocation!G26=Convocation!G27,1,0)) ->  | D56: =IF(M25="","",IF(Convocation!M26=Convocation!M27,1,0)) -> 
C57: =IF(G25="","",IF(Convocation!G27=Convocation!G25,1,0)) ->  | D57: =IF(M25="","",IF(Convocation!M27=Convocation!M25,1,0)) -> 
C58: =SUM(C55:C57) -> 0 | D58: =SUM(D55:D57) -> 0
C60: =SUM(C53,D53,C58,D58) -> 0
AB64: Déroulement de la Compétition
D65: Joueurs | F65: Club | G65: Licence | H65: Moyenne
C66: J1 : | D66: =IF(Inscriptions!B12="","",Inscriptions!B12) -> FALSE FRANCK | F66: =IF(Inscriptions!E12="","",Inscriptions!E12) -> BILLY | G66: =IF(Inscriptions!H12="","",Inscriptions!H12) -> 016907H | H66: =IF(Inscriptions!C12="","",Inscriptions!C12) -> 4.62 | AB66: 1er Tour | AD66: 2ème Tour | AF66: 3ème Tour
C67: J2 : | D67: =IF(Inscriptions!B13="","",Inscriptions!B13) -> BRAZY ALAIN | F67: =IF(Inscriptions!E13="","",Inscriptions!E13) -> CALAIS | G67: =IF(Inscriptions!H13="","",Inscriptions!H13) -> 102980U | H67: =IF(Inscriptions!C13="","",Inscriptions!C13) -> 3.58 | AB67: Billard 1 | AC67: Billard 2 | AD67: Billard 1 | AE67: Billard 2 | AF67: Billard 1 | AG67: Billard 2
C68: J3 : | D68: =IF(Inscriptions!B14="","",Inscriptions!B14) -> HUBERT HERVE | F68: =IF(Inscriptions!E14="","",Inscriptions!E14) -> AVION | G68: =IF(Inscriptions!H14="","",Inscriptions!H14) -> 101140A | H68: =IF(Inscriptions!C14="","",Inscriptions!C14) -> 3.1 | AB68: =IF(Inscriptions!C7="","",Inscriptions!C7) -> J1 contre J2 | AC68: =IF($AB68<>"",VLOOKUP($AB68,$V$21:$Y$23,2,FALSE),"") -> J3 contre J4 | AD68: Les perdants entre eux | AE68: Les vainqueurs entre eux | AF68: =IF($AB68<>"",VLOOKUP($AB68,$X$21:$Y$23,2,FALSE),"") -> Match restant du J2 | AG68: Match restant du J1
C69: J4 : | D69: =IF(Inscriptions!B15="","",Inscriptions!B15) -> BAILLET BERNARD | F69: =IF(Inscriptions!E15="","",Inscriptions!E15) -> CUCQ | G69: =IF(Inscriptions!H15="","",Inscriptions!H15) -> 147240T | H69: =IF(Inscriptions!C15="","",Inscriptions!C15) -> 2.88
J71: Joueurs | L71: Club | M71: Licence | N71: Moyenne
H72: =IF(Inscriptions!D16="","",Inscriptions!D16) -> Remplaçant Maritime : | J72: =IF(Inscriptions!B16="","",Inscriptions!B16) -> MONNEYRAC SEBASTIEN | L72: =IF(Inscriptions!E16="","",Inscriptions!E16) -> COURRIERES | M72: =IF(Inscriptions!H16="","",Inscriptions!H16) -> 017277N | N72: =IF(Inscriptions!C16="","",Inscriptions!C16) -> 3.96
H73: =IF(Inscriptions!D17="","",Inscriptions!D17) -> Remplaçant Artois : | J73: =IF(Inscriptions!B17="","",Inscriptions!B17) -> LEBECQ JEAN PIERRE | L73: =IF(Inscriptions!E17="","",Inscriptions!E17) -> OUTREAU | M73: =IF(Inscriptions!H17="","",Inscriptions!H17) -> 017236Y | N73: =IF(Inscriptions!C17="","",Inscriptions!C17) -> 
F77: Moyenne Maxi-Mini : | H77: ='Feuille de Match'!DA5 -> 0,00 à 4,50
C81: Extrait du Code Sportif - Article 6.2.09 - Paragraphe 6 - Joueurs d’un même club
C82: Pour toutes les poules, deux joueurs d'un même club sont obligatoirement opposés l'un à l'autre au premier tour.
B100: =IF('base de données'!D143="","",'base de données'!D143) -> CD62 Responsable format « Cadre & 3 Bandes » : André DESBLEUMORTIERS Mob : 06 - 08 - 95 - 70 - 58 – Email : cdesbleu@gmail.com

Sheet Feuille de Match
AC1: 42655.99851 | BE1: Ligue Hauts de France | REP1: 32
BE2: Comité Départemental 62
AG3: =IF(LEFT(AG4)="3",1,0) -> 0 | AH3: =IF(AG3=1,"0,000","0,00") -> 0,00 | BE3: =AF6&" "&AH6 -> Club Organisateur : WIZERNES
CF4: Stade de l'épreuve : | CH4: Mode de Jeu : | CK4: Catégorie : | CN4: Date : | CQ4: Distance : | CT4: Limitation de reprise : | CY4: Format : | DA4: Moyenne :
CF5: =IF(Inscriptions!F9="","",Inscriptions!F9) -> Finale CD62 | CH5: =IF(Inscriptions!E7="","",Inscriptions!E7) -> Cadre | CK5: =IF(Inscriptions!F7="","",Inscriptions!F7) -> Régionale 1 | CN5: =IF(Inscriptions!E5="","",Inscriptions!E5) -> 2026-01-25 | CO5: =IF(Inscriptions!N5="","",Inscriptions!N5) ->  | CP5: =IF(Inscriptions!O5="","",Inscriptions!O5) ->  | CQ5: =IF(Inscriptions!G9="","",Inscriptions!G9) -> 80 Points | CT5: =IF(Inscriptions!G5="","",Inscriptions!G5) -> Aucune Limitation | CY5: =IF(Inscriptions!C9="","",Inscriptions!C9) -> 2,80 m | DA5: =IF(Inscriptions!G7="","",Inscriptions!G7) -> 0,00 à 4,50
AF6: Club Organisateur : | AH6: =IF(Inscriptions!F5="","",Inscriptions!F5) -> WIZERNES
D7: =IF(B12="","",B12) -> FALSE FRANCK | E7: =IF(C13="","",C13) ->  | H7: =IF(B17="","",B17) -> BRAZY ALAIN | I7: =IF(C18="","",C18) ->  | L7: =IF(B22="","",B22) -> HUBERT HERVE | M7: =IF(C23="","",C23) ->  | P7: =IF(B27="","",B27) -> BAILLET BERNARD | Q7: =IF(C28="","",C28) ->  | T7: TOTAL | Y7: Classement
D8: =IF(B14="","",B14) -> BILLARD CLUB BILLY MONTIGNY | H8: =IF(B19="","",B19) -> ACADEMIE CALAISIENNE DE BILLARD | L8: =IF(B24="","",B24) -> BILLARD CLUB AVION | P8: =IF(B29="","",B29) -> BILLARD CLUB DE CUCQ | T8: Pts | W8: Rep. | X8: Points de Match | AD8: Calcul Meilleure Moy Particuliere
D9: =IF(B15="","",B15) ->  | H9: =IF(B20="","",B20) ->  | L9: =IF(B25="","",B25) ->  | P9: =IF(B30="","",B30) ->  | U9: M.P | AI9: 2 | AJ9: 1
D10: =IF(B16="","",B16) -> 016907H | E10: 4.62 | H10: =IF(B21="","",B21) -> 102980U | I10: 3.58 | L10: =IF(B26="","",B26) -> 101140A | M10: 3.1 | P10: =IF(B31="","",B31) -> 147240T | Q10: 2.88 | AV10: =joueurs1 -> FALSE FRANCK | AW10: =joueurs2 -> BRAZY ALAIN | AX10: =joueurs3 -> HUBERT HERVE | AY10: =joueurs4 -> BAILLET BERNARD
D11: =IF(B17="","",B17) -> BRAZY ALAIN | H11: =IF(B22="","",B22) -> HUBERT HERVE | L11: =IF(B27="","",B27) -> BAILLET BERNARD | P11: =IF(B32="","",B32) -> * = Bille Blanche | T11: Moy. | W11: Série | AD11: Match 1 | AE11: Match 2 | AF11: Match 3 | AG11: MAX | AI11: G | AJ11: N | AK11: Total Points Match Gagné | AL11: MG | AM11: Total Points | AN11: Série | AO11: Calcul Clasemeent | AP11: Clt
B12: =IF(Inscriptions!B12="","",Inscriptions!B12) -> FALSE FRANCK | T12: =IF(SUM(P12,H12,L12)<>0,SUM(P12,H12,L12),"") ->  | W12: =IF(SUM(R12,J12,N12)<>0,SUM(repmj3,J12,N12),"") ->  | X12: =IF(T12="","",SUM(P16,H16,L16)) ->  | Y12: =AB12& "" &AC12 ->  | AB12: =IF(AP12="","",AP12) ->  | AC12: =IF(AB12="","",IF(AB12=1,"er",IF(AB12>0,"è"))) ->  | AD12: =IF(J16="G",H14,IF(J16="N",H14,"-")) -> - | AE12: =IF(N16="G",L14,IF(N16="N",L14,"-")) -> - | AF12: =IF(R16="G",P14,IF(R16="N",P14,"-")) -> - | AG12: =IF(T12="","",MAX(AD12:AF16)) ->  | AI12: =IF($T12="","",IF($J$16=AI11,AI9,0)+IF($N$16=AI11,AI9,0)+IF($R$16=AI11,AI9,0)) ->  | AJ12: =IF($T12="","",IF($J$16=AJ11,AJ9,0)+IF($N$16=AJ11,AJ9,0)+IF($R$16=AJ11,AJ9,0)) ->  | AK12: =IF(AI12="","",(AI12+AJ12)*100000000000000000000) ->  | AL12: =IF(T12="","",(T15)*1000000000000000) ->  | AM12: =IF($T12="","",(AG12)*1000) ->  | AN12: =IF($T12="","",(W15)*1) ->  | AO12: =IF(T12="","",SUM(AK12:AN16)) ->  | AP12: =IF(AO12="","",RANK(AO12,$AO$12:$AO$31)) ->  | BB12: 1ER TOUR | BC12: T1
U13: =IF(AG12=0,"-",AG12) ->  | AU13: =joueurs1 -> FALSE FRANCK | BB13: 2EME TOUR | BC13: T2
A14: =IF($B12<>"",VLOOKUP($B12,Inscriptions!$B$12:$N$17,4,FALSE),"") -> BILLY | B14: =IF($A14<>"",VLOOKUP($A14,'base de données'!$O$8:$T$36,2,FALSE),"") -> BILLARD CLUB BILLY MONTIGNY | H14: =IF(H12="","",H12/J12) ->  | L14: =IF(L12="","",L12/N12) ->  | P14: =IF(P12="","",P12/R12) ->  | BB14: 3EME TOUR | BC14: T3
T15: =IF(T12="","",T12/W12) ->  | W15: =IF(T12="","",MAX(J14,N14,R14)) -> 
B16: =IF($B12<>"",VLOOKUP($B12,Inscriptions!$B$12:$N$17,7,FALSE),"") -> 016907H | C16: =IF($B12<>"",VLOOKUP($B12,Inscriptions!$B$12:$N$17,2,FALSE),"") -> 4.62 | H16: =IF(H12="","",IF(J16="G",2,IF(J16="p",0,1))) ->  | I16: =IF($AW$13<>"",VLOOKUP($AW$13,$BB$12:$BC$14,2,FALSE),"") ->  | J16: =IF(H12="","",IF(H12>D17,"G",IF(H12<D17,"P","N"))) ->  | L16: =IF(L12="","",IF(N16="G",2,IF(N16="p",0,1))) ->  | M16: =IF($AX$13<>"",VLOOKUP($AX$13,$BB$12:$BC$14,2,FALSE),"") ->  | N16: =IF(L12="","",IF(L12>D22,"G",IF(L12<D22,"P","N"))) ->  | P16: =IF(P12="","",IF(R16="G",2,IF(R16="p",0,1))) ->  | Q16: =IF($AY$13<>"",VLOOKUP($AY$13,$BB$12:$BC$14,2,FALSE),"") ->  | R16: =IF(P12="","",IF(P12>D27,"G",IF(P12<D27,"P","N"))) ->  | AU16: =joueurs2 -> BRAZY ALAIN
B17: =IF(Inscriptions!B13="","",Inscriptions!B13) -> BRAZY ALAIN | F17: =IF(J12="","",J12) ->  | T17: =IF(SUM(D17,P17,L17)<>0,SUM(D17,P17,L17),"") ->  | W17: =IF(SUM(F17,R17,N17)<>0,SUM(F17,R17,N17),"") ->  | X17: =IF(T17="","",SUM(P21,D21,L21)) ->  | Y17: =AB17& "" &AC17 ->  | AB17: =IF(AP17="","",AP17) ->  | AC17: =IF(AB17="","",IF(AB17=1,"er",IF(AB17>0,"è"))) ->  | AD17: =IF(F21="G",D19,IF(F21="N",D19,"-")) -> - | AE17: =IF(N21="G",L19,IF(N21="N",L19,"-")) -> - | AF17: =IF(R21="G",P19,IF(R21="N",P19,"-")) -> - | AG17: =IF(T17="","",MAX(AD17:AF21)) ->  | AI17: =IF($T17="","",IF($F$21=AI11,AI9,0)+IF($N$21=AI11,AI9,0)+IF($R$21=AI11,AI9,0)) ->  | AJ17: =IF($T17="","",IF($F$21=AJ11,AJ9,0)+IF($N$21=AJ11,AJ9,0)+IF($R$21=AJ11,AJ9,0)) ->  | AK17: =IF(AI17="","",(AI17+AJ17)*100000000000000000000) ->  | AL17: =IF(T17="","",(T20)*1000000000000000) ->  | AM17: =IF($T17="","",(AG17)*1000) ->  | AN17: =IF($T17="","",(W20)*1) ->  | AO17: =IF(T17="","",SUM(AK17:AN21)) ->  | AP17: =IF(AO17="","",RANK(AO17,$AO$12:$AO$31)) -> 
U18: =IF(AG17=0,"-",AG17) ->  | AU18: =joueurs3 -> HUBERT HERVE
A19: =IF($B17<>"",VLOOKUP($B17,Inscriptions!$B$12:$N$17,4,FALSE),"") -> CALAIS | B19: =IF($A19<>"",VLOOKUP($A19,'base de données'!$O$8:$T$36,2,FALSE),"") -> ACADEMIE CALAISIENNE DE BILLARD | D19: =IF(D17="","",D17/F17) ->  | L19: =IF(L17="","",L17/N17) ->  | P19: =IF(P17="","",P17/R17) -> 
T20: =IF(T17="","",T17/W17) ->  | W20: =IF(T17="","",MAX(F19,N19,R19)) -> 
B21: =IF($B17<>"",VLOOKUP($B17,Inscriptions!$B$12:$N$17,7,FALSE),"") -> 102980U | C21: =IF($B17<>"",VLOOKUP($B17,Inscriptions!$B$12:$N$17,2,FALSE),"") -> 3.58 | D21: =IF(D17="","",IF(F21="G",2,IF(F21="p",0,1))) ->  | E21: =IF(I16="","",I16) ->  | F21: =IF(J16="","",IF(J16="G","P",IF(J16="N","N","G"))) ->  | L21: =IF(L17="","",IF(N21="G",2,IF(N21="p",0,1))) ->  | M21: =IF($AX$16<>"",VLOOKUP($AX$16,$BB$12:$BC$14,2,FALSE),"") ->  | N21: =IF(L17="","",IF(L17>H22,"G",IF(L17<H22,"P","N"))) ->  | P21: =IF(P17="","",IF(R21="G",2,IF(R21="p",0,1))) ->  | Q21: =IF($AY$16<>"",VLOOKUP($AY$16,$BB$12:$BC$14,2,FALSE),"") ->  | R21: =IF(P17="","",IF(P17>H27,"G",IF(P17<H27,"P","N"))) ->  | AU21: =joueurs4 -> BAILLET BERNARD
B22: =IF(Inscriptions!B14="","",Inscriptions!B14) -> HUBERT HERVE | F22: =IF(N12="","",N12) ->  | J22: =IF(N17="","",N17) ->  | T22: =IF(SUM(D22,P22,H22)<>0,SUM(D22,P22,H22),"") ->  | W22: =IF(SUM(F22,R22,J22)<>0,SUM(F22,R22,J22),"") ->  | X22: =IF(T22="","",SUM(P26,D26,H26)) ->  | Y22: =AB22& "" &AC22 ->  | AB22: =IF(AP22="","",AP22) ->  | AC22: =IF(AB22="","",IF(AB22=1,"er",IF(AB22>0,"è"))) ->  | AD22: =IF(F26="G",D24,IF(F26="N",D24,"-")) -> - | AE22: =IF(J26="G",H24,IF(J26="N",H24,"-")) -> - | AF22: =IF(R26="G",P24,IF(R26="N",P24,"-")) -> - | AG22: =IF(T22="","",MAX(AD22:AF26)) ->  | AI22: =IF($T22="","",IF($F$26=AI11,AI9,0)+IF($J$26=AI11,AI9,0)+IF($R$26=AI11,AI9,0)) ->  | AJ22: =IF($T22="","",IF($F$26=AJ11,AJ9,0)+IF($J$26=AJ11,AJ9,0)+IF($R$26=AJ11,AJ9,0)) ->  | AK22: =IF(AI22="","",(AI22+AJ22)*100000000000000000000) ->  | AL22: =IF(T22="","",(T25)*1000000000000000) ->  | AM22: =IF($T22="","",(AG22)*1000) ->  | AN22: =IF($T22="","",(W25)*1) ->  | AO22: =IF(T22="","",SUM(AK22:AN26)) ->  | AP22: =IF(AO22="","",RANK(AO22,$AO$12:$AO$31)) -> 
U23: =IF(AG22=0,"-",AG22) -> 
A24: =IF($B22<>"",VLOOKUP($B22,Inscriptions!$B$12:$N$17,4,FALSE),"") -> AVION | B24: =IF($A24<>"",VLOOKUP($A24,'base de données'!$O$8:$T$36,2,FALSE),"") -> BILLARD CLUB AVION | D24: =IF(D22="","",D22/F22) ->  | H24: =IF(H22="","",H22/J22) ->  | P24: =IF(P22="","",P22/R22) -> 
T25: =IF(T22="","",T22/W22) ->  | W25: =IF(T22="","",MAX(F24,J24,R24)) -> 
B26: =IF($B22<>"",VLOOKUP($B22,Inscriptions!$B$12:$N$17,7,FALSE),"") -> 101140A | C26: =IF($B22<>"",VLOOKUP($B22,Inscriptions!$B$12:$N$17,2,FALSE),"") -> 3.1 | D26: =IF(D22="","",IF(F26="G",2,IF(F26="p",0,1))) ->  | E26: =IF(M16="","",M16) ->  | F26: =IF(N16="","",IF(N16="G","P",IF(N16="N","N","G"))) ->  | H26: =IF(H22="","",IF(J26="G",2,IF(J26="p",0,1))) ->  | I26: =IF(M21="","",M21) ->  | J26: =IF(N21="","",IF(N21="G","P",IF(N21="N","N","G"))) ->  | P26: =IF(P22="","",IF(R26="G",2,IF(R26="p",0,1))) ->  | Q26: =IF($AY$18<>"",VLOOKUP($AY$18,$BB$12:$BC$14,2,FALSE),"") ->  | R26: =IF(P22="","",IF(P22>L27,"G",IF(P22<L27,"P","N"))) -> 
B27: =IF(Inscriptions!B15="","",Inscriptions!B15) -> BAILLET BERNARD | F27: =IF(R12="","",R12) ->  | J27: =IF(R17="","",R17) ->  | N27: =IF(R22="","",R22) ->  | T27: =IF(SUM(D27,H27,L27)<>0,SUM(D27,H27,L27),"") ->  | W27: =IF(SUM(F27,N27,J27)<>0,SUM(F27,N27,J27),"") ->  | X27: =IF(T27="","",SUM(L31,D31,H31)) ->  | Y27: =AB27& "" &AC27 ->  | AB27: =IF(AP27="","",AP27) ->  | AC27: =IF(AB27="","",IF(AB27=1,"er",IF(AB27>0,"è"))) ->  | AD27: =IF(F31="G",D29,IF(F31="N",D29,"-")) -> - | AE27: =IF(J31="G",H29,IF(J31="N",H29,"-")) -> - | AF27: =IF(N31="G",L29,IF(N31="N",L29,"-")) -> - | AG27: =IF(T27="","",MAX(AD27:AF31)) ->  | AI27: =IF($T27="","",IF($F$31=AI11,AI9,0)+IF($J$31=AI11,AI9,0)+IF($N$31=AI11,AI9,0)) ->  | AJ27: =IF($T27="","",IF($F$31=AJ11,AJ9,0)+IF($J$31=AJ11,AJ9,0)+IF($N$31=AJ11,AJ9,0)) ->  | AK27: =IF(AI27="","",(AI27+AJ27)*100000000000000000000) ->  | AL27: =IF(T27="","",(T30)*1000000000000000) ->  | AM27: =IF($T27="","",(AG27)*1000) ->  | AN27: =IF($T27="","",(W30)*1) ->  | AO27: =IF(T27="","",SUM(AK27:AN31)) ->  | AP27: =IF(AO27="","",RANK(AO27,$AO$12:$AO$31)) -> 
U28: =IF(AG27=0,"-",AG27) -> 
A29: =IF($B27<>"",VLOOKUP($B27,Inscriptions!$B$12:$N$17,4,FALSE),"") -> CUCQ | B29: =IF($A29<>"",VLOOKUP($A29,'base de données'!$O$8:$T$36,2,FALSE),"") -> BILLARD CLUB DE CUCQ | D29: =IF(D27="","",D27/F27) ->  | H29: =IF(H27="","",H27/J27) ->  | L29: =IF(L27="","",L27/N27) -> 
T30: =IF(T27="","",T27/W27) ->  | W30: =IF(T27="","",MAX(F29,J29,N29)) -> 
B31: =IF($B27<>"",VLOOKUP($B27,Inscriptions!$B$12:$N$17,7,FALSE),"") -> 147240T | C31: =IF($B27<>"",VLOOKUP($B27,Inscriptions!$B$12:$N$17,2,FALSE),"") -> 2.88 | D31: =IF(D27="","",IF(F31="G",2,IF(F31="p",0,1))) ->  | E31: =IF(Q16="","",Q16) ->  | F31: =IF(R16="","",IF(R16="G","P",IF(R16="N","N","G"))) ->  | H31: =IF(H27="","",IF(J31="G",2,IF(J31="p",0,1))) ->  | I31: =IF(Q21="","",Q21) ->  | J31: =IF(R21="","",IF(R21="G","P",IF(R21="N","N","G"))) ->  | L31: =IF(L27="","",IF(N31="G",2,IF(N31="p",0,1))) ->  | M31: =IF(Q26="","",Q26) ->  | N31: =IF(R26="","",IF(R26="G","P",IF(R26="N","N","G"))) -> 
B32: * = Bille Blanche
B33: Clt. | C33: Nom - Prénom | E33: Adresse :
A35: 1 | B35: 1er | C35: =IF(AB12="","",IF($AB$12=A35,$B$12,IF($AB$17=A35,$B$17,IF($AB$22=A35,$B$22,IF($AB$27=A35,$B$27))))) ->  | E35: =IF($C35<>"",VLOOKUP($C35,Inscriptions!$B$11:$N$17,8,FALSE),"") ->  | K35: =IF($C35<>"",VLOOKUP($C35,Inscriptions!$B$11:$N$17,9,FALSE),"") ->  | L35: =IF($C35<>"",VLOOKUP($C35,Inscriptions!$B$11:$N$17,10,FALSE),"") ->  | Q35: Engt OUI - NON | AC35: =IF($AB$12=1,$T$15,IF($AB$17=1,$T$20,IF($AB$22=1,$T$25,IF($AB$27=1,$T$30)))) -> FALSE
A36: 2 | B36: 2ème | C36: =IF(AB17="","",IF($AB$12=A36,$B$12,IF($AB$17=A36,$B$17,IF($AB$22=A36,$B$22,IF($AB$27=A36,$B$27))))) ->  | E36: =IF($C36<>"",VLOOKUP($C36,Inscriptions!$B$11:$N$17,8,FALSE),"") ->  | K36: =IF($C36<>"",VLOOKUP($C36,Inscriptions!$B$11:$N$17,9,FALSE),"") ->  | L36: =IF($C36<>"",VLOOKUP($C36,Inscriptions!$B$11:$N$17,10,FALSE),"") ->  | Q36: Engt OUI - NON | AC36: =IF($AB$12=2,$T$15,IF($AB$17=2,$T$20,IF($AB$22=2,$T$25,IF($AB$27=2,$T$30)))) -> FALSE
A37: 3 | B37: 3ème | C37: =IF(AB22="","",IF($AB$12=A37,$B$12,IF($AB$17=A37,$B$17,IF($AB$22=A37,$B$22,IF($AB$27=A37,$B$27))))) ->  | E37: =IF($C37<>"",VLOOKUP($C37,Inscriptions!$B$11:$N$17,8,FALSE),"") ->  | K37: =IF($C37<>"",VLOOKUP($C37,Inscriptions!$B$11:$N$17,9,FALSE),"") ->  | L37: =IF($C37<>"",VLOOKUP($C37,Inscriptions!$B$11:$N$17,10,FALSE),"") ->  | Q37: Engt OUI - NON | AC37: =IF($AB$12=3,$T$15,IF($AB$17=3,$T$20,IF($AB$22=3,$T$25,IF($AB$27=3,$T$30)))) -> FALSE
A38: 4 | B38: 4ème | C38: =IF(AB27="","",IF($AB$12=A38,$B$12,IF($AB$17=A38,$B$17,IF($AB$22=A38,$B$22,IF($AB$27=A38,$B$27))))) ->  | E38: =IF($C38<>"",VLOOKUP($C38,Inscriptions!$B$11:$N$17,8,FALSE),"") ->  | K38: =IF($C38<>"",VLOOKUP($C38,Inscriptions!$B$11:$N$17,9,FALSE),"") ->  | L38: =IF($C38<>"",VLOOKUP($C38,Inscriptions!$B$11:$N$17,10,FALSE),"") ->  | Q38: Engt OUI - NON | AC38: =IF($AB$12=4,$T$15,IF($AB$17=4,$T$20,IF($AB$22=4,$T$25,IF($AB$27=4,$T$30)))) -> FALSE
C40: Observations : | V40: Directeur de Jeu :
V42: HEMBERT ALAIN

Sheet Clubs (hidden)
A1: Clubs | B1: Ecussons | C1: N° Clubs
A2: ARRAS | C2: 13101
A3: AVION | C3: 13102
A4: BILLY | C4: 13103
A5: CARVIN | C5: 13104
A6: LENS | C6: 13105
A7: DOUAI | C7: 13107
A8: ANNOEULLIN | C8: 13110
A9: DIVION | C9: 13117
A10: FOUQUIERES | C10: 13123
A11: COURRIERES | C11: 13124
A12: HOUPLINES | C12: 13231
A13: VILLENEUVE D'ASCQ | C13: 13236
A14: RONCHIN | C14: 13240
A15: FACHES THUMESNIL | C15: 13249
A16: ESTAIRES | C16: 13252
A17: DUNKERQUE | C17: 13353
A18: GRAVELINES | C18: 13355
A19: OUTREAU | C19: 13356
A20: ST POL SUR MER | C20: 13360
A21: CUCQ | C21: 13363
A22: CALAIS | C22: 13364
A23: GRANDE SYNTHE | C23: 13365
A24: WIMILLE | C24: 13368
A25: WIZERNES | C25: 13369
A26: LE TOUQUET | C26: 13370
A27: DENAIN | C27: 13478
A28: BRUAY | C28: 13481
A29: CAMBRAI | C29: 13482
A30: Finale Ligue
A31: Indépendants 62 | E31: INDEPENDANT
A32: Finale CD62
A33: Barrage Artois
A34: ="" ->  | C34: 0

Sheet Bordereau d'engagement
B1: Bordereau d’Engagement en Finale de Ligue | O1: Comité Organisateur de la Finale Ligue: | P1: Date : | Q1: Mode de Jeu : | R1: Catégories :
O2: =IF(Inscriptions!H5="","",Inscriptions!H5) -> OISE | P2: =IF(Inscriptions!H7="","",Inscriptions!H7) -> 2025-02-15 | Q2: =IF(Inscriptions!E7="","",Inscriptions!E7) -> Cadre | R2: =IF(Inscriptions!G10="","",Inscriptions!G10) -> R1 | S2: =IF(Inscriptions!F7="","",Inscriptions!F7) -> Régionale 1
A4: Modèle 2019-2020 | O4: Finaliste du Comité : | P4: N° CD
A5: Finale de Ligue - Carambole | O5: =IF(Inscriptions!H9="","",Inscriptions!H9) -> Pas de Calais | P5: =IF($O$5<>"",VLOOKUP($O$5,$A$11:$B$16,2,FALSE),"") -> CD62
A6: Date | C6: =IF(P2="","",P2) -> 2025-02-15
A7: Organisateur | C7: Aisne | E7: Nord | G7: Oise | I7: Pas de Calais | K7: Somme
A9: Finaliste du Comité | C9: Mode de Jeu & Catégorie
A11: Aisne | B11: CD02 | C11: Libre | E11: Cadre | G11: 1 Bande | I11: 3 Bande | K11: 5 Quilles
A12: Nord | B12: CD59
A13: Oise | B13: CD60 | E13: Nationale 1 | G13: Nationale 2 | I13: Nationale 3
A14: Pas de Calais | B14: CD62 | C14: Régionale 1 | E14: Régionale 2 | G14: Régionale 3 | I14: Régionale 4
A15: Somme | B15: CD80 | C15: Catégories Jeunes
C16: Junior R1 | E16: Junior R2 | G16: Cadet R | I16: Junior R | K16: Benjamin R
B18: Informations Joueurs | K18: ="Finale CD"& "" &RIGHT(P5,2) -> Finale CD62
B19: Ne doivent être mentionnés sur cette feuille que les joueurs réellement concernés par la finale Ligue
B20: Seuls les joueurs indiqués sur ce document pourront être convoqués pour la finale En cas de désistement du titulaire, le remplaçant sera convoqué En cas de désistement du remplaçant, le CD concerné n’aura pas de représentant en finale de Ligue
B23: Licence | C23: Nom - Prénom Adresse | F23: Email Téléphone | I23: Siganture joueur | K23: Classt | L23: Moyenne
A24: Exemple | B24: 123456Z | C24: Dupont Martin Rue Nationale, Lille | F24: martin.dupont@gmail.com 09 87 65 42 21 | K24: 1er | L24: 12.58
A25: Titulaire | B25: =IF($C25<>"",VLOOKUP($C25,Inscriptions!$B$12:$N$17,7,FALSE),"") ->  | C25: =IF('Feuille de Match'!C35="","",'Feuille de Match'!C35) ->  | F25: =IF($C25<>"",VLOOKUP($C25,Inscriptions!$B$12:$N$17,13,FALSE),"") ->  | K25: 1er | L25: =IF($C25<>"",VLOOKUP($C25,'Feuille de Match'!$C$35:$AC$38,27,FALSE),"") -> 
C26: =IF(C25="","",IF($C25<>"",VLOOKUP($C25,Inscriptions!$B$12:$N$17,8,FALSE),"")&", "&IF($C25<>"",VLOOKUP($C25,Inscriptions!$B$12:$N$17,9,FALSE),"")&", "&IF($C25<>"",VLOOKUP($C25,Inscriptions!$B$12:$N$17,10,FALSE),"")) ->  | G26: =IF($C25<>"",VLOOKUP($C25,Inscriptions!$B$12:$N$17,12,FALSE),"") -> 
A27: Remplaçant 1 | B27: =IF($C27<>"",VLOOKUP($C27,Inscriptions!$B$12:$N$17,7,FALSE),"") ->  | C27: =IF('Feuille de Match'!C36="","",'Feuille de Match'!C36) ->  | F27: =IF($C27<>"",VLOOKUP($C27,Inscriptions!$B$12:$N$17,13,FALSE),"") ->  | K27: 2ème | L27: =IF($C27<>"",VLOOKUP($C27,'Feuille de Match'!$C$35:$AC$38,27,FALSE),"") -> 
C28: =IF(C27="","",IF($C27<>"",VLOOKUP($C27,Inscriptions!$B$12:$N$17,8,FALSE),"")&", "&IF($C27<>"",VLOOKUP($C27,Inscriptions!$B$12:$N$17,9,FALSE),"")&", "&IF($C27<>"",VLOOKUP($C27,Inscriptions!$B$12:$N$17,10,FALSE),"")) ->  | G28: =IF($C27<>"",VLOOKUP($C27,Inscriptions!$B$12:$N$17,12,FALSE),"") -> 
A29: Remplaçant 2 | B29: =IF($C29<>"",VLOOKUP($C29,Inscriptions!$B$12:$N$17,7,FALSE),"") ->  | C29: =IF('Feuille de Match'!C37="","",'Feuille de Match'!C37) ->  | F29: =IF($C29<>"",VLOOKUP($C29,Inscriptions!$B$12:$N$17,13,FALSE),"") ->  | K29: 3ème | L29: =IF($C29<>"",VLOOKUP($C29,'Feuille de Match'!$C$35:$AC$38,27,FALSE),"") -> 
C30: =IF(C29="","",IF($C29<>"",VLOOKUP($C29,Inscriptions!$B$12:$N$17,8,FALSE),"")&", "&IF($C29<>"",VLOOKUP($C29,Inscriptions!$B$12:$N$17,9,FALSE),"")&", "&IF($C29<>"",VLOOKUP($C29,Inscriptions!$B$12:$N$17,10,FALSE),"")) ->  | G30: =IF($C29<>"",VLOOKUP($C29,Inscriptions!$B$12:$N$17,12,FALSE),"") -> 
A31: Remplaçant 3 | B31: =IF($C31<>"",VLOOKUP($C31,Inscriptions!$B$12:$N$17,7,FALSE),"") ->  | C31: =IF('Feuille de Match'!C39="","",'Feuille de Match'!C39) ->  | F31: =IF($C31<>"",VLOOKUP($C31,Inscriptions!$B$12:$N$17,13,FALSE),"") ->  | K31: 4ème | L31: =IF($C31<>"",VLOOKUP($C31,'Feuille de Match'!$C$35:$AC$38,27,FALSE),"") -> 
C32: =IF(C31="","",IF($C31<>"",VLOOKUP($C31,Inscriptions!$B$12:$N$17,8,FALSE),"")&", "&IF($C31<>"",VLOOKUP($C31,Inscriptions!$B$12:$N$17,9,FALSE),"")&", "&IF($C31<>"",VLOOKUP($C31,Inscriptions!$B$12:$N$17,10,FALSE),"")) ->  | G32: =IF($C31<>"",VLOOKUP($C31,Inscriptions!$B$12:$N$17,12,FALSE),"") -> 
A34: Le présent bordereau (accompagné de la feuille de résultats de la Finale CD) doit être rempli entièrement et lisiblement (notamment l’email), puis adressé à resultats.billard.ligue.hdf@gmail.com (et en copie au Responsable Format Ligue) immédiatement après l'épreuve et au plus tard dans les 48 heures suivant la compétition. Passé ce délai, les engagements ne seront plus acceptés.
D36: Email destinataire du bordereau d’engagement | E36: resultats.billard.ligue.hdf@gmail.com
E37: ainsi qu'au responsable format (indiqué ci-dessous)
A38: Responsable Format | C38: Nom | E38: Email | I38: Téléphone
A39: Libre | C39: Patrick MOLEY | E39: patmolbil@gmail.com | I39: 07 50 40 73 40
A40: Cadre | C40: Mickael BETTEFORT | E40: mickey.80@wanadoo.fr | I40: 06 19 30 22 12
A41: 1 Bande | C41: Emmanuel TAFFIN | E41: emmanuel.taffin@orange.fr | I41: 06 10 73 70 58
A42: 3 Bandes | C42: André OTTEVAERE | E42: a.ottevaere@hotmail.fr | I42: 06 16 15 36 55
A43: 5 Quilles
A44: Jeunes / Féminines | C44: Denis HORNAIN | E44: denis.hornain@orange.com | I44: 06 79 83 43 97
A46: Par défaut, les finales se jouent à 5 joueurs, soit 1 représentant par Comité Départemental (CD). Si un CD ne peut présenter de joueur, alors finale à 4 joueurs, etc…La finale se joue dans le club du CD du joueur qualifié. (Le club organisateur doit avoir 2 billards du format de la compétition. Si le club ne peut pas recevoir la finale, celle-ci se déroule dans un autre club du même CD.) Joueurs en catégories Nationales :Compétition sur 2 jours : Samedi : Convocation 13h30, rencontres à 14h00, 3 tours de jeux. Dimanche : Convocation 8h30, rencontres à 9h00, 2 tours de jeux. Joueurs en catégories Régionales : Compétition le dimanche (et samedi pour Libre R1), convocation 8h30, début des rencontres à 9h00, 5 tours de jeux. La compétition se déroule suivant le mécanisme des tours de jeu défini au code sportif (article 6.2.09)

Sheet Bordereau (hidden)
B1: =IF('base de données'!$C$57="","",'base de données'!$C$57) -> Bordereau d'engagement Finale Ligue | J1: Remplissage de la Feuille automatique
B5: Mode de Jeu : | C5: =IF(Inscriptions!E7="","",Inscriptions!E7) -> Cadre | E5: Catégorie : | F5: =IF(Inscriptions!F7="","",Inscriptions!F7) -> Régionale 1
B6: Qui se disputera le : | C6: =IF(Inscriptions!H7="","",Inscriptions!H7) -> 2025-02-15 | E6: à : | F6: =IF(Inscriptions!H5="","",Inscriptions!H5) -> OISE
B9: *Nom –Prénom du 1er Joueur : | E9: =IF('Feuille de Match'!C35="","",'Feuille de Match'!C35) -> 
B10: *Club : | C10: =IF($E9<>"",VLOOKUP($E9,Inscriptions!$B$12:$N$17,4,FALSE),"") ->  | H10: *Moyenne : | I10: =IF($E9<>"",VLOOKUP($E9,'Feuille de Match'!$C$34:$AC$38,27,FALSE),"") -> 
B11: *N° Licence : | C11: =IF($E9<>"",VLOOKUP($E9,Inscriptions!$B$12:$N$17,7,FALSE),"") -> 
B12: *Adresse : | C12: =IF($E9<>"",VLOOKUP($E9,Inscriptions!$B$12:$N$17,8,FALSE),"") ->  | F12: =IF($E9<>"",VLOOKUP($E9,Inscriptions!$B$12:$N$17,9,FALSE),"") ->  | G12: =IF($E9<>"",VLOOKUP($E9,Inscriptions!$B$12:$N$17,10,FALSE),"") -> 
B13: *Tel Fixe : | C13: =IF($E9<>"",VLOOKUP($E9,Inscriptions!$B$12:$N$17,11,FALSE),"") ->  | F13: *Signature Joueur :
B14: *Tel Portable : | C14: =IF($E9<>"",VLOOKUP($E9,Inscriptions!$B$12:$N$17,12,FALSE),"") -> 
B15: *Mail : | C15: =IF($E9<>"",VLOOKUP($E9,Inscriptions!$B$12:$N$17,13,FALSE),"") -> 
B19: *Nom –Prénom du 1er Joueur : | D19: =IF('Feuille de Match'!C35="","",'Feuille de Match'!C35) -> 
B20: QUALIFIE EN TANT QU'INVITE DU CD62 POUR LA FINALE DE FRANCE
B29: *Nom –Prénom du 2ème Joueur : | E29: =IF('Feuille de Match'!C36="","",'Feuille de Match'!C36) -> 
B30: *Club : | C30: =IF($E29<>"",VLOOKUP($E29,Inscriptions!$B$12:$N$17,4,FALSE),"") ->  | H30: *Moyenne : | I30: =IF($E29<>"",VLOOKUP($E29,'Feuille de Match'!$C$34:$AC$38,27,FALSE),"") -> 
B31: *N° Licence : | C31: =IF($E29<>"",VLOOKUP($E29,Inscriptions!$B$12:$N$17,7,FALSE),"") -> 
B32: *Adresse : | C32: =IF($E29<>"",VLOOKUP($E29,Inscriptions!$B$12:$N$17,8,FALSE),"") ->  | F32: =IF($E29<>"",VLOOKUP($E29,Inscriptions!$B$12:$N$17,9,FALSE),"") ->  | G32: =IF($E29<>"",VLOOKUP($E29,Inscriptions!$B$12:$N$17,10,FALSE),"") -> 
B33: *Tel Fixe : | C33: =IF($E29<>"",VLOOKUP($E29,Inscriptions!$B$12:$N$17,11,FALSE),"") ->  | F33: *Signature Joueur :
B34: *Tel Portable : | C34: =IF($E29<>"",VLOOKUP($E29,Inscriptions!$B$12:$N$17,12,FALSE),"") -> 
B35: *Mail : | C35: =IF($E29<>"",VLOOKUP($E29,Inscriptions!$B$12:$N$17,13,FALSE),"") -> 
B39: *Nom –Prénom du 3ème Joueur : | E39: =IF('Feuille de Match'!C37="","",'Feuille de Match'!C37) -> 
B40: *Club : | C40: =IF($E39<>"",VLOOKUP($E39,Inscriptions!$B$12:$N$17,4,FALSE),"") ->  | H40: *Moyenne : | I40: =IF($E39<>"",VLOOKUP($E39,'Feuille de Match'!$C$34:$AC$38,27,FALSE),"") -> 
B41: *N° Licence : | C41: =IF($E39<>"",VLOOKUP($E39,Inscriptions!$B$12:$N$17,7,FALSE),"") -> 
B42: *Adresse : | C42: =IF($E39<>"",VLOOKUP($E39,Inscriptions!$B$12:$N$17,8,FALSE),"") ->  | F42: =IF($E39<>"",VLOOKUP($E39,Inscriptions!$B$12:$N$17,9,FALSE),"") ->  | G42: =IF($E39<>"",VLOOKUP($E39,Inscriptions!$B$12:$N$17,10,FALSE),"") -> 
B43: *Tel Fixe : | C43: =IF($E39<>"",VLOOKUP($E39,Inscriptions!$B$12:$N$17,11,FALSE),"") ->  | F43: *Signature Joueur :
B44: *Tel Portable : | C44: =IF($E39<>"",VLOOKUP($E39,Inscriptions!$B$12:$N$17,12,FALSE),"") -> 
B45: *Mail : | C45: =IF($E39<>"",VLOOKUP($E39,Inscriptions!$B$12:$N$17,13,FALSE),"") -> 
B49: *Nom –Prénom du 4ème Joueur : | E49: =IF('Feuille de Match'!C38="","",'Feuille de Match'!C38) -> 
B50: *Club : | C50: =IF($E49<>"",VLOOKUP($E49,Inscriptions!$B$12:$N$17,4,FALSE),"") ->  | H50: *Moyenne : | I50: =IF($E49<>"",VLOOKUP($E49,'Feuille de Match'!$C$34:$AC$38,27,FALSE),"") -> 
B51: *N° Licence : | C51: =IF($E49<>"",VLOOKUP($E49,Inscriptions!$B$12:$N$17,7,FALSE),"") -> 
B52: *Adresse : | C52: =IF($E49<>"",VLOOKUP($E49,Inscriptions!$B$12:$N$17,8,FALSE),"") ->  | F52: =IF($E49<>"",VLOOKUP($E49,Inscriptions!$B$12:$N$17,9,FALSE),"") ->  | G52: =IF($E49<>"",VLOOKUP($E49,Inscriptions!$B$12:$N$17,10,FALSE),"") -> 
B53: *Tel Fixe : | C53: =IF($E49<>"",VLOOKUP($E49,Inscriptions!$B$12:$N$17,11,FALSE),"") ->  | F53: *Signature Joueur :
B54: *Tel Portable : | C54: =IF($E49<>"",VLOOKUP($E49,Inscriptions!$B$12:$N$17,12,FALSE),"") -> 
B55: *Mail : | C55: =IF($E49<>"",VLOOKUP($E49,Inscriptions!$B$12:$N$17,13,FALSE),"") -> 
B58: À : | C58: =IF(Inscriptions!F5="","",Inscriptions!F5) -> WIZERNES | E58: le : | F58: =IF(Inscriptions!E5="","",Inscriptions!E5) -> 2026-01-25
B59: Nom du responsable de l’épreuve : | E59: =IF('Feuille de Match'!V42="","",'Feuille de Match'!V42) -> HEMBERT ALAIN
B61: =IF('base de données'!D143="","",'base de données'!D143) -> CD62 Responsable format « Cadre & 3 Bandes » : André DESBLEUMORTIERS Mob : 06 - 08 - 95 - 70 - 58 – Email : cdesbleu@gmail.com

Sheet Liste Joueurs
A1: Liste Joueurs | B1: 016964M | C1: 32 | D1: 62 | E1: 13364 | F1: CALAIS | G1: PATRICK | H1: BRIEZ | I1: 22531 | J1: M | K1: 155 AVENUE LOUIS BLERIOT | L1: 156 AVENUE LOUIS BLERIOT | M1: 157 AVENUE LOUIS BLERIOT | N1: 62100 | O1: CALAIS2 | P1: FRANCE | Q1: 0321979894 | R1: 0321979895 | S1: DOMINIQUE.SAUVAGE@NEUF.FR | T1: OUI | U1: +21 ans | V1: Carambole | W1: Colonne3 | X1: 45903 | Y1: FRANCE4 | Z1: NON | AA1: Colonne5
A2: =H2 & " " &G2 -> LEDUCQ STEPHANE | B2: 016965N | C2: 32 | D2: 62 | E2: 13364 | F2: CALAIS | G2: STEPHANE | H2: LEDUCQ | I2: 1963-04-17 | J2: M | K2: 33 RUE HELENE BOUCHER | N2: 62100 | O2: CALAIS | P2: FRANCE | R2: 0632767614 | S2: stephaneleducq@yahoo.fr | T2: OUI | U2: +21 ans | V2: Carambole | X2: 45903 | Y2: FRANCE | Z2: NON
A3: GRADELLE FRANCIS | B3: 016966O | C3: 32 | D3: 62 | E3: 13364 | F3: CALAIS | G3: FRANCIS | H3: GRADELLE | I3: 1962-03-20 | J3: M | K3: 3 AVENUE GUYNEMER | L3: BAT W 3 APPT N 17 | N3: 62100 | O3: CALAIS | P3: FRANCE | R3: 0670781033 | T3: OUI | U3: +21 ans | V3: Carambole | X3: 45903 | Y3: FRANCE | Z3: NON
A4: SAUVAGE DOMINIQUE | B4: 016967P | C4: 32 | D4: 62 | E4: 13364 | F4: CALAIS | G4: DOMINIQUE | H4: SAUVAGE | I4: 1961-07-20 | J4: M | K4: 395 RUE DU VIRVAL | N4: 62100 | O4: CALAIS | P4: FRANCE | R4: 0610863443 | S4: dominique.sauvage@neuf.fr | T4: OUI | U4: +21 ans | V4: Carambole | W4: arbitre | X4: 45894 | Y4: FRANCE | Z4: NON
A5: SAINT GEORGES CLAUDE | B5: 017052W | C5: 32 | D5: 62 | E5: 13364 | F5: CALAIS | G5: CLAUDE | H5: SAINT GEORGES | I5: 1947-06-06 | J5: M | K5: 2316 ROUTE NATIONALE 43 | N5: 62730 | O5: LES ATTAQUES | P5: FRANCE | R5: 0771878141 | S5: watzon9@gmail.com | T5: OUI | U5: +21 ans | V5: Carambole | W5: arbitre | X5: 45895 | Y5: FRANCE | Z5: NON
A6: BRAZY ALAIN | B6: 102980U | C6: 32 | D6: 62 | E6: 13364 | F6: CALAIS | G6: ALAIN | H6: BRAZY | I6: 1955-01-30 | J6: M | K6: 110 RIVIERE D OYE | N6: 62370 | O6: OFFEKERQUE | P6: FRANCE | R6: 0641384118 | S6: alain.brazy@hotmail.fr | T6: OUI | U6: +21 ans | V6: Carambole | W6: arbitre | X6: 45895 | Y6: FRANCE | Z6: NON
A7: COUVREUR JEREMY | B7: 105372U | C7: 32 | D7: 62 | E7: 13364 | F7: CALAIS | G7: JEREMY | H7: COUVREUR | I7: 1985-10-21 | J7: M | K7: 19 PLACE D ARMES | N7: 62610 | O7: ARDRES | P7: FRANCE | R7: 0787245268 | S7: couvreur.jeremy@gmx.fr | T7: OUI | U7: +21 ans | V7: Carambole | X7: 45917 | Y7: FRANCE | Z7: NON
A8: BRAZY FRANCOIS | B8: 105375X | C8: 32 | D8: 62 | E8: 13364 | F8: CALAIS | G8: FRANCOIS | H8: BRAZY | I8: 1981-11-07 | J8: M | K8: 75 RUE PIERRE PAIN | N8: 62370 | O8: OFFEKERQUE | P8: FRANCE | R8: 0663716342 | S8: francoisbrazy@gmail.com | T8: OUI | U8: +21 ans | V8: Carambole | X8: 45903 | Y8: FRANCE | Z8: NON
A9: MARLARD LEOPOLD | B9: 107656Q | C9: 32 | D9: 62 | E9: 13364 | F9: CALAIS | G9: LEOPOLD | H9: MARLARD | I9: 1950-06-25 | J9: M | K9: 625 RUE DE JERUSALEM | N9: 62610 | O9: RODELINGHEM | P9: FRANCE | Q9: 0321821387 | S9: leopoldmarlard@wanadoo.fr | T9: OUI | U9: +21 ans | V9: Carambole | X9: 45903 | Y9: FRANCE | Z9: NON
A10: MARLOT MICHEL | B10: 114109V | C10: 32 | D10: 62 | E10: 13364 | F10: CALAIS | G10: MICHEL | H10: MARLOT | I10: 1940-01-25 | J10: M | K10: 109 RUE MOLLIEN | N10: 62100 | O10: CALAIS | P10: FRANCE | Q10: 0643152568 | T10: OUI | U10: +21 ans | V10: Carambole | X10: 45908 | Y10: FRANCE | Z10: NON
A11: LIMOUSIN ROLAND | B11: 114972A | C11: 32 | D11: 62 | E11: 13364 | F11: CALAIS | G11: ROLAND | H11: LIMOUSIN | I11: 1940-09-15 | J11: M | K11: 484 RUE MARECHAL DE LATTRE DE TASSIGNY | N11: 62100 | O11: CALAIS | P11: FRANCE | Q11: 0321361473 | R11: 0650267832 | T11: OUI | U11: +21 ans | V11: Carambole | X11: 45908 | Y11: FRANCE | Z11: NON
A12: LASSALLE ROGER | B12: 121433N | C12: 32 | D12: 62 | E12: 13364 | F12: CALAIS | G12: ROGER | H12: LASSALLE | I12: 1940-02-02 | J12: M | K12: 6 ALLEE DES MELEZES | N12: 62231 | O12: COQUELLES | P12: FRANCE | Q12: 0321358342 | R12: 0664544861 | S12: rogermicheline2@gmail.com | T12: OUI | U12: +21 ans | V12: Carambole | X12: 45929 | Y12: FRANCE | Z12: NON
A13: VIEILLARD DANIEL | B13: 124437B | C13: 32 | D13: 62 | E13: 13364 | F13: CALAIS | G13: DANIEL | H13: VIEILLARD | I13: 1943-04-24 | J13: M | K13: 24 ROUTE DE SERQUES | N13: 62910 | O13: MOULLE | P13: FRANCE | Q13: 0321936968 | R13: 0686491886 | S13: daniel-vieillard@wanadoo.fr | T13: OUI | U13: +21 ans | V13: Carambole | X13: 45912 | Y13: FRANCE | Z13: NON
A14: FLAHAUT PATRICE | B14: 127702Q | C14: 32 | D14: 62 | E14: 13364 | F14: CALAIS | G14: PATRICE | H14: FLAHAUT | I14: 1956-03-23 | J14: M | K14: 257 AVENUE DE VERDUN | N14: 62730 | O14: MARCK | P14: FRANCE | Q14: 0321368866 | S14: p.flahaut62730@gmail.com | T14: OUI | U14: +21 ans | V14: Carambole | X14: 45895 | Y14: FRANCE | Z14: NON
A15: HEMBERT ALAIN | B15: 142782Q | C15: 32 | D15: 62 | E15: 13364 | F15: CALAIS | G15: ALAIN | H15: HEMBERT | I15: 1952-06-29 | J15: M | K15: 54 RUE LOUIS DENIS | N15: 62137 | O15: COULOGNE | P15: FRANCE | R15: 0672664638 | S15: alain.hembert52@orange.fr | T15: OUI | U15: +21 ans | V15: Carambole | W15: arbitre | X15: 45903 | Y15: FRANCE | Z15: NON
A16: LOGEZ MICHEL | B16: 145529H | C16: 32 | D16: 62 | E16: 13364 | F16: CALAIS | G16: MICHEL | H16: LOGEZ | I16: 1955-08-09 | J16: M | K16: 116 RUE DOLAIN | N16: 62100 | O16: CALAIS | P16: FRANCE | R16: 0769589422 | S16: michel.loge@free.fr | T16: OUI | U16: +21 ans | V16: Carambole | X16: 45912 | Y16: FRANCE | Z16: NON
A17: LOOSEN FRANCOIS | B17: 150872R | C17: 32 | D17: 62 | E17: 13364 | F17: CALAIS | G17: FRANCOIS | H17: LOOSEN | I17: 1958-08-09 | J17: M | K17: 451 RUE DE LA MAIRIE | N17: 62610 | O17: LANDRETHUN LES ARDRES | P17: FRANCE | R17: 0671702076 | S17: f.loosen@free.fr | T17: OUI | U17: +21 ans | V17: Blackball | X17: 45910 | Y17: FRANCE | Z17: NON
A18: RENAUX FABIEN | B18: 152240D | C18: 32 | D18: 62 | E18: 13364 | F18: CALAIS | G18: FABIEN | H18: RENAUX | I18: 1982-06-01 | J18: M | K18: 28B RUE DU CHATEAU | N18: 62340 | O18: GUINES | P18: FRANCE | R18: 0650942608 | S18: fataca@gmail.com | T18: OUI | U18: +21 ans | V18: Blackball | X18: 45908 | Y18: FRANCE | Z18: NON
A19: BEKAERT DIMITRI | B19: 152241E | C19: 32 | D19: 62 | E19: 13364 | F19: CALAIS | G19: DIMITRI | H19: BEKAERT | I19: 1990-06-14 | J19: M | K19: 1555 AVENUE DE CALAIS | N19: 62730 | O19: MARCK | P19: FRANCE | R19: 0660591701 | S19: dimitri.bekaert@hotmail.fr | T19: OUI | U19: +21 ans | V19: Blackball | X19: 45964 | Y19: FRANCE | Z19: NON
A20: FORTIN ALEXANDRE | B20: 161429R | C20: 32 | D20: 62 | E20: 13364 | F20: CALAIS | G20: ALEXANDRE | H20: FORTIN | I20: 1989-07-30 | J20: M | K20: 2138B RUE DU HAUT MONT | N20: 62850 | O20: ALEMBON | P20: FRANCE | R20: 0648163025 | S20: alexfortin62@gmail.com | T20: OUI | U20: +21 ans | V20: Blackball | X20: 45912 | Y20: FRANCE | Z20: NON
A21: VERBREGUE SAMUEL | B21: 175732N | C21: 32 | D21: 62 | E21: 13364 | F21: CALAIS | G21: SAMUEL | H21: VERBREGUE | I21: 1980-07-04 | J21: M | K21: 88 RUE DU VANNEAU HUPPE | N21: 62730 | O21: MARCK | P21: FRANCE | R21: 0670857423 | S21: samuel.verbregue@orange.fr | T21: OUI | U21: +21 ans | V21: Carambole | X21: 45903 | Y21: FRANCE | Z21: NON
A22: HINGRAND NATHAN | B22: 177601V | C22: 32 | D22: 62 | E22: 13364 | F22: CALAIS | G22: NATHAN | H22: HINGRAND | I22: 2010-09-25 | J22: M | K22: 220 RUE DES EGRETTES | N22: 62730 | O22: MARCK | P22: FRANCE | R22: 0680811195 | S22: thingrand@gmail.com | T22: OUI | U22: -21 ans | V22: Carambole | X22: 45910 | Y22: FRANCE | Z22: NON
A23: POLLET JEAN MICHEL | B23: 179301S | C23: 32 | D23: 62 | E23: 13364 | F23: CALAIS | G23: JEAN MICHEL | H23: POLLET | I23: 1949-03-10 | J23: M | K23: 47 RUE RENE CASSIN | N23: 62100 | O23: CALAIS | P23: FRANCE | R23: 0673049383 | S23: patricia-maxant@outlook.com | T23: OUI | U23: +21 ans | V23: Carambole | X23: 45912 | Y23: FRANCE | Z23: NON
A24: LECOMTE LIONEL | B24: 181335D | C24: 32 | D24: 62 | E24: 13364 | F24: CALAIS | G24: LIONEL | H24: LECOMTE | I24: 1961-05-08 | J24: M | K24: 108 RUE PEARSON | N24: 62100 | O24: CALAIS | P24: FRANCE | R24: 0667702504 | S24: lionellecomte@free.fr | T24: OUI | U24: +21 ans | V24: Carambole | X24: 45903 | Y24: FRANCE | Z24: NON
A25: DEREPPER ALAIN | B25: 181357C | C25: 32 | D25: 62 | E25: 13364 | F25: CALAIS | G25: ALAIN | H25: DEREPPER | I25: 1953-07-18 | J25: M | K25: 20 RUE GALILE | N25: 62100 | O25: CALAIS | P25: FRANCE | R25: 0678129409 | S25: alain.derepper@hotmail.fr | T25: OUI | U25: +21 ans | V25: Carambole | X25: 45908 | Y25: FRANCE | Z25: NON
A26: PARKER STUART | B26: 181518C | C26: 32 | D26: 62 | E26: 13364 | F26: CALAIS | G26: STUART | H26: PARKER | I26: 1969-11-20 | J26: M | K26: 76 BOULEVARD DE L EGALITE | N26: 62100 | O26: CALAIS | P26: FRANCE | Q26: 0781604588 | S26: alain.derepper@hotmail.fr | T26: OUI | U26: +21 ans | V26: Blackball | X26: 45910 | Y26: FRANCE | Z26: NON
A27: DELAROUZEE MARC ANTOINE | B27: 182558H | C27: 32 | D27: 62 | E27: 13364 | F27: CALAIS | G27: MARC ANTOINE | H27: DELAROUZEE | I27: 2006-09-21 | J27: M | K27: 43 ROUTE DE GRAVELINES | N27: 62100 | O27: CALAIS | P27: FRANCE | R27: 0661653238 | T27: OUI | U27: -21 ans | V27: Blackball | X27: 46010 | Y27: FRANCE | Z27: OUI
A28: ASSISE VINCENT | B28: 182921C | C28: 32 | D28: 62 | E28: 13364 | F28: CALAIS | G28: VINCENT | H28: ASSISE | I28: 1963-06-05 | J28: M | K28: 50 RUE PAUL LANGEVIN | N28: 62100 | O28: CALAIS | P28: FRANCE | R28: 0749921774 | S28: assisevincent@gmail.com | T28: OUI | U28: +21 ans | V28: Carambole | X28: 45903 | Y28: FRANCE | Z28: NON
A29: BOIN JEAN LUC | B29: 182923E | C29: 32 | D29: 62 | E29: 13364 | F29: CALAIS | G29: JEAN LUC | H29: BOIN | I29: 1957-04-27 | J29: M | K29: 70 RUE VINCENT VAN GOGH | N29: 62100 | O29: CALAIS | P29: FRANCE | R29: 0672788834 | T29: OUI | U29: +21 ans | V29: Blackball | X29: 45912 | Y29: FRANCE | Z29: NON
A30: DEVOS STEPHANE | B30: 185939H | C30: 32 | D30: 62 | E30: 13364 | F30: CALAIS | G30: STEPHANE | H30: DEVOS | I30: 1978-12-19 | J30: M | K30: 526 AVENUE DE CALAIS | N30: 62730 | O30: MARCK | P30: FRANCE | R30: 0662763957 | S30: sdevos62@gmail.com | T30: OUI | U30: +21 ans | V30: Blackball | X30: 45903 | Y30: FRANCE | Z30: NON
A31: LEVITRE ESTEBAN | B31: 189460K | C31: 32 | D31: 62 | E31: 13364 | F31: CALAIS | G31: ESTEBAN | H31: LEVITRE | I31: 2011-06-26 | J31: M | K31: 28 RUE DU 11 NOVEMBRE | N31: 62100 | O31: CALAIS | P31: FRANCE | Q31: 06351177454 | S31: estebanlevitre@gmail.com | T31: OUI | U31: -21 ans | V31: Blackball | X31: 45912 | Y31: FRANCE | Z31: NON
A32: DELEGLISE TONY | B32: 189550H | C32: 32 | D32: 62 | E32: 13364 | F32: CALAIS | G32: TONY | H32: DELEGLISE | I32: 2012-11-30 | J32: M | K32: 256 AVE ANTOINE DE SAINT EXUPERY | N32: 62100 | O32: CALAIS | P32: FRANCE | Q32: 0682054414 | S32: delys.fanny@neuf.fr | T32: OUI | U32: -21 ans | V32: Blackball | X32: 45923 | Y32: FRANCE | Z32: NON
A33: TOULOTTE THEO | B33: 190761Z | C33: 32 | D33: 62 | E33: 13364 | F33: CALAIS | G33: THEO | H33: TOULOTTE | I33: 1995-01-27 | J33: M | K33: RUE COURTERVEAU | N33: 62100 | O33: CALAIS | P33: FRANCE | R33: 0656784495 | S33: toulottetheo62@gmail.com | T33: OUI | U33: Decouverte | V33: Blackball | X33: 45908 | Y33: FRANCE | Z33: NON
A34: LEMAIRE ANNICK | B34: 190762A | C34: 32 | D34: 62 | E34: 13364 | F34: CALAIS | G34: ANNICK | H34: LEMAIRE | I34: 1964-10-23 | J34: F | K34: 3 AVENUE MARCEL COISNE | L34: RESIDENCE POITOU APPT 02 | N34: 59150 | O34: NIEPPE | P34: FRANCE | R34: 0658029180 | S34: Jac_8@hotmail.fr | T34: OUI | U34: Decouverte | V34: Blackball | X34: 45908 | Y34: FRANCE | Z34: NON
A35: HINGRAND LISE | B35: 190877A | C35: 32 | D35: 62 | E35: 13364 | F35: CALAIS | G35: LISE | H35: HINGRAND | I35: 2013-02-18 | J35: F | K35: 220 RUE DES EGRETTES | N35: 62730 | O35: MARCK | P35: FRANCE | R35: 0680811195 | T35: OUI | U35: Avenir | V35: Blackball | X35: 45910 | Y35: FRANCE | Z35: NON
A36: HINGRAND TOM | B36: 190878B | C36: 32 | D36: 62 | E36: 13364 | F36: CALAIS | G36: TOM | H36: HINGRAND | I36: 2017-02-18 | J36: M | K36: 220 RUE DES EGRETTES | N36: 62730 | O36: MARCK | P36: FRANCE | R36: 0680811195 | T36: OUI | U36: Avenir | V36: Blackball | X36: 45910 | Y36: FRANCE | Z36: NON
A37: SAINT MAXIN NOE | B37: 191323K | C37: 32 | D37: 62 | E37: 13364 | F37: CALAIS | G37: NOE | H37: SAINT MAXIN | I37: 2013-09-23 | J37: M | K37: 63 RUE DIDEROT | N37: 62100 | O37: CALAIS | P37: FRANCE | Q37: 0767383037 | S37: S.SAINTMAXIN@gmail.com | T37: OUI | U37: Avenir | V37: Carambole | X37: 45919 | Y37: FRANCE | Z37: NON
A38: PETIT EMMANUEL | B38: 191466Q | C38: 32 | D38: 62 | E38: 13364 | F38: CALAIS | G38: EMMANUEL | H38: PETIT | I38: 1965-06-02 | J38: M | K38: 244 RUE MOURON | N38: 62100 | O38: CALAIS | P38: FRANCE | Q38: 0616797835 | S38: emmanuelpetit22@gmail.com | T38: OUI | U38: Decouverte | V38: Carambole | X38: 45923 | Y38: FRANCE | Z38: NON
A39: CAPRON FREDERIC | B39: 191741P | C39: 32 | D39: 62 | E39: 13364 | F39: CALAIS | G39: FREDERIC | H39: CAPRON | I39: 1964-06-06 | J39: M | K39: 12 ALLEE BEETHOVEN | N39: 62231 | O39: BLERIOT PLAGE | P39: FRANCE | R39: 0662594404 | S39: fcapron.fc@gmail.com | T39: OUI | U39: Decouverte | V39: Carambole | X39: 45929 | Y39: FRANCE | Z39: NON
A40: LOESENER MATHIEU | B40: 192013K | C40: 32 | D40: 62 | E40: 13364 | F40: CALAIS | G40: MATHIEU | H40: LOESENER | I40: 1992-11-26 | J40: M | K40: 60 RUE ROBESPIERRE | N40: 62100 | O40: CALAIS | P40: FRANCE | R40: 0658208991 | S40: loesener.mathieu@gmail.com | T40: OUI | U40: Decouverte | V40: Blackball | X40: 45936 | Y40: FRANCE | Z40: NON
A41: DEJARDIN VALENTIN | B41: 192015M | C41: 32 | D41: 62 | E41: 13364 | F41: CALAIS | G41: VALENTIN | H41: DEJARDIN | I41: 2006-12-22 | J41: M | K41: 165 ROUTE DE ZUTKERQUE | N41: 62370 | O41: AUDRUICQ | P41: FRANCE | R41: 0611776012 | S41: BRUNET.VALENTIN62730@GMAIL.COM | T41: OUI | U41: Avenir | V41: Blackball | X41: 45936 | Y41: FRANCE | Z41: NON
A42: LOESNER MATHIEU | B42: 192530X | C42: 32 | D42: 62 | E42: 13364 | F42: CALAIS | G42: MATHIEU | H42: LOESNER | I42: 1992-11-26 | J42: M | K42: 60 RUE ROBESPIERRE | N42: 62100 | O42: CALAIS | P42: FRANCE | Q42: 0658208991 | S42: loesemer-mathieu@gmail.com | T42: OUI | U42: Decouverte | V42: Carambole | X42: 45954 | Y42: FRANCE | Z42: NON
A43: DELEGLISE FRANCOISE | B43: 192683N | C43: 32 | D43: 62 | E43: 13364 | F43: CALAIS | G43: FRANCOISE | H43: DELEGLISE | I43: 1962-09-02 | J43: F | K43: 695 AVENUE DE L AEROPORT | N43: 62730 | O43: MARCK | P43: FRANCE | Q43: 062762667795 | S43: jeanluc-et-francoise@live.fr | T43: OUI | U43: Decouverte | V43: Blackball | X43: 45965 | Y43: FRANCE | Z43: NON
A44: DETRE JEAN FRANCOIS | B44: 192684P | C44: 32 | D44: 62 | E44: 13364 | F44: CALAIS | G44: JEAN FRANCOIS | H44: DETRE | I44: 1968-04-06 | J44: M | K44: 6 RUE DU COMMANDANT BONNINGUES | N44: 62100 | O44: CALAIS | P44: FRANCE | R44: 0674675173 | S44: alain.brazy@hotmail.fr | T44: OUI | U44: Decouverte | V44: Blackball | X44: 45965 | Y44: FRANCE | Z44: NON
A45: TOULOTTE NORBERT | B45: 193056T | C45: 32 | D45: 62 | E45: 13364 | F45: CALAIS | G45: NORBERT | H45: TOULOTTE | I45: 2002-05-30 | J45: M | K45: 23 RUE SAINTE BEUVE | N45: 62100 | O45: CALAIS | P45: FRANCE | R45: 0622871136 | S45: NORBERT.TOULOTTE62@GMAIL.COM | T45: OUI | U45: Decouverte | V45: Blackball | X45: 45988 | Y45: FRANCE | Z45: NON
A46: RENAUX TAIS | B46: 193434E | C46: 32 | D46: 62 | E46: 13364 | F46: CALAIS | G46: TAIS | H46: RENAUX | I46: 2013-12-07 | J46: M | K46: 69 RUE DES DAMES D ETRON | N46: 62340 | O46: GUINES | P46: FRANCE | Q46: 0658493179 | S46: alain.brazy@hotmail.fr | T46: OUI | U46: Avenir | V46: Blackball | X46: 46010 | Y46: FRANCE | Z46: NON
A47: DUFOSSE SIMON | B47: 193537R | C47: 32 | D47: 62 | E47: 13364 | F47: CALAIS | G47: SIMON | H47: DUFOSSE | I47: 2006-05-03 | J47: M | K47: 64 RUE PAUL GAUGUIN | N47: 62730 | O47: MARCK | P47: FRANCE | Q47: 0777233036 | S47: simonduf2006@gmail.com | T47: OUI | U47: Avenir | V47: Blackball | X47: 46027 | Y47: FRANCE | Z47: NON
A48: HEBBEN PIERRE | B48: 016518I | C48: 32 | D48: 62 | E48: 13612 | F48: ARRAS | G48: PIERRE | H48: HEBBEN | I48: 1938-09-14 | J48: M | K48: 93 RUE JEAN GOUJON | N48: 62000 | O48: DAINVILLE | P48: FRANCE | Q48: 0321710799 | R48: 0630207600 | S48: lilianehebben@orange.fr | T48: OUI | U48: +21 ans | V48: Carambole | X48: 45946 | Y48: FRANCE | Z48: NON
A49: LEDENT PATRICE | B49: 016519J | C49: 32 | D49: 62 | E49: 13612 | F49: ARRAS | G49: PATRICE | H49: LEDENT | I49: 1951-06-14 | J49: M | K49: 19 RUE LAVAL | N49: 62217 | O49: ACHICOURT | P49: FRANCE | R49: 0766247449 | S49: pledent51@gmail.com | T49: OUI | U49: +21 ans | V49: Carambole | X49: 45953 | Y49: FRANCE | Z49: NON
A50: OBLET FREDDY | B50: 104534O | C50: 32 | D50: 62 | E50: 13612 | F50: ARRAS | G50: FREDDY | H50: OBLET | I50: 1969-09-30 | J50: M | K50: 95 AVENUE GENERAL FAIDHERBE | N50: 80300 | O50: ALBERT | P50: FRANCE | R50: 0671402820 | S50: obletfreddygq@gmail.com | T50: OUI | U50: +21 ans | V50: Blackball | W50: arbitre | X50: 45899 | Y50: FRANCE | Z50: OUI
A51: GEETS PATRICE | B51: 126847T | C51: 32 | D51: 62 | E51: 13612 | F51: ARRAS | G51: PATRICE | H51: GEETS | I51: 1959-08-28 | J51: M | K51: 18 RUE VAN DYCK | N51: 62217 | O51: BEAURAINS | P51: FRANCE | R51: 33780432127 | S51: gtspat59@gmail.com | T51: OUI | U51: +21 ans | V51: Carambole | X51: 45908 | Y51: FRANCE | Z51: NON
A52: CREPIN ERIC | B52: 133410E | C52: 32 | D52: 62 | E52: 13612 | F52: ARRAS | G52: ERIC | H52: CREPIN | I52: 1978-08-19 | J52: M | K52: 109 RUE DE DOUAI | N52: 62000 | O52: ARRAS | P52: FRANCE | R52: 0649273392 | S52: eric_crepin62@orange.fr | T52: OUI | U52: +21 ans | V52: Snooker | X52: 45893 | Y52: FRANCE | Z52: NON
A53: MOUVIELLE ANTONY | B53: 148666T | C53: 32 | D53: 62 | E53: 13612 | F53: ARRAS | G53: ANTONY | H53: MOUVIELLE | I53: 1977-03-14 | J53: M | K53: 84 RUE DE L EGLISE | N53: 62149 | O53: ANNEQUIN | P53: FRANCE | R53: 0647122431 | S53: mouvielle.antony@gmail.com | T53: OUI | U53: +21 ans | V53: Blackball | X53: 45979 | Y53: FRANCE | Z53: NON
A54: DELAIRE SYLVAIN | B54: 152184S | C54: 32 | D54: 62 | E54: 13612 | F54: ARRAS | G54: SYLVAIN | H54: DELAIRE | I54: 1965-08-08 | J54: M | K54: 33 RUE DE SIMENCOURT | N54: 62123 | O54: BEAUMETZ LES LOGES | P54: FRANCE | R54: 0671343828 | S54: delaire.sylvain@orange.fr | T54: OUI | U54: +21 ans | V54: Carambole | X54: 45903 | Y54: FRANCE | Z54: NON
A55: LEVECQUE JOHNNY | B55: 152752K | C55: 32 | D55: 62 | E55: 13612 | F55: ARRAS | G55: JOHNNY | H55: LEVECQUE | I55: 1993-01-02 | J55: M | K55: 11A RUE JEAN JAURES | N55: 62290 | O55: NOEUX LES MINES | P55: FRANCE | R55: 0769583423 | S55: monsieurlevecque@gmail.com | T55: OUI | U55: +21 ans | V55: Blackball | X55: 46012 | Y55: FRANCE | Z55: NON
A56: CREPIN LAURENT | B56: 153082T | C56: 32 | D56: 62 | E56: 13612 | F56: ARRAS | G56: LAURENT | H56: CREPIN | I56: 1971-12-28 | J56: M | K56: 2 RUE CAMILLE CAMUS | N56: 62123 | O56: BERLES AU BOIS | P56: FRANCE | R56: 0680308968 | S56: platrerie.crepin@orange.fr | T56: OUI | U56: +21 ans | V56: Blackball | X56: 45900 | Y56: FRANCE | Z56: NON
A57: BOURGOIS CEDRIC | B57: 155664A | C57: 32 | D57: 62 | E57: 13612 | F57: ARRAS | G57: CEDRIC | H57: BOURGOIS | I57: 1982-03-22 | J57: M | K57: 10 RUE FRANCOIS CARLIER | N57: 62530 | O57: HERSIN COUPIGNY | P57: FRANCE | R57: 0665577874 | S57: cedbourg@hotmail.fr | T57: OUI | U57: +21 ans | V57: Blackball | X57: 45903 | Y57: FRANCE | Z57: OUI
A58: PIRLET VICTOR | B58: 157857J | C58: 32 | D58: 62 | E58: 13612 | F58: ARRAS | G58: VICTOR | H58: PIRLET | I58: 1962-08-29 | J58: M | K58: 4 ALLEE DES ROSATI | L58: APPART 11 | N58: 62000 | O58: ARRAS | P58: FRANCE | R58: 0629641008 | S58: victorpirlet@gmail.com | T58: OUI | U58: +21 ans | V58: Snooker | X58: 45893 | Y58: FRANCE | Z58: NON
A59: DERLIQUE JEAN CHARLES | B59: 157860M | C59: 32 | D59: 62 | E59: 13612 | F59: ARRAS | G59: JEAN CHARLES | H59: DERLIQUE | I59: 1948-02-16 | J59: M | K59: 122 ROUTE D ARRAS | N59: 62690 | O59: CAMBLAIN L ABBE | P59: FRANCE | R59: 0603180612 | S59: jcderlique@sfr.fr | T59: OUI | U59: +21 ans | V59: Blackball | X59: 45891 | Y59: FRANCE | Z59: NON
A60: GILLES ANDY | B60: 157863Q | C60: 32 | D60: 62 | E60: 13612 | F60: ARRAS | G60: ANDY | H60: GILLES | I60: 1986-03-28 | J60: M | K60: 12 RUE PIERRE ET MARIE CURIE | N60: 62121 | O60: COURCELLES LE COMTE | P60: FRANCE | R60: 0647090212 | S60: andy.gilles@laposte.net | T60: OUI | U60: +21 ans | V60: Snooker | X60: 45893 | Y60: FRANCE | Z60: NON
A61: SZYNCZEWSKI PHILIPPE | B61: 158029W | C61: 32 | D61: 62 | E61: 13612 | F61: ARRAS | G61: PHILIPPE | H61: SZYNCZEWSKI | I61: 1972-07-24 | J61: M | K61: 21 RUE GARROS | N61: 62300 | O61: ELEU DIT LEAUWETTE | P61: FRANCE | R61: 0612417906 | S61: szynczewski.philippe@neuf.fr | T61: NON | U61: +21 ans | V61: Blackball | X61: 45899 | Y61: FRANCE | Z61: NON
A62: COTTON LUCILE | B62: 159088X | C62: 32 | D62: 62 | E62: 13612 | F62: ARRAS | G62: LUCILE | H62: COTTON | I62: 1978-09-17 | J62: F | K62: 21 RUE GARROS | N62: 62300 | O62: ELEU DIT LEAUWETTE | P62: FRANCE | R62: 0778181101 | S62: cotton.lucile@gmail.com | T62: OUI | U62: +21 ans | V62: Snooker | X62: 45899 | Y62: FRANCE | Z62: NON
A63: PINCHON BENOIT | B63: 159741G | C63: 32 | D63: 62 | E63: 13612 | F63: ARRAS | G63: BENOIT | H63: PINCHON | I63: 1972-06-15 | J63: M | K63: 44 RESIDENCE LA COUTURE | N63: 62128 | O63: WANCOURT | P63: FRANCE | R63: 0616743222 | S63: bp5972@gmail.com | T63: OUI | U63: +21 ans | V63: Blackball | X63: 45903 | Y63: FRANCE | Z63: NON
A64: LHOMME SYLVAIN | B64: 160905X | C64: 32 | D64: 62 | E64: 13612 | F64: ARRAS | G64: SYLVAIN | H64: LHOMME | I64: 1954-12-14 | J64: M | K64: 30 RUE GAMBETTA ENT 2 APPART 2 | N64: 62580 | O64: VIMY | P64: FRANCE | R64: 0603065907 | S64: sylhomme@sfr.fr | T64: OUI | U64: +21 ans | V64: Snooker | X64: 45893 | Y64: FRANCE | Z64: NON
A65: RYBAK RAPHAEL | B65: 162465S | C65: 32 | D65: 62 | E65: 13612 | F65: ARRAS | G65: RAPHAEL | H65: RYBAK | I65: 1974-10-01 | J65: M | K65: 71 RUE MAURICE THOREZ | N65: 59146 | O65: PECQUENCOURT | P65: FRANCE | R65: 0650353117 | S65: rybakraphael@gmail.com | T65: OUI | U65: +21 ans | V65: Snooker | X65: 45894 | Y65: FRANCE | Z65: NON
A66: =H66 & " " &G66 -> LAVALARD LUCIAN | B66: 163808C | C66: 32 | D66: 62 | E66: 13612 | F66: ARRAS | G66: LUCIAN | H66: LAVALARD | I66: 2010-02-24 | J66: M | K66: 66 RUE JEAN JAURES | N66: 59161 | O66: ESCAUDOEUVRES | P66: FRANCE | R66: 0602480268 | S66: sophie.lavalard59@gmail.com | T66: OUI | U66: -21 ans | V66: Blackball | X66: 45915 | Y66: FRANCE | Z66: NON
A67: PENIN OLIVIER | B67: 166014A | C67: 32 | D67: 62 | E67: 13612 | F67: ARRAS | G67: OLIVIER | H67: PENIN | I67: 1974-01-23 | J67: M | K67: 415 PAVE FRUIT APT 2 | N67: 59850 | O67: NIEPPE | P67: FRANCE | R67: 0609200695 | S67: olivierdu6259@hotmail.fr | T67: OUI | U67: +21 ans | V67: Blackball | X67: 45893 | Y67: FRANCE | Z67: NON
A68: DI LIBERTO ROSALIA | B68: 166045J | C68: 32 | D68: 62 | E68: 13612 | F68: ARRAS | G68: ROSALIA | H68: DI LIBERTO | I68: 1966-08-03 | J68: F | K68: 45 RUE MAURICE ALTAZIN | N68: 62210 | O68: AVION | P68: FRANCE | R68: 0676683390 | S68: rosalia.diliberto@orange.fr | T68: OUI | U68: +21 ans | V68: Snooker | X68: 45893 | Y68: FRANCE | Z68: NON
A69: HERMANT PIERRE | B69: 166062C | C69: 32 | D69: 62 | E69: 13612 | F69: ARRAS | G69: PIERRE | H69: HERMANT | I69: 1984-05-10 | J69: M | K69: 23 RUE DES ACACIAS | N69: 62300 | O69: ELEU DIT LEUWETTE | P69: FRANCE | R69: 0689201084 | S69: hermant.p@free.fr | T69: OUI | U69: +21 ans | V69: Snooker | X69: 45899 | Y69: FRANCE | Z69: NON
A70: ROLLAND JEAN MICHEL | B70: 166065F | C70: 32 | D70: 62 | E70: 13612 | F70: ARRAS | G70: JEAN MICHEL | H70: ROLLAND | I70: 1955-02-08 | J70: M | K70: 260 RUE BERTIE ALBRECHT | N70: 62110 | O70: HENIN BEAUMONT | P70: FRANCE | R70: 0681342444 | S70: jmichelrol62@gmail.com | T70: OUI | U70: +21 ans | V70: Snooker | X70: 45893 | Y70: FRANCE | Z70: NON
A71: FRENOIS ALEX | B71: 166977X | C71: 32 | D71: 62 | E71: 13612 | F71: ARRAS | G71: ALEX | H71: FRENOIS | I71: 2002-11-10 | J71: M | K71: 19 RUE D ARMENTIERES | N71: 59800 | O71: LILLE | P71: FRANCE | R71: 0768989624 | S71: frenoisalextravail@gmail.com | T71: OUI | U71: +21 ans | V71: Blackball | X71: 45893 | Y71: FRANCE | Z71: NON
A72: DUBRUNQUEZ MAXIME | B72: 168676T | C72: 32 | D72: 62 | E72: 13612 | F72: ARRAS | G72: MAXIME | H72: DUBRUNQUEZ | I72: 1988-09-04 | J72: M | K72: 58 RUE DU MARAIS | N72: 59268 | O72: FRESSIES | P72: FRANCE | R72: 0674643965 | S72: maxime.dubrunquez@gmail.com | T72: OUI | U72: +21 ans | V72: Blackball | X72: 45894 | Y72: FRANCE | Z72: NON
A73: VAN WYNENDAELE LIDWINE | B73: 169165A | C73: 32 | D73: 62 | E73: 13612 | F73: ARRAS | G73: LIDWINE | H73: VAN WYNENDAELE | I73: 1977-08-01 | J73: F | K73: 15 RUE D ORLEANS | N73: 62217 | O73: ACHICOURT | P73: FRANCE | R73: 0699086612 | S73: thierry.lidwine@free.fr | T73: OUI | U73: +21 ans | V73: Blackball | X73: 45893 | Y73: FRANCE | Z73: NON
A74: REMY FREDERIC | B74: 170303M | C74: 32 | D74: 62 | E74: 13612 | F74: ARRAS | G74: FREDERIC | H74: REMY | I74: 1972-08-31 | J74: M | K74: 1BIS RUE DE NOYELLE VION | N74: 62690 | O74: IZEL LES HAMEAU | P74: FRANCE | S74: frederemy@wanadoo.fr | T74: OUI | U74: +21 ans | V74: Snooker | X74: 45893 | Y74: FRANCE | Z74: NON
A75: LANDRY PATRICK | B75: 170849F | C75: 32 | D75: 62 | E75: 13612 | F75: ARRAS | G75: PATRICK | H75: LANDRY | I75: 1973-07-12 | J75: M | K75: 59 RUE D ATHIES | N75: 62223 | O75: ST LAURENT BLANGY | P75: FRANCE | R75: 0628228643 | S75: landry.patrick@laposte.fr | T75: OUI | U75: +21 ans | V75: Snooker | X75: 45896 | Y75: FRANCE | Z75: OUI
A76: BRABANT DAVID | B76: 171205S | C76: 32 | D76: 62 | E76: 13612 | F76: ARRAS | G76: DAVID | H76: BRABANT | I76: 1974-12-16 | J76: M | K76: 288 RUE LEONIE MAIAUX | N76: 59500 | O76: DOUAI | P76: FRANCE | R76: 0611254080 | S76: d.brabant@hotmail.fr | T76: OUI | U76: +21 ans | V76: Snooker | X76: 45891 | Y76: FRANCE | Z76: OUI
A77: PONTLEVOY JEAN LOUIS | B77: 171358J | C77: 32 | D77: 62 | E77: 13612 | F77: ARRAS | G77: JEAN LOUIS | H77: PONTLEVOY | I77: 1987-04-05 | J77: M | K77: 6 RUE JOSEPH MARIE JACQUARD | N77: 62590 | O77: OIGNIES | P77: FRANCE | R77: 0764442436 | S77: pontlevoy62590@gmail.com | T77: OUI | U77: +21 ans | V77: Snooker | X77: 45903 | Y77: FRANCE | Z77: NON
A78: WAILLY CHRISTOPHE | B78: 171869P | C78: 32 | D78: 62 | E78: 13612 | F78: ARRAS | G78: CHRISTOPHE | H78: WAILLY | I78: 1974-01-10 | J78: M | K78: 19 CHEMIN D AUBIGNY | N78: 62144 | O78: ACQ | P78: FRANCE | R78: 0661208792 | S78: waiceman46@gmail.com | T78: OUI | U78: +21 ans | V78: Blackball | X78: 45894 | Y78: FRANCE | Z78: NON
A79: DEMARLE ELOISE | B79: 171897V | C79: 32 | D79: 62 | E79: 13612 | F79: ARRAS | G79: ELOISE | H79: DEMARLE | I79: 2007-09-28 | J79: F | K79: 15 RUE D ORLEANS | N79: 62217 | O79: ACHICOURT | P79: FRANCE | R79: 0766229424 | S79: demarleeloise@gmail.com | T79: OUI | U79: -21 ans | V79: Blackball | X79: 45893 | Y79: FRANCE | Z79: NON
A80: THUNE NICOLAS | B80: 173437T | C80: 32 | D80: 62 | E80: 13612 | F80: ARRAS | G80: NICOLAS | H80: THUNE | I80: 1981-01-10 | J80: M | K80: 20 RUE ALPHONSE DAUDET | N80: 59560 | O80: COMINES | P80: FRANCE | R80: 0668707043 | S80: nicothune@gmail.com | T80: OUI | U80: +21 ans | V80: Blackball | W80: arbitre | X80: 45893 | Y80: FRANCE | Z80: OUI
A81: THUNE DAVID | B81: 173438V | C81: 32 | D81: 62 | E81: 13612 | F81: ARRAS | G81: DAVID | H81: THUNE | I81: 1977-05-01 | J81: M | K81: 20 RUE ALPHONSE DAUDET | N81: 59560 | O81: COMINES | P81: FRANCE | R81: 0768227101 | S81: thunedavid@gmail.com | T81: OUI | U81: +21 ans | V81: Blackball | W81: arbitre | X81: 45893 | Y81: FRANCE | Z81: OUI
A82: LAISNE THOMAS | B82: 173439W | C82: 32 | D82: 62 | E82: 13612 | F82: ARRAS | G82: THOMAS | H82: LAISNE | I82: 1984-01-25 | J82: M | K82: 33 RUE DE GAND | N82: 59960 | O82: NEUVILLE EN FERRAIN | P82: FRANCE | R82: 0665680280 | S82: t.laisne466@laposte.net | T82: OUI | U82: +21 ans | V82: Blackball | X82: 45893 | Y82: FRANCE | Z82: NON
A83: GRUDA JEAN LUC | B83: 174031P | C83: 32 | D83: 62 | E83: 13612 | F83: ARRAS | G83: JEAN LUC | H83: GRUDA | I83: 1966-04-04 | J83: M | K83: 4BIS RUE JOLIOT CURIE | N83: 62144 | O83: CARENCY | P83: FRANCE | R83: 0607973486 | S83: grudski@icloud.com | T83: OUI | U83: +21 ans | V83: Snooker | X83: 45899 | Y83: FRANCE | Z83: NON
A84: MALO ALAIN | B84: 174621F | C84: 32 | D84: 62 | E84: 13612 | F84: ARRAS | G84: ALAIN | H84: MALO | I84: 1976-01-08 | J84: M | K84: 10 RUE MARIE DESLAVIERS | N84: 62270 | O84: FREVENT | P84: FRANCE | R84: 0676887360 | S84: malo.alain@hotmail.fr | T84: OUI | U84: +21 ans | V84: Blackball | X84: 45893 | Y84: FRANCE | Z84: NON
A85: ROSSI XAVIER | B85: 174622G | C85: 32 | D85: 62 | E85: 13612 | F85: ARRAS | G85: XAVIER | H85: ROSSI | I85: 1974-05-08 | J85: M | K85: 2 CITE CONDORCET | N85: 75009 | O85: PARIS | P85: FRANCE | R85: 0629695983 | S85: xavierfoxr@aol.com | T85: OUI | U85: +21 ans | V85: Snooker | X85: 45893 | Y85: FRANCE | Z85: NON
A86: ANNE DENIS | B86: 175293L | C86: 32 | D86: 62 | E86: 13612 | F86: ARRAS | G86: DENIS | H86: ANNE | I86: 1965-09-18 | J86: M | K86: 85 RUE DE CAMBRAI | N86: 62000 | O86: ARRAS | P86: FRANCE | R86: 0651545180 | S86: denis.anne@gmail.com | T86: OUI | U86: +21 ans | V86: Carambole | X86: 45903 | Y86: FRANCE | Z86: NON
A87: HANSCOTTE PIERRE HENRI | B87: 175537B | C87: 32 | D87: 62 | E87: 13612 | F87: ARRAS | G87: PIERRE HENRI | H87: HANSCOTTE | I87: 1985-11-12 | J87: M | K87: 22 RUE PRINCIPALE | N87: 62390 | O87: BEAUVOIR WAVANS | P87: FRANCE | R87: 0630684683 | S87: hph1985@hotmail.fr | T87: OUI | U87: +21 ans | V87: Blackball | X87: 45894 | Y87: FRANCE | Z87: NON
A88: LEDUC PASCAL | B88: 175759S | C88: 32 | D88: 62 | E88: 13612 | F88: ARRAS | G88: PASCAL | H88: LEDUC | I88: 1974-03-26 | J88: M | K88: 27 RUE DES CHENES | N88: 62620 | O88: RUITZ | P88: FRANCE | R88: 0630907582 | S88: p.leduc62@gmail.com | T88: OUI | U88: +21 ans | V88: Snooker | X88: 45896 | Y88: FRANCE | Z88: NON
A89: AFANKOUS SANDRY | B89: 176063Y | C89: 32 | D89: 62 | E89: 13612 | F89: ARRAS | G89: SANDRY | H89: AFANKOUS | I89: 1995-12-09 | J89: M | K89: 13 CARRIERE CHOQUET | N89: 59320 | O89: HAUBOURDIN | P89: FRANCE | R89: 0785891812 | S89: sandry_9@hotmail.fr | T89: OUI | U89: +21 ans | V89: Blackball | X89: 45950 | Y89: FRANCE | Z89: NON
A90: DEBAETS PIERRE | B90: 176235K | C90: 32 | D90: 62 | E90: 13612 | F90: ARRAS | G90: PIERRE | H90: DEBAETS | I90: 1974-01-11 | J90: M | K90: 19 RUE JULES GUESDE | N90: 62118 | O90: BIACHE ST VAAST | P90: FRANCE | R90: 0607167243 | S90: pierredebaets@gmail.com | T90: OUI | U90: +21 ans | V90: Blackball | X90: 45893 | Y90: FRANCE | Z90: NON
A91: THOMAS ANTHONY | B91: 176598E | C91: 32 | D91: 62 | E91: 13612 | F91: ARRAS | G91: ANTHONY | H91: THOMAS | I91: 1971-04-15 | J91: M | K91: 7 MAIL DES ROSATI | L91: APPART 2 | N91: 62000 | O91: ARRAS | P91: FRANCE | R91: 0674660400 | S91: abthomas@live.fr | T91: OUI | U91: +21 ans | V91: Snooker | X91: 45896 | Y91: FRANCE | Z91: NON
A92: WIART ESTELLE | B92: 176834L | C92: 32 | D92: 62 | E92: 13612 | F92: ARRAS | G92: ESTELLE | H92: WIART | I92: 1976-06-12 | J92: F | K92: 249 RESIDENCE LES JARDINS | N92: 62490 | O92: VITRY EN ARTOIS | P92: FRANCE | R92: 0786712602 | S92: estelle.wiart01@orange.fr | T92: OUI | U92: +21 ans | V92: Blackball | X92: 45925 | Y92: FRANCE | Z92: NON
A93: WIART VINCENT | B93: 176837P | C93: 32 | D93: 62 | E93: 13612 | F93: ARRAS | G93: VINCENT | H93: WIART | I93: 1969-07-22 | J93: M | K93: 249 RESIDENCE LES JARDINS NOBLED | N93: 62490 | O93: VITRY EN ARTOIS | P93: FRANCE | R93: 0771078085 | S93: vincent.wiart01@sfr.fr | T93: OUI | U93: +21 ans | V93: Blackball | X93: 45893 | Y93: FRANCE | Z93: NON
A94: ARAMINI SALVATORE | B94: 176849C | C94: 32 | D94: 62 | E94: 13612 | F94: ARRAS | G94: SALVATORE | H94: ARAMINI | I94: 1965-04-04 | J94: M | K94: 3 RUE DE LA LOUE | N94: 62223 | O94: ST LAURENT BLANGY | P94: FRANCE | R94: 0605290022 | S94: salvatore.aramini@sfr.fr | T94: OUI | U94: +21 ans | V94: Blackball | X94: 45893 | Y94: FRANCE | Z94: NON
A95: CAMPAGNE CARINE | B95: 176850D | C95: 32 | D95: 62 | E95: 13612 | F95: ARRAS | G95: CARINE | H95: CAMPAGNE | I95: 1973-06-29 | J95: F | K95: 10 COURS DE VERDUN | N95: 62000 | O95: ARRAS | P95: FRANCE | R95: 0649287907 | S95: carine.campagne73@orange.fr | T95: OUI | U95: +21 ans | V95: Blackball | X95: 45893 | Y95: FRANCE | Z95: NON
A96: CLEMENT MICHAEL | B96: 176853G | C96: 32 | D96: 62 | E96: 13612 | F96: ARRAS | G96: MICHAEL | H96: CLEMENT | I96: 1976-04-24 | J96: M | K96: 39 RUE VOLTAIRE | N96: 62000 | O96: ARRAS | P96: FRANCE | R96: 0611683887 | S96: michael.clement73@sfr.fr | T96: OUI | U96: +21 ans | V96: Blackball | X96: 45893 | Y96: FRANCE | Z96: NON
A97: DERYCKE THIERRY | B97: 176854H | C97: 32 | D97: 62 | E97: 13612 | F97: ARRAS | G97: THIERRY | H97: DERYCKE | I97: 1964-06-27 | J97: M | K97: 16 RUE D HENINEL | N97: 62128 | O97: ST MARTIN SUR COJEUL | P97: FRANCE | R97: 0607826565 | S97: thierryderycke@orange.fr | T97: OUI | U97: +21 ans | V97: Blackball | X97: 45924 | Y97: FRANCE | Z97: NON
A98: HERMANT MAXIME | B98: 176855J | C98: 32 | D98: 62 | E98: 13612 | F98: ARRAS | G98: MAXIME | H98: HERMANT | I98: 2015-11-03 | J98: M | K98: 23 RUE DES ACACIAS | N98: 62300 | O98: ELEU DIT LEUWETTE | P98: FRANCE | R98: 0689201084 | S98: hermant.p@free.fr | T98: OUI | U98: -21 ans | V98: Blackball | X98: 45910 | Y98: FRANCE | Z98: NON
A99: BRASSEUR LUDOVIC | B99: 176867X | C99: 32 | D99: 62 | E99: 13612 | F99: ARRAS | G99: LUDOVIC | H99: BRASSEUR | I99: 1993-09-16 | J99: M | K99: 47 RUE DE L EGALITE | N99: 62220 | O99: CARVIN | P99: FRANCE | R99: 0678563969 | S99: ludovic_5@live.fr | T99: OUI | U99: +21 ans | V99: Blackball | X99: 45900 | Y99: FRANCE | Z99: NON
A100: LEMAIRE CEDRIC | B100: 177133L | C100: 32 | D100: 62 | E100: 13612 | F100: ARRAS | G100: CEDRIC | H100: LEMAIRE | I100: 1976-01-23 | J100: M | K100: 21 AVENUE D IMMERCOURT | N100: 62217 | O100: TILLOY LES MOFFLAINES | P100: FRANCE | R100: 0663234322 | S100: cedriclemaire6259@icloud.com | T100: OUI | U100: +21 ans | V100: Snooker | X100: 45893 | Y100: FRANCE | Z100: NON
A101: LEFEVRE PHILIPPE | B101: 177209T | C101: 32 | D101: 62 | E101: 13612 | F101: ARRAS | G101: PHILIPPE | H101: LEFEVRE | I101: 1975-08-14 | J101: M | K101: 15 CAVEE LAMBIE | N101: 62213 | O101: WANQUETIN | P101: FRANCE | R101: 0633143956 | S101: philpablo14@gmail.com | T101: OUI | U101: +21 ans | V101: Snooker | X101: 45893 | Y101: FRANCE | Z101: NON
A102: DUBART MICKAEL | B102: 177405G | C102: 32 | D102: 62 | E102: 13612 | F102: ARRAS | G102: MICKAEL | H102: DUBART | I102: 1979-07-17 | J102: M | K102: 70 RUE DE VARSOVIE | N102: 62640 | O102: MONTIGNY EN GOHELLE | P102: FRANCE | R102: 0637306499 | S102: dubartmickael@gmail.com | T102: OUI | U102: +21 ans | V102: Blackball | X102: 45894 | Y102: FRANCE | Z102: NON
A103: CHIVE EMMANUEL | B103: 178003G | C103: 32 | D103: 62 | E103: 13612 | F103: ARRAS | G103: EMMANUEL | H103: CHIVE | I103: 1982-06-21 | J103: M | K103: 20 GRAND RUE | N103: 80600 | O103: MEZEROLLES | P103: FRANCE | R103: 0676770651 | S103: echive@cp-international.com | T103: OUI | U103: +21 ans | V103: Blackball | X103: 45893 | Y103: FRANCE | Z103: NON
A104: DHAINAUT ALLAN | B104: 179209S | C104: 32 | D104: 62 | E104: 13612 | F104: ARRAS | G104: ALLAN | H104: DHAINAUT | I104: 1988-11-09 | J104: M | K104: 124 RUE DU MARECHAL LECLERC | N104: 59220 | O104: DENAIN | P104: FRANCE | R104: 0663273588 | S104: allanvslaura@live.fr | T104: OUI | U104: +21 ans | V104: Blackball | X104: 45894 | Y104: FRANCE | Z104: NON
A105: HANSCOTTE RUBEN | B105: 179783R | C105: 32 | D105: 62 | E105: 13612 | F105: ARRAS | G105: RUBEN | H105: HANSCOTTE | I105: 2010-12-23 | J105: M | K105: 22 RUE PRINCIPALE | N105: 62390 | O105: BEAUVOIR WAVANS | P105: FRANCE | R105: 0765281449 | S105: hph1985@hotmail.fr | T105: OUI | U105: -21 ans | V105: Blackball | X105: 45914 | Y105: FRANCE | Z105: NON
A106: KHAYAT AHMED | B106: 179941N | C106: 32 | D106: 62 | E106: 13612 | F106: ARRAS | G106: AHMED | H106: KHAYAT | I106: 1970-12-31 | J106: M | K106: 81 RUE DE LA LYS | N106: 59250 | O106: HALLUIN | P106: FRANCE | R106: 0650812480 | S106: ahmed.khayat@free.fr | T106: OUI | U106: +21 ans | V106: Blackball | X106: 45893 | Y106: FRANCE | Z106: NON
A107: DUHEN LIONEL | B107: 180304H | C107: 32 | D107: 62 | E107: 13612 | F107: ARRAS | G107: LIONEL | H107: DUHEN | I107: 1966-07-14 | J107: M | K107: 24 RUE DE BOISLEUX | N107: 62173 | O107: FICHEUX | P107: FRANCE | R107: 0688310025 | S107: lionel.duhen@orange.fr | T107: OUI | U107: +21 ans | V107: Blackball | X107: 45893 | Y107: FRANCE | Z107: NON
A108: DA SILVA NICOLAS | B108: 181461Q | C108: 32 | D108: 62 | E108: 13612 | F108: ARRAS | G108: NICOLAS | H108: DA SILVA | I108: 1987-02-13 | J108: M | K108: 35 RUE DU GENERAL LECLERC | N108: 59390 | O108: LYS LEZ LANNOY | P108: FRANCE | R108: 0684650634 | S108: nicoleportos@hotmail.fr | T108: OUI | U108: +21 ans | V108: Snooker | X108: 45893 | Y108: FRANCE | Z108: NON
A109: DOURLENS MANUEL | B109: 181463S | C109: 32 | D109: 62 | E109: 13612 | F109: ARRAS | G109: MANUEL | H109: DOURLENS | I109: 1994-07-14 | J109: M | K109: 5 RUE DU VIEUX CHEMIN DE PERNES | N109: 62130 | O109: ST POL SUR TERNOISE | P109: FRANCE | R109: 0677469087 | S109: manuel.dourlens@outlook.fr | T109: OUI | U109: +21 ans | V109: Blackball | X109: 45899 | Y109: FRANCE | Z109: NON
A110: JACQUOT PIERRE NELSON | B110: 181464T | C110: 32 | D110: 62 | E110: 13612 | F110: ARRAS | G110: PIERRE NELSON | H110: JACQUOT | I110: 1973-07-12 | J110: M | K110: 6 CHEMIN DES RIOTS | N110: 62800 | O110: LIEVIN | P110: FRANCE | R110: 0662639981 | S110: nelson.jacquot@wanadoo.fr | T110: OUI | U110: +21 ans | V110: Blackball | X110: 45899 | Y110: FRANCE | Z110: NON
A111: MARTIN THEO | B111: 181465V | C111: 32 | D111: 62 | E111: 13612 | F111: ARRAS | G111: THEO | H111: MARTIN | I111: 2004-06-09 | J111: M | K111: 1 RUE D IZEL | N111: 62127 | O111: VILLERS SIR SIMON | P111: FRANCE | R111: 0649373503 | S111: theo.martin906@icloud.com | T111: OUI | U111: +21 ans | V111: Blackball | X111: 45955 | Y111: FRANCE | Z111: NON
A112: HAVET THIERRY | B112: 181560Y | C112: 32 | D112: 62 | E112: 13612 | F112: ARRAS | G112: THIERRY | H112: HAVET | I112: 1960-11-13 | J112: M | K112: 30A RUE CHANZY | N112: 62580 | O112: VIMY | P112: FRANCE | R112: 0603461749 | S112: thierry.havet@wanadoo.fr | T112: OUI | U112: +21 ans | V112: Carambole | X112: 45898 | Y112: FRANCE | Z112: OUI
A113: BERNARD FRANCK | B113: 181712N | C113: 32 | D113: 62 | E113: 13612 | F113: ARRAS | G113: FRANCK | H113: BERNARD | I113: 1971-09-27 | J113: M | K113: 83 RUE DE BRUXELLES | N113: 62000 | O113: ARRAS | P113: FRANCE | R113: 0617420432 | S113: franck-bernard@hotmail.fr | T113: OUI | U113: +21 ans | V113: Snooker | X113: 45910 | Y113: FRANCE | Z113: NON
A114: NOVELLI HARRY | B114: 181818D | C114: 32 | D114: 62 | E114: 13612 | F114: ARRAS | G114: HARRY | H114: NOVELLI | I114: 1945-06-15 | J114: M | K114: 8 RUE DU BICENTENAIRE | N114: 80600 | O114: GROUCHES LUCHUEL | P114: FRANCE | R114: 0781190982 | S114: harry-paul.novelli@orange.fr | T114: OUI | U114: +21 ans | V114: Carambole | X114: 45953 | Y114: FRANCE | Z114: NON
A115: LADEVEZE MICKAEL | B115: 182051G | C115: 32 | D115: 62 | E115: 13612 | F115: ARRAS | G115: MICKAEL | H115: LADEVEZE | I115: 1981-12-02 | J115: M | K115: 2 RUE MARLE | N115: 59930 | O115: LA CHAPELLE D ARMENTIERES | P115: FRANCE | R115: 0683109225 | S115: mickael.ladeveze@live.fr | T115: OUI | U115: +21 ans | V115: Blackball | X115: 45893 | Y115: FRANCE | Z115: NON
A116: LEGER ARNAUD | B116: 182700M | C116: 32 | D116: 62 | E116: 13612 | F116: ARRAS | G116: ARNAUD | H116: LEGER | I116: 1974-05-19 | J116: M | K116: 2 RUE JEAN GABIN | N116: 92300 | O116: LEVALLOIS PERRET | P116: FRANCE | R116: 0619291152 | S116: arnaud.leger23@gmail.com | T116: OUI | U116: +21 ans | V116: Snooker | X116: 45906 | Y116: FRANCE | Z116: NON
A117: DEBUIRE MICHEL | B117: 182726Q | C117: 32 | D117: 62 | E117: 13612 | F117: ARRAS | G117: MICHEL | H117: DEBUIRE | I117: 1950-12-01 | J117: M | K117: 75 RUE DE LAON | N117: 62217 | O117: ACHICOURT | P117: FRANCE | R117: 0611096906 | S117: mpdebuire@club-internet.fr | T117: OUI | U117: +21 ans | V117: Carambole | X117: 45910 | Y117: FRANCE | Z117: NON
A118: FOURY MATHIEU | B118: 183673V | C118: 32 | D118: 62 | E118: 13612 | F118: ARRAS | G118: MATHIEU | H118: FOURY | I118: 1982-11-11 | J118: M | K118: 183 VOIE DES MEUNIERS | N118: 59151 | O118: ARLEUX | P118: FRANCE | R118: 0608275669 | S118: foury.mathieu@orange.fr | T118: OUI | U118: +21 ans | V118: Blackball | X118: 45914 | Y118: FRANCE | Z118: NON
A119: LOUKILI HOUSSAM | B119: 183685H | C119: 32 | D119: 62 | E119: 13612 | F119: ARRAS | G119: HOUSSAM | H119: LOUKILI | I119: 1999-10-23 | J119: M | K119: AV PAUL LANGEVIN | L119: 106 RESIDENCE BACHELARD | N119: 59650 | O119: VILLENEUVE D ASCQ | P119: FRANCE | R119: 0765228375 | S119: lifeofhoussam@gmail.com | T119: OUI | U119: +21 ans | V119: Blackball | X119: 45899 | Y119: MAROC | Z119: NON
A120: FAUGLOIRE JOEL | B120: 183899Q | C120: 32 | D120: 62 | E120: 13612 | F120: ARRAS | G120: JOEL | H120: FAUGLOIRE | I120: 1949-08-26 | J120: M | K120: 11 RUE DES LORIOTS | N120: 62223 | O120: ANZIN ST AUBIN | P120: FRANCE | R120: 0678381205 | T120: NON | U120: +21 ans | V120: Carambole | X120: 45914 | Y120: FRANCE | Z120: NON
A121: YOUSFI ABDERRAHIM | B121: 184391A | C121: 32 | D121: 62 | E121: 13612 | F121: ARRAS | G121: ABDERRAHIM | H121: YOUSFI | I121: 1998-08-28 | J121: M | K121: 137 RUE DE PARIS | N121: 94220 | O121: CHARENTON LE PONT | P121: FRANCE | R121: 0758676362 | S121: gryaog@gmail.com | T121: NON | U121: +21 ans | V121: Snooker | X121: 45899 | Y121: MAROC | Z121: NON
A122: NICOLAS MEDY | B122: 185586Z | C122: 32 | D122: 62 | E122: 13612 | F122: ARRAS | G122: MEDY | H122: NICOLAS | I122: 2002-10-10 | J122: M | K122: 8 RUE SAINT ROCH | N122: 62127 | O122: PENIN | P122: FRANCE | R122: 0768611118 | S122: medxnicolas@gmail.com | T122: OUI | U122: +21 ans | V122: Blackball | X122: 45910 | Y122: FRANCE | Z122: NON
A123: ZUSZEK LOIC | B123: 185588B | C123: 32 | D123: 62 | E123: 13612 | F123: ARRAS | G123: LOIC | H123: ZUSZEK | I123: 1991-08-18 | J123: M | K123: 21 RUE MARCEL LEMOINE | N123: 62390 | O123: BEAUVOIR WAVANS | P123: FRANCE | R123: 0785519833 | S123: loiczuszek@gmail.com | T123: OUI | U123: +21 ans | V123: Blackball | X123: 45914 | Y123: FRANCE | Z123: NON
A124: KUBIAK YOHAN | B124: 185717R | C124: 32 | D124: 62 | E124: 13612 | F124: ARRAS | G124: YOHAN | H124: KUBIAK | I124: 1985-08-20 | J124: M | K124: 56 RUE DU MARECHAL DE LATTRE DE TASSIG | N124: 59128 | O124: FLERS EN ESCREBIEUX | P124: FRANCE | R124: 0625459060 | S124: yohan.kubiak@laposte.net | T124: OUI | U124: +21 ans | V124: Blackball | X124: 45899 | Y124: FRANCE | Z124: NON
A125: QUENTIN MYLENE | B125: 185722X | C125: 32 | D125: 62 | E125: 13612 | F125: ARRAS | G125: MYLENE | H125: QUENTIN | I125: 1989-11-25 | J125: F | K125: 10 RUE DES HORTENSIAS | N125: 59167 | O125: LALLAING | P125: FRANCE | R125: 0635200451 | S125: quentinmylene@gmail.com | T125: OUI | U125: +21 ans | V125: Blackball | X125: 45903 | Y125: FRANCE | Z125: NON
A126: EL MOUKRIFI MOHAMED | B126: 185756J | C126: 32 | D126: 62 | E126: 13612 | F126: ARRAS | G126: MOHAMED | H126: EL MOUKRIFI | I126: 1998-01-24 | J126: M | K126: 26 RUE SAINT CLAIRE | N126: 62500 | O126: ST OMER | P126: FRANCE | R126: 0665634975 | S126: Mohamedmoukrifi556@gmail.com | T126: OUI | U126: +21 ans | V126: Blackball | X126: 45898 | Y126: MAROC | Z126: NON
A127: FLAMENT ROLAND | B127: 185795B | C127: 32 | D127: 62 | E127: 13612 | F127: ARRAS | G127: ROLAND | H127: FLAMENT | I127: 1953-08-03 | J127: M | K127: 6 RUE VICTOR BRIL | N127: 59960 | O127: NEUVILLE EN FERRAIN | P127: FRANCE | R127: 0642712869 | S127: rol.flam@orange.fr | T127: OUI | U127: +21 ans | V127: Blackball | X127: 45893 | Y127: FRANCE | Z127: NON
A128: KENNIS JONATHAN | B128: 185804L | C128: 32 | D128: 62 | E128: 13612 | F128: ARRAS | G128: JONATHAN | H128: KENNIS | I128: 1983-02-25 | J128: M | K128: 196 RUE DE CUBA | N128: 62700 | O128: BRUAY LA BUISSIERE | P128: FRANCE | R128: 0784116999 | S128: kennisjonathan1991@gmail.com | T128: OUI | U128: +21 ans | V128: Blackball | X128: 45906 | Y128: FRANCE | Z128: NON
A129: MARLIER LAETITIA | B129: 186026C | C129: 32 | D129: 62 | E129: 13612 | F129: ARRAS | G129: LAETITIA | H129: MARLIER | I129: 1977-07-01 | J129: F | K129: 10 RUE DUFY APPART A | L129: RESIDENCE LES HOCHETTES | N129: 62000 | O129: ARRAS | P129: FRANCE | R129: 0641900453 | S129: lmarlier62@outlook.fr | T129: OUI | U129: +21 ans | V129: Blackball | X129: 45893 | Y129: FRANCE | Z129: NON
A130: =H130 & " " &G130 -> DEMONCHY JULIEN | B130: 186030G | C130: 32 | D130: 62 | E130: 13612 | F130: ARRAS | G130: JULIEN | H130: DEMONCHY | I130: 1986-05-02 | J130: M | K130: 117 AVENUE JEAN MERMOZ | N130: 62000 | O130: DAINVILLE | P130: FRANCE | R130: 0616469867 | S130: juliendemonchy62@outlook.fr | T130: OUI | U130: +21 ans | V130: Blackball | X130: 45910 | Y130: FRANCE | Z130: NON
A131: DEMERRE GREGORY | B131: 188008G | C131: 32 | D131: 62 | E131: 13612 | F131: ARRAS | G131: GREGORY | H131: DEMERRE | I131: 1972-11-30 | J131: M | K131: 40 RESIDENCE LE TITIEN | N131: 62800 | O131: LIEVIN | P131: FRANCE | R131: 0621408356 | S131: gregory.demerre@hotmail.fr | T131: OUI | U131: +21 ans | V131: Blackball | X131: 45898 | Y131: FRANCE | Z131: NON
A132: DURIEZ SEBASTIEN | B132: 188246Q | C132: 32 | D132: 62 | E132: 13612 | F132: ARRAS | G132: SEBASTIEN | H132: DURIEZ | I132: 1980-11-18 | J132: M | K132: 13 RUE D AMBRINES | N132: 62810 | O132: GIVENCHY LE NOBLE | P132: FRANCE | R132: 0645522914 | S132: seb1811@hotmail.fr | T132: OUI | U132: +21 ans | V132: Snooker | X132: 45893 | Y132: FRANCE | Z132: NON
A133: DOINET JOHAN | B133: 188386S | C133: 32 | D133: 62 | E133: 13612 | F133: ARRAS | G133: JOHAN | H133: DOINET | I133: 1985-03-05 | J133: M | K133: 16 RUE DES BLANCS MONTS | N133: 62000 | O133: ARRAS | P133: FRANCE | R133: 0608750735 | S133: doinetcouverture@gmail.com | T133: OUI | U133: +21 ans | V133: Blackball | X133: 45893 | Y133: FRANCE | Z133: NON
A134: PETIT PATRICK | B134: 189133E | C134: 32 | D134: 62 | E134: 13612 | F134: ARRAS | G134: PATRICK | H134: PETIT | I134: 1981-03-29 | J134: M | K134: 11 RUE DU MARECHAL FOCH | N134: 62121 | O134: COURCELLES LE COMTE | P134: FRANCE | R134: 0684815823 | S134: patrick.petit.62@outlook.fr | T134: OUI | U134: +21 ans | V134: Snooker | X134: 45893 | Y134: FRANCE | Z134: NON
A135: PETIT VINCENT | B135: 189134F | C135: 32 | D135: 62 | E135: 13612 | F135: ARRAS | G135: VINCENT | H135: PETIT | I135: 1981-03-29 | J135: M | K135: 9 RUE DE PARIS | N135: 62121 | O135: ACHIET LE GRAND | P135: FRANCE | R135: 0675638789 | S135: vincent.petit@hotmail.com | T135: OUI | U135: +21 ans | V135: Snooker | X135: 45893 | Y135: FRANCE | Z135: NON
A136: LEGRAND CEDRIC | B136: 190232Z | C136: 32 | D136: 62 | E136: 13612 | F136: ARRAS | G136: CEDRIC | H136: LEGRAND | I136: 1974-03-10 | J136: M | K136: 30 RUE DE LA BARRIERE | N136: 62117 | O136: BREBIERES | P136: FRANCE | R136: 0695787418 | S136: cedric.legrand8@wanadoo.fr | T136: OUI | U136: Decouverte | V136: Snooker | X136: 45893 | Y136: FRANCE | Z136: NON
A137: BOUHALS RAMDANE | B137: 190233A | C137: 32 | D137: 62 | E137: 13612 | F137: ARRAS | G137: RAMDANE | H137: BOUHALS | I137: 1992-03-26 | J137: M | K137: 127 RUE DE CAMBRAI | N137: 62000 | O137: ARRAS | P137: FRANCE | R137: 0668768003 | S137: bouhals04@gmail.com | T137: OUI | U137: Decouverte | V137: Blackball | X137: 45893 | Y137: FRANCE | Z137: NON
A138: DEMON GUILLAUME | B138: 190234B | C138: 32 | D138: 62 | E138: 13612 | F138: ARRAS | G138: GUILLAUME | H138: DEMON | I138: 1968-10-21 | J138: M | K138: 15 IMPASSE MESSIAEN | N138: 59200 | O138: TOURCOING | P138: FRANCE | R138: 0662713881 | S138: guillaumedemon59@gmail.com | T138: OUI | U138: Decouverte | V138: Blackball | X138: 45893 | Y138: FRANCE | Z138: NON
A139: PILLE SEBASTIEN | B139: 190235C | C139: 32 | D139: 62 | E139: 13612 | F139: ARRAS | G139: SEBASTIEN | H139: PILLE | I139: 1978-03-01 | J139: M | K139: 8 IMPASSE FIN DE LA GUERRE | N139: 59126 | O139: LINSELLES | P139: FRANCE | R139: 0684837757 | S139: all8pool@yahoo.fr | T139: OUI | U139: Decouverte | V139: Blackball | X139: 45893 | Y139: FRANCE | Z139: NON
A140: CROENNE TEDDY | B140: 190236D | C140: 32 | D140: 62 | E140: 13612 | F140: ARRAS | G140: TEDDY | H140: CROENNE | I140: 1986-11-11 | J140: M | K140: 72 RUE OCTAVE DREZE | N140: 62880 | O140: PONT A VENDIN | P140: FRANCE | R140: 0619414004 | S140: croenne.ted@hotmail.fr | T140: OUI | U140: Decouverte | V140: Blackball | X140: 45893 | Y140: FRANCE | Z140: NON
A141: BRICE GUILLAUME | B141: 190237E | C141: 32 | D141: 62 | E141: 13612 | F141: ARRAS | G141: GUILLAUME | H141: BRICE | I141: 1994-11-22 | J141: M | K141: 2 ALLEE DU BIVOUAC | N141: 62270 | O141: BOUBERS SUR CANCHE | P141: FRANCE | R141: 0684787143 | S141: brissouner@gmail.com | T141: OUI | U141: Decouverte | V141: Blackball | X141: 45893 | Y141: FRANCE | Z141: NON
A142: AIT MOHAMED HAMZA | B142: 190393Z | C142: 32 | D142: 62 | E142: 13612 | F142: ARRAS | G142: HAMZA | H142: AIT MOHAMED | I142: 1996-12-20 | J142: M | K142: 36 RUE BOCQUET FLOCHEL | N142: 62000 | O142: ARRAS | P142: FRANCE | R142: 0603647654 | S142: hamza.aitmohamedd@gmail.com | T142: OUI | U142: Decouverte | V142: Snooker | X142: 45898 | Y142: MAROC | Z142: NON
A143: LEFEBVRE NICOLAS | B143: 190398E | C143: 32 | D143: 62 | E143: 13612 | F143: ARRAS | G143: NICOLAS | H143: LEFEBVRE | I143: 1982-05-23 | J143: M | K143: 25 RUE D ARRAS | N143: 62130 | O143: ST POL SUR TERNOISE | P143: FRANCE | R143: 0626589797 | S143: n.lefebvre59@orange.fr | T143: OUI | U143: Decouverte | V143: Blackball | X143: 45899 | Y143: FRANCE | Z143: NON
A144: DUDEK CEDRIC | B144: 190558D | C144: 32 | D144: 62 | E144: 13612 | F144: ARRAS | G144: CEDRIC | H144: DUDEK | I144: 1978-05-17 | J144: M | K144: 14 RUE JEAN ANTONIAZZI | N144: 62128 | O144: HENIN SUR COJEUL | P144: FRANCE | R144: 0687751205 | S144: cedric.dudek@gmail.com | T144: OUI | U144: Decouverte | V144: Blackball | X144: 45904 | Y144: FRANCE | Z144: NON
A145: BLONDIN NICOLAS | B145: 190585H | C145: 32 | D145: 62 | E145: 13612 | F145: ARRAS | G145: NICOLAS | H145: BLONDIN | I145: 1976-04-09 | J145: M | K145: 92 RUE CASIMIR BEUGNET | N145: 62160 | O145: GRENAY | P145: FRANCE | R145: 0632029388 | S145: nicolas.blondin062@gmail.com | T145: OUI | U145: Decouverte | V145: Snooker | X145: 45904 | Y145: FRANCE | Z145: NON
A146: BLONDIN BENJAMIN | B146: 190586J | C146: 32 | D146: 62 | E146: 13612 | F146: ARRAS | G146: BENJAMIN | H146: BLONDIN | I146: 2010-11-25 | J146: M | K146: 92 RUE CASIMIR BEUGNET | N146: 62160 | O146: GRENAY | P146: FRANCE | S146: benjamin.blondin62700@gmail.com | T146: OUI | U146: Avenir | V146: Snooker | X146: 45904 | Y146: FRANCE | Z146: NON
A147: GARCON MIKAEL | B147: 191066F | C147: 32 | D147: 62 | E147: 13612 | F147: ARRAS | G147: MIKAEL | H147: GARCON | I147: 1987-10-06 | J147: M | K147: 14 RUE DE SAINT POL | N147: 62130 | O147: CROISETTE | P147: FRANCE | R147: 0687778211 | S147: mikael.garcon@gmail.com | T147: OUI | U147: Decouverte | V147: Blackball | X147: 45914 | Y147: FRANCE | Z147: NON
A148: BODEL ARNAUD | B148: 191068H | C148: 32 | D148: 62 | E148: 13612 | F148: ARRAS | G148: ARNAUD | H148: BODEL | I148: 1974-05-03 | J148: M | K148: 131BIS RUE D ARRAS | N148: 62130 | O148: ST POL SUR TERNOISE | P148: FRANCE | R148: 0633103520 | S148: arnaudclarabodel@gmail.com | T148: OUI | U148: Decouverte | V148: Blackball | X148: 45914 | Y148: FRANCE | Z148: NON
A149: DECOBERT BENJAMIN | B149: 191437J | C149: 32 | D149: 62 | E149: 13612 | F149: ARRAS | G149: BENJAMIN | H149: DECOBERT | I149: 1982-07-31 | J149: M | K149: 3 RUE DE MORONVAL | N149: 62290 | O149: NOEUX LES MINES | P149: FRANCE | R149: 0635347168 | S149: auchtiestagnol@gmail.com | T149: OUI | U149: Decouverte | V149: Blackball | X149: 45923 | Y149: FRANCE | Z149: OUI
A150: SALON FRANCK | B150: 191438K | C150: 32 | D150: 62 | E150: 13612 | F150: ARRAS | G150: FRANCK | H150: SALON | I150: 1970-01-09 | J150: M | K150: 32 RUE BOCQUET FLOCHEL | N150: 62000 | O150: ARRAS | P150: FRANCE | R150: 0678989886 | S150: frck.salon@gmail.com | T150: OUI | U150: Decouverte | V150: Carambole | X150: 45923 | Y150: FRANCE | Z150: NON
A151: FORESTIER ANNE CLAIRE | B151: 191439L | C151: 32 | D151: 62 | E151: 13612 | F151: ARRAS | G151: ANNE CLAIRE | H151: FORESTIER | I151: 1965-07-22 | J151: F | K151: 11 RUE DU MONT ROBETTE | N151: 62223 | O151: ANZIN ST AUBIN | P151: FRANCE | R151: 0623310561 | S151: acforestier2207@gmail.com | T151: OUI | U151: Decouverte | V151: Blackball | X151: 45923 | Y151: FRANCE | Z151: NON
A152: BETHERMIN PIERRE | B152: 191442P | C152: 32 | D152: 62 | E152: 13612 | F152: ARRAS | G152: PIERRE | H152: BETHERMIN | I152: 1979-08-08 | J152: M | K152: 49 BOULEVARD DE LA LIBERTE | N152: 62000 | O152: ARRAS | P152: FRANCE | R152: 0618692337 | S152: pierre.bethermin@gmail.com | T152: OUI | U152: Decouverte | V152: Blackball | X152: 45923 | Y152: FRANCE | Z152: NON
A153: DUTRIEZ EVANN | B153: 191443Q | C153: 32 | D153: 62 | E153: 13612 | F153: ARRAS | G153: EVANN | H153: DUTRIEZ | I153: 2010-07-05 | J153: M | K153: 44 RUE ROGER SALENGRO | N153: 62217 | O153: ACHICOURT | P153: FRANCE | R153: 0646233493 | S153: isa_62000@hotmail.fr | T153: OUI | U153: Avenir | V153: Blackball | X153: 45923 | Y153: FRANCE | Z153: NON
A154: DUTRIEZ ILYANNA | B154: 191444R | C154: 32 | D154: 62 | E154: 13612 | F154: ARRAS | G154: ILYANNA | H154: DUTRIEZ | I154: 2014-07-01 | J154: F | K154: 44 RUE ROGER SALENGRO | N154: 62217 | O154: ACHICOURT | P154: FRANCE | R154: 0646533493 | S154: isa_62000@hotmail.fr | T154: OUI | U154: Avenir | V154: Blackball | X154: 45923 | Y154: FRANCE | Z154: NON
A155: LEBLANC ETHAN | B155: 191499B | C155: 32 | D155: 62 | E155: 13612 | F155: ARRAS | G155: ETHAN | H155: LEBLANC | I155: 2008-02-29 | J155: M | K155: 98 AVENUE LAVOISIER | N155: 62000 | O155: DAINVILLE | P155: FRANCE | R155: 0695709530 | S155: thewhite2913@gmail.com | T155: OUI | U155: Avenir | V155: Blackball | X155: 45924 | Y155: FRANCE | Z155: OUI
A156: GILBERT ALEXANDRE | B156: 192261E | C156: 32 | D156: 62 | E156: 13612 | F156: ARRAS | G156: ALEXANDRE | H156: GILBERT | I156: 1987-04-27 | J156: M | K156: 8D RUE DE VILLERS BRULIN | N156: 62127 | O156: TINCQUES | P156: FRANCE | R156: 0681096394 | S156: alexandre.gilbert87@gmail.com | T156: OUI | U156: Decouverte | V156: Blackball | X156: 45945 | Y156: FRANCE | Z156: OUI
A157: FAILLE MAX | B157: 192266K | C157: 32 | D157: 62 | E157: 13612 | F157: ARRAS | G157: MAX | H157: FAILLE | I157: 1990-11-25 | J157: M | K157: 86 RESIDENCE CHANTILLY | N157: 62223 | O157: SAINTE CATHERINE LES ARRAS | P157: FRANCE | R157: 0645215274 | S157: maxfaille591@gmail.com | T157: OUI | U157: Decouverte | V157: Blackball | X157: 45945 | Y157: FRANCE | Z157: NON
A158: CUISINIER ANTOINE | B158: 192379H | C158: 32 | D158: 62 | E158: 13612 | F158: ARRAS | G158: ANTOINE | H158: CUISINIER | I158: 2016-04-20 | J158: M | K158: 12 RUE DE LA GARE | N158: 62690 | O158: IZEL LES HAMEAUX | P158: FRANCE | S158: garry.cuisinier2@gmail.com | T158: OUI | U158: Avenir | V158: Blackball | X158: 45949 | Y158: FRANCE | Z158: OUI
A159: CAILLET FRANCIS | B159: 192477P | C159: 32 | D159: 62 | E159: 13612 | F159: ARRAS | G159: FRANCIS | H159: CAILLET | I159: 1949-03-28 | J159: M | K159: 26 RUE DE LAON | N159: 62217 | O159: ACHICOURT | P159: FRANCE | R159: 0688850459 | S159: fcaillet@wanadoo.fr | T159: OUI | U159: Decouverte | V159: Carambole | X159: 45953 | Y159: FRANCE | Z159: NON
A160: SAINT MAXENT HERVE | B160: 192479R | C160: 32 | D160: 62 | E160: 13612 | F160: ARRAS | G160: HERVE | H160: SAINT MAXENT | I160: 1947-09-13 | J160: M | K160: 5 RUE DES JONQUILLES | N160: 62000 | O160: DAINVILLE | P160: FRANCE | R160: 0607682723 | S160: hetf.saint-maxent@orange.fr | T160: OUI | U160: Decouverte | V160: Carambole | X160: 45953 | Y160: FRANCE | Z160: NON
A161: CATALAN VINCENT | B161: 192578Z | C161: 32 | D161: 62 | E161: 13612 | F161: ARRAS | G161: VINCENT | H161: CATALAN | I161: 1974-07-18 | J161: M | K161: 91 CHEMIN DU MOULIN | N161: 62690 | O161: VILLERS BRULIN | P161: FRANCE | R161: 0607932516 | S161: vincent_catalan@orange.fr | T161: OUI | U161: Decouverte | V161: Blackball | X161: 45958 | Y161: FRANCE | Z161: NON
A162: GILLE SEBASTIEN | B162: 192816H | C162: 32 | D162: 62 | E162: 13612 | F162: ARRAS | G162: SEBASTIEN | H162: GILLE | I162: 1978-04-18 | J162: M | K162: 39B RUE D EN HAUT | N162: 62490 | O162: VITRY EN ARTOIS | P162: FRANCE | R162: 0783982025 | S162: seb.gille39@gmail.com | T162: OUI | U162: Decouverte | V162: Snooker | X162: 45973 | Y162: FRANCE | Z162: NON
A163: SZYNCZEWSKI ELEA | B163: 193429Z | C163: 32 | D163: 62 | E163: 13612 | F163: ARRAS | G163: ELEA | H163: SZYNCZEWSKI | I163: 2006-02-14 | J163: F | K163: 21 RUE GARROS | N163: 62300 | O163: ELEU DIT LEAUWETTE | P163: FRANCE | T163: NON | U163: Avenir | V163: Blackball | X163: 46010 | Y163: FRANCE | Z163: OUI
A164: DELGRANGE PIERRE | B164: 193435F | C164: 32 | D164: 62 | E164: 13612 | F164: ARRAS | G164: PIERRE | H164: DELGRANGE | I164: 1991-03-06 | J164: M | K164: 23 RUE PAUL VERLAINE | N164: 62118 | O164: FAMPOUX | P164: FRANCE | T164: OUI | U164: Decouverte | V164: Snooker | X164: 46010 | Y164: FRANCE | Z164: NON
A165: HOTTE JEAN LOUIS | B165: 016525P | C165: 32 | D165: 62 | E165: 13102 | F165: AVION | G165: JEAN LOUIS | H165: HOTTE | I165: 1966-04-30 | J165: M | K165: 10 RUE EMILE ROUX | N165: 62800 | O165: LIEVIN | P165: FRANCE | R165: 0630581261 | S165: jlquick@sfr.fr | T165: OUI | U165: +21 ans | V165: Carambole | X165: 45902 | Y165: FRANCE | Z165: NON
A166: ABUCKI PATRICK | B166: 016543H | C166: 32 | D166: 62 | E166: 13102 | F166: AVION | G166: PATRICK | H166: ABUCKI | I166: 1959-05-07 | J166: M | K166: 51 RUE DU TORDOIR | N166: 62590 | O166: OIGNIES | P166: FRANCE | Q166: 0321742157 | R166: 0636470939 | S166: patrick.abucki@gmail.com | T166: OUI | U166: +21 ans | V166: Carambole | X166: 45902 | Y166: FRANCE | Z166: NON
A167: MARTINS CARLOS | B167: 016579R | C167: 32 | D167: 62 | E167: 13102 | F167: AVION | G167: CARLOS | H167: MARTINS | I167: 1950-04-29 | J167: M | K167: 6 RUE DES LILAS | N167: 62138 | O167: VIOLAINES | P167: FRANCE | R167: 0637118355 | T167: OUI | U167: +21 ans | V167: Carambole | X167: 45902 | Y167: FRANCE | Z167: NON
A168: HUBERT OLIVIER | B168: 016904E | C168: 32 | D168: 62 | E168: 13102 | F168: AVION | G168: OLIVIER | H168: HUBERT | I168: 1972-09-17 | J168: M | K168: 20 RUE RENE CHAR | N168: 62210 | O168: AVION | P168: FRANCE | R168: 0605365140 | S168: olivier.hubert72@sfr.fr | T168: OUI | U168: +21 ans | V168: Carambole | X168: 45902 | Y168: FRANCE | Z168: NON
A169: HUBERT FABRICE | B169: 016976Y | C169: 32 | D169: 62 | E169: 13102 | F169: AVION | G169: FABRICE | H169: HUBERT | I169: 1968-06-22 | J169: M | K169: 99 RUE JULIEN LHOMMET | N169: 62430 | O169: SALLAUMINES | P169: FRANCE | Q169: 0362901717 | R169: 0750282627 | S169: fabhubert@numericable.fr | T169: OUI | U169: +21 ans | V169: Carambole | X169: 45902 | Y169: FRANCE | Z169: NON
A170: GAJDZINSKI BERNARD | B170: 017081Z | C170: 32 | D170: 62 | E170: 13102 | F170: AVION | G170: BERNARD | H170: GAJDZINSKI | I170: 1945-08-11 | J170: M | K170: 97 BOULEVARD GABRIEL PERI | N170: 62210 | O170: AVION | P170: FRANCE | Q170: 0321670094 | R170: 0608412794 | S170: bernard.gajdzinski@orange.fr | T170: OUI | U170: +21 ans | V170: Carambole | X170: 45902 | Y170: FRANCE | Z170: NON
A171: CROQUELOIS JEAN JACQUES | B171: 017083B | C171: 32 | D171: 62 | E171: 13102 | F171: AVION | G171: JEAN JACQUES | H171: CROQUELOIS | I171: 1963-11-08 | J171: M | K171: 33 RUE EDOUARD VAILLANT | N171: 62880 | O171: VENDIN LE VIEIL | P171: FRANCE | Q171: 0321695412 | R171: 0608647557 | T171: NON | U171: +21 ans | V171: Carambole | X171: 45902 | Y171: FRANCE | Z171: NON
A172: CARLI PATRICK | B172: 017084C | C172: 32 | D172: 62 | E172: 13102 | F172: AVION | G172: PATRICK | H172: CARLI | I172: 1958-04-19 | J172: M | K172: 15 RUE FRANCOIS BEAUCAMP | N172: 62160 | O172: GRENAY | P172: FRANCE | Q172: 0321723936 | R172: 0612160472 | S172: pmcarli@aol.com | T172: OUI | U172: +21 ans | V172: Carambole | X172: 45902 | Y172: FRANCE | Z172: NON
A173: PRZYBYLSKI THOMAS | B173: 017260W | C173: 32 | D173: 62 | E173: 13102 | F173: AVION | G173: THOMAS | H173: PRZYBYLSKI | I173: 1984-11-25 | J173: M | K173: 39 RUE LOUIS VIREL | N173: 62300 | O173: ELEU DIT LAUWETTE | P173: FRANCE | R173: 0778194742 | S173: thomasprib62@sfr.fr | T173: OUI | U173: +21 ans | V173: Carambole | X173: 45902 | Y173: FRANCE | Z173: NON
A174: HUBERT HERVE | B174: 101140A | C174: 32 | D174: 62 | E174: 13102 | F174: AVION | G174: HERVE | H174: HUBERT | I174: 1964-05-10 | J174: M | K174: 340 RUE DU 10 MARS | N174: 62221 | O174: NOYELLES SOUS LENS | P174: FRANCE | R174: 0661941985 | S174: h.hubert@neuf.fr | T174: OUI | U174: +21 ans | V174: Carambole | X174: 45902 | Y174: FRANCE | Z174: NON
A175: HUBERT THOMAS | B175: 107597J | C175: 32 | D175: 62 | E175: 13102 | F175: AVION | G175: THOMAS | H175: HUBERT | I175: 1990-12-29 | J175: M | K175: 99 RUE JULIEN LHOMMET | N175: 62430 | O175: SALLAUMINES | P175: FRANCE | Q175: 0362901717 | S175: Tomhub@hotmail.fr | T175: OUI | U175: +21 ans | V175: Carambole | X175: 45902 | Y175: FRANCE | Z175: NON
A176: GOETINCK FREDERIC | B176: 117692Q | C176: 32 | D176: 62 | E176: 13102 | F176: AVION | G176: FREDERIC | H176: GOETINCK | I176: 1972-03-26 | J176: M | K176: 19 RUE CAMILLE DESMOULINS | N176: 62420 | O176: BILLY MONTIGNY | P176: FRANCE | R176: 0689677615 | S176: frederic.goetinck@gmail.com | T176: OUI | U176: +21 ans | V176: Carambole | X176: 45902 | Y176: FRANCE | Z176: NON
A177: GOUBERT CHRISTOPHE | B177: 129316S | C177: 32 | D177: 62 | E177: 13102 | F177: AVION | G177: CHRISTOPHE | H177: GOUBERT | I177: 1973-01-04 | J177: M | K177: 41 RESIDENCE MARESQUAI | N177: 62880 | O177: ANNAY SOUS LENS | P177: FRANCE | R177: 0631843754 | T177: OUI | U177: +21 ans | V177: Carambole | X177: 45917 | Y177: FRANCE | Z177: NON
A178: EVRARD FRANCKY | B178: 133051J | C178: 32 | D178: 62 | E178: 13102 | F178: AVION | G178: FRANCKY | H178: EVRARD | I178: 1959-10-15 | J178: M | K178: 8 RUE BACQUEVILLE | N178: 62221 | O178: NOYELLES SOUS LENS | P178: FRANCE | R178: 0664188037 | S178: franckyevrard@gmail.com | T178: OUI | U178: +21 ans | V178: Carambole | X178: 45902 | Y178: FRANCE | Z178: NON
A179: SZWAREK GEORGES | B179: 159169K | C179: 32 | D179: 62 | E179: 13102 | F179: AVION | G179: GEORGES | H179: SZWAREK | I179: 1950-12-21 | J179: M | K179: 2 RUE LA FONTAINE | N179: 62221 | O179: NOYELLES SOUS LENS | P179: FRANCE | R179: 0608018825 | S179: giorgio.621@hotmail.fr | T179: OUI | U179: +21 ans | V179: Carambole | X179: 45901 | Y179: FRANCE | Z179: NON
A180: CREPIN DIDIER | B180: 159367A | C180: 32 | D180: 62 | E180: 13102 | F180: AVION | G180: DIDIER | H180: CREPIN | I180: 1957-12-13 | J180: M | K180: 12 ALLEE ANGOT | L180: RESIDENCE MAUBUISSON | N180: 62800 | O180: LIEVIN | P180: FRANCE | R180: 0668372484 | T180: NON | U180: +21 ans | V180: Carambole | X180: 45902 | Y180: FRANCE | Z180: NON
A181: MOSSE PATRICK | B181: 174166L | C181: 32 | D181: 62 | E181: 13102 | F181: AVION | G181: PATRICK | H181: MOSSE | I181: 1958-04-02 | J181: M | K181: 1 PLACE DE L HOTEL DE VILLE APPT 2 | N181: 62800 | O181: LIEVIN | P181: FRANCE | R181: 0630175741 | S181: patrick.mosse@numericable.fr | T181: OUI | U181: +21 ans | V181: Carambole | X181: 45902 | Y181: FRANCE | Z181: NON
A182: HUBERT GABIN | B182: 174240R | C182: 32 | D182: 62 | E182: 13102 | F182: AVION | G182: GABIN | H182: HUBERT | I182: 2005-03-29 | J182: M | K182: 20 RUE RENE CHAR | N182: 62210 | O182: AVION | P182: FRANCE | R182: 0617877007 | S182: gabin.hubert62@gmail.com | T182: OUI | U182: -21 ans | V182: Carambole | X182: 45902 | Y182: FRANCE | Z182: NON
A183: DESBLEUMORTIERS ANDRE | B183: 016530U | C183: 32 | D183: 62 | E183: 13103 | F183: BILLY | G183: ANDRE | H183: DESBLEUMORTIERS | I183: 1957-05-25 | J183: M | K183: 2 RUE DES ACACIAS | N183: 62490 | O183: QUIERY LA MOTTE | P183: FRANCE | R183: 0608957058 | S183: c.desbleu@gmail.com | T183: OUI | U183: +21 ans | V183: Carambole | W183: arbitre | X183: 45896 | Y183: FRANCE | Z183: NON
A184: LASVAUX JACKY | B184: 016571J | C184: 32 | D184: 62 | E184: 13103 | F184: BILLY | G184: JACKY | H184: LASVAUX | I184: 1956-04-28 | J184: M | K184: 277 RUE DU FAUBOURG DE PARIS | N184: 59500 | O184: DOUAI | P184: FRANCE | Q184: 0327882718 | R184: 0672738908 | S184: jlasvaux@orange.fr | T184: OUI | U184: +21 ans | V184: Carambole | W184: arbitre | X184: 45896 | Y184: FRANCE | Z184: NON
A185: BOCQUET JEAN LUC | B185: 016577P | C185: 32 | D185: 62 | E185: 13103 | F185: BILLY | G185: JEAN LUC | H185: BOCQUET | I185: 1954-01-21 | J185: M | K185: 4 RUE DES CHARMES | L185: RESIDENCE DU CLOS DU BOIS | N185: 62980 | O185: NOYELLES LES VERMELLES | P185: FRANCE | Q185: 0321265656 | S185: jl-bocquet@orange.fr | T185: OUI | U185: +21 ans | V185: Carambole | X185: 45896 | Y185: FRANCE | Z185: NON
A186: BETRANCOURT PASCAL | B186: 016746C | C186: 32 | D186: 62 | E186: 13103 | F186: BILLY | G186: PASCAL | H186: BETRANCOURT | I186: 1968-06-28 | J186: M | K186: RUE EMILIENNE MOPTY | L186: 18 RESIDENCE MARTHE NOLLET | N186: 62420 | O186: BILLY MONTIGNY | P186: FRANCE | R186: 0661732806 | S186: betrancourt.pascal@sfr.fr | T186: OUI | U186: +21 ans | V186: Carambole | X186: 45896 | Y186: FRANCE | Z186: NON
A187: DESSAINT ALAIN | B187: 016757N | C187: 32 | D187: 62 | E187: 13103 | F187: BILLY | G187: ALAIN | H187: DESSAINT | I187: 1958-10-27 | J187: M | K187: 15 RUE RAOUL BRIQUET | N187: 62420 | O187: BILLY MONTIGNY | P187: FRANCE | R187: 0688425589 | S187: al.dess@free.fr | T187: OUI | U187: +21 ans | V187: Carambole | X187: 45896 | Y187: FRANCE | Z187: NON
A188: DUQUESNOY JEAN CLAUDE | B188: 016758O | C188: 32 | D188: 62 | E188: 13103 | F188: BILLY | G188: JEAN CLAUDE | H188: DUQUESNOY | I188: 1948-12-08 | J188: M | K188: 13 RUE ALFRED DUPONT | N188: 62420 | O188: BILLY MONTIGNY | P188: FRANCE | Q188: 0362906743 | R188: 0632748724 | S188: jcduquesnoy@gmail.com | T188: OUI | U188: +21 ans | V188: Carambole | W188: arbitre | X188: 45896 | Y188: FRANCE | Z188: NON
A189: FALSE CLAUDE | B189: 016903D | C189: 32 | D189: 62 | E189: 13103 | F189: BILLY | G189: CLAUDE | H189: FALSE | I189: 1948-03-09 | J189: M | K189: 4 RUE EMILIENNE MOPTY | N189: 62640 | O189: MONTIGNY EN GOHELLE | P189: FRANCE | R189: 0666104819 | S189: claude9false@gmail.com | T189: OUI | U189: +21 ans | V189: Carambole | X189: 45896 | Y189: FRANCE | Z189: NON
A190: FALSE FRANCK | B190: 016907H | C190: 32 | D190: 62 | E190: 13103 | F190: BILLY | G190: FRANCK | H190: FALSE | I190: 1974-09-24 | J190: M | K190: 5 RUE LEON JOUHAUX | N190: 62420 | O190: BILLY MONTIGNY | P190: FRANCE | R190: 0634180422 | S190: auto_franck@hotmail.fr | T190: OUI | U190: +21 ans | V190: Carambole | X190: 45896 | Y190: FRANCE | Z190: NON
A191: GORZELSKI ARNAUD | B191: 017024U | C191: 32 | D191: 62 | E191: 13103 | F191: BILLY | G191: ARNAUD | H191: GORZELSKI | I191: 1975-11-20 | J191: M | K191: 60 RUE FLORENT EVRARD | N191: 62980 | O191: VERMELLES | P191: FRANCE | R191: 0634170206 | S191: denver62138@live.fr | T191: OUI | U191: +21 ans | V191: Carambole | X191: 45896 | Y191: FRANCE | Z191: NON
A192: BON VINCENT | B192: 017044O | C192: 32 | D192: 62 | E192: 13103 | F192: BILLY | G192: VINCENT | H192: BON | I192: 1964-12-19 | J192: M | K192: 20 RUE PAUL VERLAINE | N192: 62880 | O192: VENDIN LE VIEIL | P192: FRANCE | R192: 0609642175 | S192: vb.jbon@gmail.com | T192: OUI | U192: +21 ans | V192: Carambole | X192: 45896 | Y192: FRANCE | Z192: NON
A193: SNIATECKI PASCAL | B193: 017169J | C193: 32 | D193: 62 | E193: 13103 | F193: BILLY | G193: PASCAL | H193: SNIATECKI | I193: 1954-01-08 | J193: M | K193: 357 RUE DU LIEUTENANT PIERRE DE ROZIER | N193: 62153 | O193: ABLAIN ST NAZAIRE | P193: FRANCE | Q193: 0321725112 | R193: 0652025572 | S193: nadine.laversin@yahoo.fr | T193: OUI | U193: +21 ans | V193: Carambole | X193: 45896 | Y193: FRANCE | Z193: NON
A194: =H194 & " " &G194 -> GENTILE WALTER | B194: 017171L | C194: 32 | D194: 62 | E194: 13103 | F194: BILLY | G194: WALTER | H194: GENTILE | I194: 1979-03-17 | J194: M | K194: 7 RUE ETIENNE DOLET | N194: 62420 | O194: BILLY MONTIGNY | P194: FRANCE | R194: 0663617779 | S194: walter.gentile.79@gmail.com | T194: OUI | U194: +21 ans | V194: Carambole | X194: 45896 | Y194: FRANCE | Z194: NON
A195: CABOCHE MARCEL | B195: 017273J | C195: 32 | D195: 62 | E195: 13103 | F195: BILLY | G195: MARCEL | H195: CABOCHE | I195: 1951-06-02 | J195: M | K195: 7 RUE FREDERIC CHOPIN | N195: 62300 | O195: LENS | P195: FRANCE | Q195: 0321704773 | R195: 0632121584 | S195: marcel.caboche@wanadoo.fr | T195: OUI | U195: +21 ans | V195: Carambole | X195: 45896 | Y195: FRANCE | Z195: NON
A196: BAILLEZ AIME | B196: 017295F | C196: 32 | D196: 62 | E196: 13103 | F196: BILLY | G196: AIME | H196: BAILLEZ | I196: 1950-04-05 | J196: M | K196: 41 RUE DE LA LIBERTE | N196: 62740 | O196: FOUQUIERES LES LENS | P196: FRANCE | R196: 0628601759 | S196: abaillez@numericable.fr | T196: OUI | U196: +21 ans | V196: Carambole | X196: 45896 | Y196: FRANCE | Z196: NON
A197: JACQUES LIONEL | B197: 020725D | C197: 32 | D197: 62 | E197: 13103 | F197: BILLY | G197: LIONEL | H197: JACQUES | I197: 1956-12-12 | J197: M | K197: 58 RUE LEON BLUM | N197: 62640 | O197: MONTIGNY EN GOHELLE | P197: FRANCE | S197: lionelhavernas@gmail.com | T197: OUI | U197: +21 ans | V197: Carambole | W197: arbitre | X197: 45896 | Y197: FRANCE | Z197: NON
A198: ELLART JEAN CLAUDE | B198: 101125L | C198: 32 | D198: 62 | E198: 13103 | F198: BILLY | G198: JEAN CLAUDE | H198: ELLART | I198: 1948-12-07 | J198: M | K198: 42 GRAND RUE | N198: 62118 | O198: PLOUVAIN | P198: FRANCE | Q198: 0321226904 | R198: 0761878415 | S198: jcloteellart@orange.fr | T198: OUI | U198: +21 ans | V198: Carambole | X198: 45896 | Y198: FRANCE | Z198: NON
A199: PLASSIER PHILIPPE | B199: 101166A | C199: 32 | D199: 62 | E199: 13103 | F199: BILLY | G199: PHILIPPE | H199: PLASSIER | I199: 1953-07-23 | J199: M | K199: 783 RUE LEON BLUM | N199: 62940 | O199: HAILLICOURT | P199: FRANCE | T199: OUI | U199: +21 ans | V199: Carambole | X199: 45896 | Y199: FRANCE | Z199: NON
A200: LUBERT REGIS | B200: 107599L | C200: 32 | D200: 62 | E200: 13103 | F200: BILLY | G200: REGIS | H200: LUBERT | I200: 1931-09-14 | J200: M | K200: 22 RUE DES REMPARTS | N200: 59480 | O200: LA BASSEE | P200: FRANCE | Q200: 0320292932 | R200: 0760433561 | T200: OUI | U200: +21 ans | V200: Carambole | X200: 45896 | Y200: FRANCE | Z200: NON
... 452 more rows

Sheet MACROS (hidden)

Sheet Bordereau Invité Finale France (hidden)
K3: Remplissage de la Feuille automatique
B5: Mode de Jeu : | D5: Cadre 42/2 | F5: Catégorie : | G5: Nationale 3
B6: Qui se disputera le : | D6: du 18/04/14 au 20/04/14 | F6: à : | G6: Calais
B9: *Nom –Prénom du 1er Joueur : | D9: =IF('Feuille de Match'!C35="","",'Feuille de Match'!C35) -> 
B10: *Club : | C10: =IF($D9<>"",VLOOKUP($D9,Inscriptions!$B$12:$N$17,4,FALSE),"") ->  | F10: *Moyenne : | H10: =IF($D9<>"",VLOOKUP($D9,'Feuille de Match'!$C$34:$AC$37,27,FALSE),"") -> 
B11: *N° Licence : | C11: =IF($D9<>"",VLOOKUP($D9,Inscriptions!$B$12:$N$17,7,FALSE),"") -> 
B12: *Adresse : | C12: =IF($D9<>"",VLOOKUP($D9,Inscriptions!$B$12:$N$17,8,FALSE),"") ->  | E12: =IF($D9<>"",VLOOKUP($D9,Inscriptions!$B$12:$N$17,9,FALSE),"") ->  | G12: =IF($D9<>"",VLOOKUP($D9,Inscriptions!$B$12:$N$17,10,FALSE),"") -> 
B13: *Tel Fix : | C13: =IF($D9<>"",VLOOKUP($D9,Inscriptions!$B$12:$N$17,11,FALSE),"") ->  | F13: *Signature Joueur :
B14: *Tel Portable : | C14: =IF($D9<>"",VLOOKUP($D9,Inscriptions!$B$12:$N$17,12,FALSE),"") -> 
B15: *Mail : | C15: =IF($D9<>"",VLOOKUP($D9,Inscriptions!$B$12:$N$17,13,FALSE),"") -> 
B19: À : | C19: =IF(Inscriptions!F5="","",Inscriptions!F5) -> WIZERNES | E19: le : | F19: =IF(Inscriptions!E5="","",Inscriptions!E5) -> 2026-01-25
B20: Nom du responsable de L’épreuve : | E20: =IF('Feuille de Match'!V40="","",'Feuille de Match'!V40) -> Directeur de Jeu :
B22: =IF('base de données'!D143="","",'base de données'!D143) -> CD62 Responsable format « Cadre & 3 Bandes » : André DESBLEUMORTIERS Mob : 06 - 08 - 95 - 70 - 58 – Email : cdesbleu@gmail.com

Sheet base de données
B4: =Inscriptions!E7 & " " &Inscriptions!F7 -> Cadre Régionale 1
B5: =Inscriptions!E7 & " " &Inscriptions!F7 & " " &Inscriptions!C9 -> Cadre Régionale 1 2,80 m | N5: Liste des Clubs
B6: Distance / Moyenne / Reprises Automatiques | C6: Cellule Référence Formule | E6: Mode de Jeu | F6: Catégories | G6: Moyenne | H6: Reprises | I6: Distances | J6: Format Billard
O7: Ville | Q7: Adresse | R7: Compléments | S7: N° Téléphone | T7: Identifiants Club
C8: =E8 & " " &F8 -> Libre Master | D8: =E8 & " " &F8 & " " & J8 -> Libre Master 3,10 m | E8: Libre | F8: Master | G8: 30,00et + | H8: Aucune Limitation | I8: 400 Points GC | J8: 3,10 m | N8: 1 | O8: CALAIS | P8: ACADEMIE CALAISIENNE DE BILLARD | Q8: Rue Roger Martin du Gard 62100 CALAIS | R8: Complexe Sportifs Calypso | S8: 321194394 | T8: 13364 | U8: acbc.calais@orange.fr
C9: Libre Nationale 1 | D9: Libre Nationale 1 3,10 m | E9: Libre | F9: Nationale 1 | G9: 10,00 à 29,99 | H9: Aucune Limitation | I9: 300 Points GC | J9: 3,10 m | N9: 2 | O9: CAMBRAI | P9: ACADEMIE DE CAMBRAI | Q9: La Paix de Nimégue 59400 CAMBRAI | R9: Base de Loisirs la Citadelle | S9: 327783720 | T9: 13482 | U9: alanbury@free.fr
C10: Libre Nationale 3 | D10: =E10 & " " &F10 & " " & J10 -> Libre Nationale 3 2,80 m | E10: Libre | F10: Nationale 3 | G10: 6,00 à 12,49 | H10: Aucune Limitation | I10: 200 Points GC | J10: 2,80 m | N10: 3 | O10: DENAIN | P10: ACADEMIE LA CARAMBOLE | Q10: 209, Rue de Villars 59220 DENAIN | S10: 687997694 | T10: 13478 | U10: jean-francois.espalieu@orange.fr
C11: Libre Régionale 1 | D11: Libre Régionale 1 2,80 m | E11: Libre | F11: Régionale 1 | G11: 4,00 à 5,99 | H11: Aucune Limitation | I11: 150 Points PC | J11: 2,80 m | N11: 4 | O11: DOUAI | P11: AMICALE BILLARD CLUB DOUAI | Q11: Rue d'Arras 59500 DOUAI | R11: Complexe Sportif de la Porte D'Arras | S11: 327960636 | T11: 13107 | U11: abcdouaibillard@orange.fr
C12: Libre Régionale 2 | D12: Libre Régionale 2 2,80 m | E12: Libre | F12: Régionale 2 | G12: 2,30 à 3,99 | H12: Aucune Limitation | I12: 100 Points PC | J12: 2,80 m | N12: 5 | O12: CUCQ | P12: BILLARD CLUB DE CUCQ | Q12: Place de l'Ancienne Mairie 62780 CUCQ | R12: Salle Robert Boucher | S12: 321845067 | T12: 13363 | U12: billard-de-cucq@wanadoo.fr
C13: Libre Régionale 3 | D13: Libre Régionale 3 2,80 m | E13: Libre | F13: Régionale 3 | G13: 1,20 à 2,29 | H13: Aucune Limitation | I13: 70 Points PC | J13: 2,80 m | N13: 6 | O13: LENS | P13: AVENIR BILLARD CLUB LENSOIS | Q13: Rue Jules Ferry 62300 LENS | R13: COMPLEXE MAZEREUW | S13: 321431862 | T13: 13105 | U13: billardlensois@sfr.fr
C14: Libre Régionale 4 | D14: Libre Régionale 4 2,80 m | E14: Libre | F14: Régionale 4 | G14: 0,00 à 1,19 | H14: Aucune Limitation | I14: 50 Points PC | J14: 2,80 m | N14: 7 | O14: ROCNHIN | P14: B.C. DU CANON D OR | Q14: Rue Pierre Dupont 59790 RONCHIN | R14: Stade Léo Lagrange | S14: 320522000 | T14: 13240 | U14: bcco.ronchin@club-internet.fr
C15: Libre Féminines | D15: Libre Féminines 2,80 m | E15: Libre | F15: Féminines | G15: 1,20 et + | H15: Aucune Limitation | I15: 150 Points PC | J15: 2,80 m | N15: 8 | O15: AVION | P15: BILLARD CLUB AVION | Q15: Avenue Théo Salingues Pére et Fils 62210 AVION | R15: Groupement Juliot Curie | S15: 321430945 | T15: 13102 | U15: billard-club-avionnais@sfr.fr
C16: Libre Nationale 3 | D16: Libre Nationale 3 2,80 m | E16: Libre | F16: =F10 -> Nationale 3 | G16: 7,50 à 15,61 | H16: Aucune Limitation | J16: 2,80 m | N16: 9 | O16: BILLY | P16: BILLARD CLUB BILLY MONTIGNY | Q16: 3, Avenue de la Fosse 2, 62420 BILLY MONTIGNY | R16: Salle Robert Desmazières | S16: 321201785 | T16: 13103 | U16: billybc@free.fr
C17: Libre Régionale 1 | D17: Libre Régionale 1 2,80 m | E17: Libre | F17: =F11 -> Régionale 1 | G17: 5,00 à 7,49 | H17: Aucune Limitation | J17: 2,80 m | N17: 10 | Q17: 52, rue Michel BRABANT 59860 BRUAY SUR L'ESCAUT | S17: 327416004 | T17: 13481 | U17: billard-club-bruaysien@wanadoo.fr
C18: Libre Régionale 2 | D18: Libre Régionale 2 2,80 m | E18: Libre | F18: =F12 -> Régionale 2 | G18: 2,87 à 4,99 | H18: Aucune Limitation | J18: 2,80 m | N18: 11 | O18: CARVIN | P18: BILLARD CLUB CARVIN | Q18: Route de Libercourt 62220 CARVIN | R18: Square du pont de Grès | S18: 321740644 | T18: 13104 | U18: billard.carvin@cegetel.net
C19: Libre Régionale 3 | D19: Libre Régionale 3 2,80 m | E19: Libre | F19: =F13 -> Régionale 3 | G19: 1,50 à 2,86 | H19: Aucune Limitation | J19: 2,80 m | N19: 12 | O19: FACHES | P19: BILLARD CLUB DE FACHES THUMESNIL | Q19: 173, Rue Carnot 59155 FACHES THUMESNIL | R19: Hotel de Ville | S19: 320979487 | T19: 13249 | U19: bcft@free.fr
C20: Libre Régionale 4 | D20: Libre Régionale 4 2,80 m | E20: Libre | F20: =F14 -> Régionale 4 | G20: 0,00 à 1,49 | H20: Aucune Limitation | J20: 2,80 m | N20: 13 | O20: WIMILLE | P20: BILLARD CLUB DE WIMILLE | Q20: 72, Rue du Bon Secours 62126 WIMILLE | R20: Centre Communal Frank Lefebvre | S20: 321310279 | T20: 13368 | U20: bcwimille@sfr.fr
C21: =E21 & " " &F21 -> Libre Challenge 2 | D21: =E21 & " " &F21 & " " & J21 -> Libre Challenge 2 2,80 m | E21: Libre | F21: Challenge 2 | G21: 0,00 à 1,99 | H21: Aucune Limitation | I21: 50 Reprises | J21: 2,80 m | N21: 14 | O21: DIVION | P21: BILLARD CLUB DIVIONNAIS | Q21: 4, Impasse Romain Rolland 62460 DIVION | R21: Ecole Nicolas Copernic | S21: 321533121 | T21: 13117 | U21: bcdivion@yahoo.fr
C22: =E22 & " " &F22 -> Libre 4 Billes | D22: =E22 & " " &F22 & " " & J22 -> Libre 4 Billes 2,80 m | E22: Libre | F22: 4 Billes | H22: Aucune Limitation | I22: 40 Points | J22: 2,80 m | N22: 15 | O22: ESTAIRES | P22: BILLARD CLUB ESTAIROIS | Q22: Rue Jules Ferry - Impasse Louise de Marillac 59940 ESTAIRES | S22: 328501349 | T22: 13252 | U22: billardestairois@yahoo.fr
C23: Libre Féminines | D23: Libre Féminines 2,80 m | E23: Libre | F23: =F15 -> Féminines | G23: 1,50 et + | H23: Aucune Limitation | J23: 2,80 m | N23: 16 | O23: FOUQUIERES | P23: BILLARD CLUB FOUQUIERES LES LENS | Q23: 38, Rue Sainte Ménéhould 62740 FOUQUIERES LES LENS | R23: Centre François Mitterand | S23: 09-84-10-93-09 | T23: 13123 | U23: abaillez@numericable.fr
C24: Cadre Master | D24: Cadre Master 3,10 m | E24: Cadre | F24: Master | G24: 20,00 et + | H24: Aucune Limitation | I24: 300 Points | J24: 3,10 m | N24: 17 | O24: HOUPLINES | P24: BILLARD CLUB HOUPLINES | Q24: 195, Rue Victor Hugo 59116 HOUPLINES | S24: 320352153 | T24: 13231 | U24: pascal.vanthournout@wanadoo.fr
C25: Cadre Nationale 1 | D25: Cadre Nationale 1 3,10 m | E25: Cadre | F25: Nationale 1 | G25: 10,00 à 19,99 | H25: Aucune Limitation | I25: 200 Points | J25: 3,10 m | N25: 18 | O25: OUTREAU | P25: BILLARD CLUB OUTREAU | Q25: 37, Rue Jean-Jaures 62230 OUTREAU | S25: 960071036 | T25: 13356 | U25: billard.outreau@orange.fr
C26: Cadre Nationale 2 | D26: Cadre Nationale 2 3,10 m | E26: Cadre | F26: Nationale 2 | G26: 6,00 à 9,99 | H26: Aucune Limitation | I26: 120 Points | J26: 3,10 m | N26: 19 | O26: ST POL | P26: BILLARD CLUB ST POLOIS | Q26: Avenue Berteaux 59430 SAINT POL SUR MER | R26: Centre Romain Rolland | S26: 328612377 | T26: 13360
C27: Cadre Nationale 3 | D27: Cadre Nationale 3 2,80 m | E27: Cadre | F27: Nationale 3 | G27: 4,50 à 7,50 | H27: Aucune Limitation | I27: 120 Points | J27: 2,80 m | N27: 20 | O27: VILLENEUVE D'ASCQ | P27: BILLARD FRANCAIS VILLENEUVE D ASCQ | Q27: 3, Rue Jean Vilar 59650 VILLENEUVE D'ASCQ | R27: Quartier de l'hôtel de Ville (Biblioth) | S27: 320055726 | T27: 13236
C28: Cadre Régionale 1 | D28: Cadre Régionale 1 2,80 m | E28: Cadre | F28: Régionale 1 | G28: 0,00 à 4,50 | H28: Aucune Limitation | I28: 80 Points | J28: 2,80 m | N28: 21 | O28: COURRIERES | P28: COURRIERES SPORT BILLARD | Q28: 28, Rue Salengro 62710 COURRIERES | R28: Centre Social | S28: 321200335 | T28: 13124 | U28: billardcourrieres@gmail.com
C29: Cadre Nationale 3 | D29: Cadre Nationale 3 2,80 m | E29: Cadre | F29: =F27 -> Nationale 3 | G29: 3,89 à 6,93 | H29: Aucune Limitation | J29: 2,80 m | N29: 22 | O29: Le Touquet | P29: LE TOUQUET BILLARD CLUB | Q29: Rond Point des Sport 62520 LE TOUQUET PARIS PLAGE | R29: 1er Etage de la salle des quatres saisons | S29: 321061976 | T29: 13370 | U29: billardclub@letouquet.com
C30: Cadre Régionale 1 | D30: Cadre Régionale 1 2,80 m | E30: Cadre | F30: =F28 -> Régionale 1 | G30: 0,00 à 3,88 | H30: Aucune Limitation | J30: 2,80 m | N30: 23 | O30: Grande Synthe | P30: OLYMPIQUE GRANDE-SYNTHE | Q30: 3 TER, Rue Rigaud 59760 GRANDE SYNTHE | S30: 328219706 | T30: 13365
C31: Cadre Master | D31: Cadre Master 3,10 m | E31: Cadre | F31: Master | G31: 18,00 et + | H31: Aucune Limitation | I31: 250 Points | J31: 3,10 m | N31: 24 | O31: Annoeullin | P31: SPORT BILLARD CLUB ANNOEULLINOIS | Q31: Rue Maurice WATTRELOT 59112 ANNOEULLIN | S31: 975528481 | T31: 13110
C32: Cadre Master | D32: Cadre Master 3,10 m | E32: Cadre | F32: Master | G32: 12,00 et + | H32: Aucune Limitation | I32: 200 Points | J32: 3,10 m | N32: 25 | O32: Dunkerque | P32: U.S DUNKERQUOISE | Q32: Place du Casino 59140 DUNKERQUE | R32: Piscine Paul Asseman | S32: 328669183 | T32: 13353
C33: 1 Bande Masters | D33: 1 Bande Masters 3,10 m | E33: 1 Bande | F33: Masters | G33: 5,00 et + | H33: Aucune Limitation | I33: 150 Points | J33: 3,10 m | N33: 26 | O33: Gravelines | P33: U.S GRAVELINOISE | Q33: 17, Rue de la Gare 59820 GRAVELINES | S33: non renseigner | T33: 13355
C34: 1 Bande Nationale 1 | D34: 1 Bande Nationale 1 3,10 m | E34: 1 Bande | F34: Nationale 1 | G34: 2,30 à 4,99 | H34: Aucune Limitation | I34: 100 Points | J34: 3,10 m | N34: 28 | O34: Wizernes | P34: WIZERNES BILLARD CLUB | Q34: Rue des Ecoles 62570 WIZERNES | R34: Résidence Marie Curie | S34: 321392007 | T34: 13369
C35: 1 Bande Nationale 3 | D35: 1 Bande Nationale 3 2,80 m | E35: 1 Bande | F35: Nationale 3 | G35: 1,75 à 2,57 | H35: Aucune Limitation | I35: 80 Points | J35: 2,80 m | O35: Licenciés indépendants 62 | P35: Licenciés indépendants 62
C36: 1 Bande Régionale 1 | D36: 1 Bande Régionale 1 2,80 m | E36: 1 Bande | F36: Régionale 1 | G36: 1,00 à 1,74 | H36: Aucune Limitation | I36: 60 Points | J36: 2,80 m
C37: 1 Bande Régionale 2 | D37: 1 Bande Régionale 2 2,80 m | E37: 1 Bande | F37: Régionale 2 | G37: 0,00 à 0,99 | H37: Aucune Limitation | I37: 40 Points | J37: 2,80 m
C38: 1 Bande Nationale 3 | D38: 1 Bande Nationale 3 2,80 m | E38: 1 Bande | F38: =F35 -> Nationale 3 | G38: 2,19 à 3,21 | H38: Aucune Limitation | J38: 2,80 m
C39: 1 Bande Régionale 1 | D39: 1 Bande Régionale 1 2,80 m | E39: 1 Bande | F39: =F36 -> Régionale 1 | G39: 1,25 à 2,18 | H39: Aucune Limitation | J39: 2,80 m
C40: 1 Bande Régionale 2 | D40: 1 Bande Régionale 2 2,80 m | E40: 1 Bande | F40: =F37 -> Régionale 2 | G40: 0,00 à 1,24 | H40: Aucune Limitation | J40: 2,80 m
C41: 3 Bandes Masters | D41: 3 Bandes Masters 3,10 m | E41: 3 Bandes | F41: Masters | G41: 0,900 et + | H41: Aucune Limitation | I41: 50 Points | J41: 3,10 m
C42: 3 Bandes Nationale 1 | D42: 3 Bandes Nationale 1 3,10 m | E42: 3 Bandes | F42: Nationale 1 | G42: 0,700 à 0,900 | H42: Aucune Limitation | I42: 35 Points | J42: 3,10 m
C43: 3 Bandes Nationale 2 | D43: 3 Bandes Nationale 2 3,10 m | E43: 3 Bandes | F43: Nationale 2 | G43: 0,500 à 0,700 | H43: Aucune Limitation | I43: 30 Points | J43: 3,10 m
C44: 3 Bandes Nationale 3 | D44: 3 Bandes Nationale 3 2,80 m | E44: 3 Bandes | F44: Nationale 3 | G44: 0,400 à 0,581 | H44: 60 Reprises | I44: 25 Points | J44: 2,80 m
C45: 3 Bandes Féminines | D45: 3 Bandes Féminines 2,80 m | E45: 3 Bandes | F45: Féminines | G45: 0,250 et + | H45: 60 Reprises | I45: 25 Points | J45: 2,80 m
C46: 3 Bandes Régionale 1 | D46: 3 Bandes Régionale 1 2,80 m | E46: 3 Bandes | F46: Régionale 1 | G46: 0,250 à 0,400 | H46: 60 Reprises | I46: 20 Points | J46: 2,80 m
C47: 3 Bandes Régionale 2 | D47: 3 Bandes Régionale 2 2,80 m | E47: 3 Bandes | F47: Régionale 2 | G47: 0,000 à 0,249 | H47: 60 Reprises | I47: 15 Points | J47: 2,80 m
C48: 3 Bandes Nationale 3 | D48: 3 Bandes Nationale 3 2,80 m | E48: 3 Bandes | F48: =F44 -> Nationale 3 | G48: 0,396 à 0,574 | H48: 60 Reprises | J48: 2,80 m
C49: 3 Bandes Féminines | D49: 3 Bandes Féminines 2,80 m | E49: 3 Bandes | F49: =F45 -> Féminines | G49: 0,275 et + | H49: 50 Reprises | J49: 2,80 m
C50: 3 Bandes Régionale 1 | D50: 3 Bandes Régionale 1 2,80 m | E50: 3 Bandes | F50: =F46 -> Régionale 1 | G50: 0,275 à 0,395 | H50: 20 Reprises | J50: 2,80 m
C51: 3 Bandes Régionale 2 | D51: 3 Bandes Régionale 2 2,80 m | E51: 3 Bandes | F51: =F47 -> Régionale 2 | G51: 0,000 à 0,274 | H51: 60 Reprises | J51: 2,80 m
B57: =Inscriptions!F9 -> Finale CD62 | C57: =IF($B57<>"",VLOOKUP($B57,$B$58:$D$65,2,FALSE),"") -> Bordereau d'engagement Finale Ligue
B58: Finale CD62 | C58: Bordereau d'engagement Finale Ligue | G58: Liste Joueurs | H58: Inscriptions
B59: Finale Ligue | C59: Bordereau d'engagement Finale Secteur | G59: Convocation | H59: Feuille de Frais
B60: Finale Secteur | G60: Feuille de Match | H60: Bordereau d'engagement
B61: Barrage Artois | C61: Bordereau d'engagement Finale CD62
B62: Barrage Maritime
B67: =Inscriptions!C9 -> 2,80 m | C67: =IF($B67<>"",VLOOKUP($B67,$B$68:$D$69,2,FALSE),"") -> Christian FONTAINE
B68: 3,10 m | C68: Claude FALSE
B69: 2,80 m | C69: Christian FONTAINE
B72: =IF('base de données'!C67="","",'base de données'!C67) -> Christian FONTAINE | D72: =IF($B72<>"",VLOOKUP($B72,$B$75:$F$80,3,FALSE),"") -> CD62 Responsable format « 2,80 m » : Christian FONTAINE Mob : 06 - 63 - 42 - 28 - 19 – Email : cfont@hotmail.fr
B75: ='base de données'!C69 -> Christian FONTAINE | D75: CD62 Responsable format « 2,80 m » : Christian FONTAINE Mob : 06 - 63 - 42 - 28 - 19 – Email : cfont@hotmail.fr
B78: ='base de données'!C68 -> Claude FALSE | D78: CD62 Responsable format « 3,10 m » : Claude False Mob : 06 - 66 - 10 - 48 - 19 – Email : claude9false@gmail.com
D83: =Inscriptions!F9 & " " &Inscriptions!F7 & " " &Inscriptions!E7 -> Finale CD62 Régionale 1 Cadre | F83: =IF($D83<>"",VLOOKUP($D83,$B$84:$H$140,5,FALSE),"") -> André DESBLEUMORTIERS
B84: =D84 & " " &E84 & " " &H84 -> Finale CD62 Nationale 1 Libre | D84: Finale CD62 | E84: Nationale 1 | F84: Christian FONTAINE | H84: Libre
B85: Finale CD62 Nationale 3 Libre | D85: Finale CD62 | E85: Nationale 3 | F85: Christian FONTAINE | H85: Libre
B86: Finale CD62 Régionale 1 Libre | D86: Finale CD62 | E86: Régionale 1 | F86: Christian FONTAINE | H86: Libre
B87: Finale CD62 Régionale 2 Libre | D87: Finale CD62 | E87: Régionale 2 | F87: Christian FONTAINE | H87: Libre
B88: Finale CD62 Régionale 3 Libre | D88: Finale CD62 | E88: Régionale 3 | F88: Christian FONTAINE | H88: Libre
B89: Finale CD62 Régionale 4 Libre | D89: Finale CD62 | E89: Régionale 4 | F89: Christian FONTAINE | H89: Libre
B90: Finale CD62 Nationale 2 Cadre | D90: Finale CD62 | E90: Nationale 2 | F90: André DESBLEUMORTIERS | H90: Cadre
B91: Finale CD62 Nationale 3 Cadre | D91: Finale CD62 | E91: Nationale 3 | F91: André DESBLEUMORTIERS | H91: Cadre
B92: Finale CD62 Régionale 1 Cadre | D92: Finale CD62 | E92: Régionale 1 | F92: André DESBLEUMORTIERS | H92: Cadre
B93: Finale CD62 Nationale 1 1 Bande | D93: Finale CD62 | E93: Nationale 1 | F93: Christian FONTAINE | H93: 1 Bande
B94: Finale CD62 Nationale 3 1 Bande | D94: Finale CD62 | E94: Nationale 3 | F94: Christian FONTAINE | H94: 1 Bande
B95: Finale CD62 Régionale 1 1 Bande | D95: Finale CD62 | E95: Régionale 1 | F95: Christian FONTAINE | H95: 1 Bande
B96: Finale CD62 Régionale 2 1Bande | D96: Finale CD62 | E96: Régionale 2 | F96: Christian FONTAINE | H96: 1Bande
B97: Finale CD62 Nationale 1 3 Bandes | D97: Finale CD62 | E97: Nationale 1 | F97: André DESBLEUMORTIERS | H97: 3 Bandes
B98: Finale CD62 Nationale 2 3 Bandes | D98: Finale CD62 | E98: Nationale 2 | F98: André DESBLEUMORTIERS | H98: 3 Bandes
B99: Finale CD62 Nationale 3 3 Bandes | D99: Finale CD62 | E99: Nationale 3 | F99: André DESBLEUMORTIERS | H99: 3 Bandes
B100: Finale CD62 Régionale 1 3 Bandes | D100: Finale CD62 | E100: Régionale 1 | F100: André DESBLEUMORTIERS | H100: 3 Bandes
B101: Finale CD62 Régionale 2 3 Bandes | D101: Finale CD62 | E101: Régionale 2 | F101: André DESBLEUMORTIERS | H101: 3 Bandes
B102: Finale CD62 Nationale 1 Cadre | D102: Finale CD62 | E102: Nationale 1 | F102: André DESBLEUMORTIERS | H102: Cadre
B108: =D108 & " " &E108 & " " &H108 -> 
B143: =B147 -> André DESBLEUMRTIERS FINALE CD62 | D143: =IF(B143<>"",VLOOKUP(B143,$B$146:$H$151,3,FALSE),"") -> CD62 Responsable format « Cadre & 3 Bandes » : André DESBLEUMORTIERS Mob : 06 - 08 - 95 - 70 - 58 – Email : cdesbleu@gmail.com
A145: Noms Responsable
A146: Christian FONTAINE | B146: =A146& " " &H146 -> Christian FONTAINE FINALE CD62 | D146: CD62 Responsable format « Bande & Cadre » : Christian FONTAINE Mob : 06 - 63 - 42 - 28 - 19 – Email : cfont@hotmail.fr | H146: FINALE CD62
A147: André DESBLEUMRTIERS | B147: =A147& " " &H147 -> André DESBLEUMRTIERS FINALE CD62 | D147: CD62 Responsable format « Cadre & 3 Bandes » : André DESBLEUMORTIERS Mob : 06 - 08 - 95 - 70 - 58 – Email : cdesbleu@gmail.com | H147: FINALE CD62
B150: =A150& " " &H150 -> 
B163: Liste déroulante
B165: Club | C165: Mode de jeu | D165: Stade | E165: Catégorie | F165: 1 er Tour
B167: ARRAS | C167: Libre | D167: 1/2 Finale District | E167: Nationale 1 | F167: J1 contre J2
B168: AVION | C168: Cadre | D168: 1/2 Finale Secteur | E168: Nationale 2 | F168: J1 contre J3
B169: BILLY | C169: 1 Bande | D169: Eliminatoires | E169: Nationale 3 | F169: J1 contre J4
B170: CARVIN | C170: 3 Bande | D170: Finale CD62 | E170: Régionale 1
B171: LENS | C171: 5 Quilles | D171: Finale District | E171: Régionale 2 | F171: Comité Organisateur de la Finale Ligue
B172: DOUAI | D172: Finale Ligue | E172: Régionale 3 | F172: Pas de Calais
B173: ANNOEULLIN | D173: Finale Secteur | E173: Régionale 4 | F173: Oise
B174: DIVION | D174: Tournoi | E174: Junior R1 | F174: Somme
B175: FOUQUIERES | D175: Barrage Artois | E175: Junior R1 | F175: Nord
B176: COURRIERES | D176: Barrage Maritime | E176: Cadet R | F176: Somme
B177: HOUPLINES | E177: Benjamin R
B178: VILLENEUVE D'ASCQ | E178: Junior R | F178: Finaliste pour la Finale de la Finale Ligue
B179: RONCHIN | E179: Cadet R | F179: Pas de Calais
B180: FACHES THUMESNIL | F180: Oise
B181: ESTAIRES | F181: Somme
B182: DUNKERQUE | F182: Nord
B183: GRAVELINES | F183: Somme
B184: OUTREAU
B185: ST POL SUR MER
B186: CUCQ
B187: CALAIS
B188: GRANDE SYNTHE
B189: WIMILLE
B190: WIZERNES
B191: LE TOUQUET
B192: DENAIN
B193: BRUAY
B194: CAMBRAI
C200: =IF(Inscriptions!F9="","",Inscriptions!F9) -> Finale CD62
C201: Barrage Artois | D201: Remplaçant N°1 : | E201: Remplaçant N°2 :
C202: Finale CD62 | D202: Remplaçant Maritime : | E202: Remplaçant Artois :
C203: Finale Ligue | D203: Remplaçant CD 62 : | E203: Remplaçant CD 59 :

Sheet Calendrier
D1: NE REMPLIR QUE LES CASES BLANCHE
B3: Date | C3: Club | D3: Mode de jeu | E3: Catégorie | F3: Stade | H3: Date de la Finale Suivante | I3: Lieu de la Finale Suivante | J3: Points | K3: Limite de reprises | L3: Moyennes | M3: Format | N3: Comité Organisateur de la Finale Ligue | O3: Finaliste pour la Finale de la Finale Ligue
A4: =F4 & " " &G4 & " " &C4 -> Finale CD62 Libre Nationale 1 | D4: Libre | E4: Nationale 1 | F4: Finale CD62 | G4: =D4 & " " &E4 -> Libre Nationale 1 | J4: =IF($B4="","",IF($G4<>"",VLOOKUP($G4,'base de données'!$C$8:$J$51,7,FALSE),"")) ->  | K4: =IF($B4="","",IF($G4<>"",VLOOKUP($G4,'base de données'!$C$8:$J$51,6,FALSE),"")) ->  | L4: =IF($B4="","",IF($G4<>"",VLOOKUP($G4,'base de données'!$C$8:$J$51,5,FALSE),"")) ->  | M4: =IF($B4="","",IF($G4<>"",VLOOKUP($G4,'base de données'!$C$8:$J$51,8,FALSE),"")) ->  | O4: Pas de Calais
A5: Finale CD62 Libre Nationale 3 | D5: Libre | E5: Nationale 3 | F5: Finale CD62 | G5: Libre Nationale 3 | J5: =IF($B5="","",IF($G5<>"",VLOOKUP($G5,'base de données'!$C$8:$J$51,7,FALSE),"")) ->  | K5: =IF($B5="","",IF($G5<>"",VLOOKUP($G5,'base de données'!$C$8:$J$51,6,FALSE),"")) ->  | L5: =IF($B5="","",IF($G5<>"",VLOOKUP($G5,'base de données'!$C$8:$J$51,5,FALSE),"")) ->  | M5: =IF($B5="","",IF($G5<>"",VLOOKUP($G5,'base de données'!$C$8:$J$51,8,FALSE),"")) ->  | O5: Pas de Calais
A6: Finale CD62 Libre Régionale 1 | D6: Libre | E6: Régionale 1 | F6: Finale CD62 | G6: Libre Régionale 1 | J6: =IF($B6="","",IF($G6<>"",VLOOKUP($G6,'base de données'!$C$8:$J$51,7,FALSE),"")) ->  | K6: =IF($B6="","",IF($G6<>"",VLOOKUP($G6,'base de données'!$C$8:$J$51,6,FALSE),"")) ->  | L6: =IF($B6="","",IF($G6<>"",VLOOKUP($G6,'base de données'!$C$8:$J$51,5,FALSE),"")) ->  | M6: =IF($B6="","",IF($G6<>"",VLOOKUP($G6,'base de données'!$C$8:$J$51,8,FALSE),"")) ->  | O6: Pas de Calais
A7: Finale CD62 Libre Régionale 2 | D7: Libre | E7: Régionale 2 | F7: Finale CD62 | G7: Libre Régionale 2 | J7: =IF($B7="","",IF($G7<>"",VLOOKUP($G7,'base de données'!$C$8:$J$51,7,FALSE),"")) ->  | K7: =IF($B7="","",IF($G7<>"",VLOOKUP($G7,'base de données'!$C$8:$J$51,6,FALSE),"")) ->  | L7: =IF($B7="","",IF($G7<>"",VLOOKUP($G7,'base de données'!$C$8:$J$51,5,FALSE),"")) ->  | M7: =IF($B7="","",IF($G7<>"",VLOOKUP($G7,'base de données'!$C$8:$J$51,8,FALSE),"")) ->  | O7: Pas de Calais
A8: Finale CD62 Libre Régionale 3 | D8: Libre | E8: Régionale 3 | F8: Finale CD62 | G8: Libre Régionale 3 | J8: =IF($B8="","",IF($G8<>"",VLOOKUP($G8,'base de données'!$C$8:$J$51,7,FALSE),"")) ->  | K8: =IF($B8="","",IF($G8<>"",VLOOKUP($G8,'base de données'!$C$8:$J$51,6,FALSE),"")) ->  | L8: =IF($B8="","",IF($G8<>"",VLOOKUP($G8,'base de données'!$C$8:$J$51,5,FALSE),"")) ->  | M8: =IF($B8="","",IF($G8<>"",VLOOKUP($G8,'base de données'!$C$8:$J$51,8,FALSE),"")) ->  | O8: Pas de Calais
A9: Finale CD62 Libre Régionale 4 | D9: Libre | E9: Régionale 4 | F9: Finale CD62 | G9: Libre Régionale 4 | J9: =IF($B9="","",IF($G9<>"",VLOOKUP($G9,'base de données'!$C$8:$J$51,7,FALSE),"")) ->  | K9: =IF($B9="","",IF($G9<>"",VLOOKUP($G9,'base de données'!$C$8:$J$51,6,FALSE),"")) ->  | L9: =IF($B9="","",IF($G9<>"",VLOOKUP($G9,'base de données'!$C$8:$J$51,5,FALSE),"")) ->  | M9: =IF($B9="","",IF($G9<>"",VLOOKUP($G9,'base de données'!$C$8:$J$51,8,FALSE),"")) ->  | O9: Pas de Calais
A10: Finale CD62 Cadre Nationale 1 | D10: Cadre | E10: Nationale 1 | F10: Finale CD62 | G10: Cadre Nationale 1 | J10: =IF($B10="","",IF($G10<>"",VLOOKUP($G10,'base de données'!$C$8:$J$51,7,FALSE),"")) ->  | K10: =IF($B10="","",IF($G10<>"",VLOOKUP($G10,'base de données'!$C$8:$J$51,6,FALSE),"")) ->  | L10: =IF($B10="","",IF($G10<>"",VLOOKUP($G10,'base de données'!$C$8:$J$51,5,FALSE),"")) ->  | M10: =IF($B10="","",IF($G10<>"",VLOOKUP($G10,'base de données'!$C$8:$J$51,8,FALSE),"")) ->  | O10: Pas de Calais
A11: Finale CD62 Cadre Nationale 2 WIMILLE | B11: 2026-01-25 | C11: WIMILLE | D11: Cadre | E11: Nationale 2 | F11: Finale CD62 | G11: Cadre Nationale 2 | H11: 15 & 16 / 02 / 2026 | I11: AISNE | J11: =IF($B11="","",IF($G11<>"",VLOOKUP($G11,'base de données'!$C$8:$J$51,7,FALSE),"")) -> 120 Points | K11: =IF($B11="","",IF($G11<>"",VLOOKUP($G11,'base de données'!$C$8:$J$51,6,FALSE),"")) -> Aucune Limitation | L11: =IF($B11="","",IF($G11<>"",VLOOKUP($G11,'base de données'!$C$8:$J$51,5,FALSE),"")) -> 6,00 à 9,99 | M11: =IF($B11="","",IF($G11<>"",VLOOKUP($G11,'base de données'!$C$8:$J$51,8,FALSE),"")) -> 3,10 m | O11: Pas de Calais
A12: Finale CD62 Cadre Nationale 3 DIVION | B12: 2026-01-25 | C12: DIVION | D12: Cadre | E12: Nationale 3 | F12: Finale CD62 | G12: Cadre Nationale 3 | H12: 15 & 16 / 02 / 2025 | I12: NORD | J12: =IF($B12="","",IF($G12<>"",VLOOKUP($G12,'base de données'!$C$8:$J$51,7,FALSE),"")) -> 120 Points | K12: =IF($B12="","",IF($G12<>"",VLOOKUP($G12,'base de données'!$C$8:$J$51,6,FALSE),"")) -> Aucune Limitation | L12: =IF($B12="","",IF($G12<>"",VLOOKUP($G12,'base de données'!$C$8:$J$51,5,FALSE),"")) -> 4,50 à 7,50 | M12: =IF($B12="","",IF($G12<>"",VLOOKUP($G12,'base de données'!$C$8:$J$51,8,FALSE),"")) -> 2,80 m | O12: Pas de Calais
A13: Finale CD62 Cadre Régionale 1 WIZERNES | B13: 2026-01-25 | C13: WIZERNES | D13: Cadre | E13: Régionale 1 | F13: Finale CD62 | G13: Cadre Régionale 1 | H13: 2025-02-15 | I13: OISE | J13: =IF($B13="","",IF($G13<>"",VLOOKUP($G13,'base de données'!$C$8:$J$51,7,FALSE),"")) -> 80 Points | K13: =IF($B13="","",IF($G13<>"",VLOOKUP($G13,'base de données'!$C$8:$J$51,6,FALSE),"")) -> Aucune Limitation | L13: =IF($B13="","",IF($G13<>"",VLOOKUP($G13,'base de données'!$C$8:$J$51,5,FALSE),"")) -> 0,00 à 4,50 | M13: =IF($B13="","",IF($G13<>"",VLOOKUP($G13,'base de données'!$C$8:$J$51,8,FALSE),"")) -> 2,80 m | O13: Pas de Calais
A14: Finale CD62 1 Bande Nationale 1 | D14: 1 Bande | E14: Nationale 1 | F14: Finale CD62 | G14: 1 Bande Nationale 1 | J14: =IF($B14="","",IF($G14<>"",VLOOKUP($G14,'base de données'!$C$8:$J$51,7,FALSE),"")) ->  | K14: =IF($B14="","",IF($G14<>"",VLOOKUP($G14,'base de données'!$C$8:$J$51,6,FALSE),"")) ->  | L14: =IF($B14="","",IF($G14<>"",VLOOKUP($G14,'base de données'!$C$8:$J$51,5,FALSE),"")) ->  | M14: =IF($B14="","",IF($G14<>"",VLOOKUP($G14,'base de données'!$C$8:$J$51,8,FALSE),"")) ->  | O14: Pas de Calais
A15: Finale CD62 1 Bande Nationale 3 | D15: 1 Bande | E15: Nationale 3 | F15: Finale CD62 | G15: 1 Bande Nationale 3 | J15: =IF($B15="","",IF($G15<>"",VLOOKUP($G15,'base de données'!$C$8:$J$51,7,FALSE),"")) ->  | K15: =IF($B15="","",IF($G15<>"",VLOOKUP($G15,'base de données'!$C$8:$J$51,6,FALSE),"")) ->  | L15: =IF($B15="","",IF($G15<>"",VLOOKUP($G15,'base de données'!$C$8:$J$51,5,FALSE),"")) ->  | M15: =IF($B15="","",IF($G15<>"",VLOOKUP($G15,'base de données'!$C$8:$J$51,8,FALSE),"")) ->  | O15: Pas de Calais
A16: Finale CD62 1 Bande Régionale 1 | D16: 1 Bande | E16: Régionale 1 | F16: Finale CD62 | G16: 1 Bande Régionale 1 | J16: =IF($B16="","",IF($G16<>"",VLOOKUP($G16,'base de données'!$C$8:$J$51,7,FALSE),"")) ->  | K16: =IF($B16="","",IF($G16<>"",VLOOKUP($G16,'base de données'!$C$8:$J$51,6,FALSE),"")) ->  | L16: =IF($B16="","",IF($G16<>"",VLOOKUP($G16,'base de données'!$C$8:$J$51,5,FALSE),"")) ->  | M16: =IF($B16="","",IF($G16<>"",VLOOKUP($G16,'base de données'!$C$8:$J$51,8,FALSE),"")) ->  | O16: Pas de Calais
A17: Finale CD62 1 Bande Régionale 2 | D17: 1 Bande | E17: Régionale 2 | F17: Finale CD62 | G17: 1 Bande Régionale 2 | J17: =IF($B17="","",IF($G17<>"",VLOOKUP($G17,'base de données'!$C$8:$J$51,7,FALSE),"")) ->  | K17: =IF($B17="","",IF($G17<>"",VLOOKUP($G17,'base de données'!$C$8:$J$51,6,FALSE),"")) ->  | L17: =IF($B17="","",IF($G17<>"",VLOOKUP($G17,'base de données'!$C$8:$J$51,5,FALSE),"")) ->  | M17: =IF($B17="","",IF($G17<>"",VLOOKUP($G17,'base de données'!$C$8:$J$51,8,FALSE),"")) ->  | O17: Pas de Calais
A18: Finale CD62 3 Bandes Nationale 1 | D18: 3 Bandes | E18: Nationale 1 | F18: Finale CD62 | G18: 3 Bandes Nationale 1 | J18: =IF($B18="","",IF($G18<>"",VLOOKUP($G18,'base de données'!$C$8:$J$51,7,FALSE),"")) ->  | K18: =IF($B18="","",IF($G18<>"",VLOOKUP($G18,'base de données'!$C$8:$J$51,6,FALSE),"")) ->  | L18: =IF($B18="","",IF($G18<>"",VLOOKUP($G18,'base de données'!$C$8:$J$51,5,FALSE),"")) ->  | M18: =IF($B18="","",IF($G18<>"",VLOOKUP($G18,'base de données'!$C$8:$J$51,8,FALSE),"")) ->  | O18: Pas de Calais
A19: Finale CD62 3 Bandes Nationale 2 | D19: 3 Bandes | E19: Nationale 2 | F19: Finale CD62 | G19: 3 Bandes Nationale 2 | J19: =IF($B19="","",IF($G19<>"",VLOOKUP($G19,'base de données'!$C$8:$J$51,7,FALSE),"")) ->  | K19: =IF($B19="","",IF($G19<>"",VLOOKUP($G19,'base de données'!$C$8:$J$51,6,FALSE),"")) ->  | L19: =IF($B19="","",IF($G19<>"",VLOOKUP($G19,'base de données'!$C$8:$J$51,5,FALSE),"")) ->  | M19: =IF($B19="","",IF($G19<>"",VLOOKUP($G19,'base de données'!$C$8:$J$51,8,FALSE),"")) ->  | O19: Pas de Calais
A20: Finale CD62 3 Bandes Nationale 3 | D20: 3 Bandes | E20: Nationale 3 | F20: Finale CD62 | G20: 3 Bandes Nationale 3 | J20: =IF($B20="","",IF($G20<>"",VLOOKUP($G20,'base de données'!$C$8:$J$51,7,FALSE),"")) ->  | K20: =IF($B20="","",IF($G20<>"",VLOOKUP($G20,'base de données'!$C$8:$J$51,6,FALSE),"")) ->  | L20: =IF($B20="","",IF($G20<>"",VLOOKUP($G20,'base de données'!$C$8:$J$51,5,FALSE),"")) ->  | M20: =IF($B20="","",IF($G20<>"",VLOOKUP($G20,'base de données'!$C$8:$J$51,8,FALSE),"")) ->  | N20: Nord | O20: Pas de Calais
A21: Finale CD62 3 Bandes Régionale 1 | D21: 3 Bandes | E21: Régionale 1 | F21: Finale CD62 | G21: 3 Bandes Régionale 1 | J21: =IF($B21="","",IF($G21<>"",VLOOKUP($G21,'base de données'!$C$8:$J$51,7,FALSE),"")) ->  | K21: =IF($B21="","",IF($G21<>"",VLOOKUP($G21,'base de données'!$C$8:$J$51,6,FALSE),"")) ->  | L21: =IF($B21="","",IF($G21<>"",VLOOKUP($G21,'base de données'!$C$8:$J$51,5,FALSE),"")) ->  | M21: =IF($B21="","",IF($G21<>"",VLOOKUP($G21,'base de données'!$C$8:$J$51,8,FALSE),"")) ->  | O21: Pas de Calais
A22: Finale CD62 3 Bandes Régionale 2 | D22: 3 Bandes | E22: Régionale 2 | F22: Finale CD62 | G22: 3 Bandes Régionale 2 | J22: =IF($B22="","",IF($G22<>"",VLOOKUP($G22,'base de données'!$C$8:$J$51,7,FALSE),"")) ->  | K22: =IF($B22="","",IF($G22<>"",VLOOKUP($G22,'base de données'!$C$8:$J$51,6,FALSE),"")) ->  | L22: =IF($B22="","",IF($G22<>"",VLOOKUP($G22,'base de données'!$C$8:$J$51,5,FALSE),"")) ->  | M22: =IF($B22="","",IF($G22<>"",VLOOKUP($G22,'base de données'!$C$8:$J$51,8,FALSE),"")) ->  | O22: Pas de Calais
J23: =IF($B23="","",IF($G23<>"",VLOOKUP($G23,'base de données'!$C$8:$J$51,7,FALSE),"")) ->  | K23: =IF($B23="","",IF($G23<>"",VLOOKUP($G23,'base de données'!$C$8:$J$51,6,FALSE),"")) ->  | L23: =IF($B23="","",IF($G23<>"",VLOOKUP($G23,'base de données'!$C$8:$J$51,5,FALSE),"")) ->  | M23: =IF($B23="","",IF($G23<>"",VLOOKUP($G23,'base de données'!$C$8:$J$51,8,FALSE),"")) ->  | O23: Pas de Calais
J24: =IF($B24="","",IF($G24<>"",VLOOKUP($G24,'base de données'!$C$8:$J$51,7,FALSE),"")) ->  | K24: =IF($B24="","",IF($G24<>"",VLOOKUP($G24,'base de données'!$C$8:$J$51,6,FALSE),"")) ->  | L24: =IF($B24="","",IF($G24<>"",VLOOKUP($G24,'base de données'!$C$8:$J$51,5,FALSE),"")) ->  | M24: =IF($B24="","",IF($G24<>"",VLOOKUP($G24,'base de données'!$C$8:$J$51,8,FALSE),"")) ->  | O24: Pas de Calais
J25: =IF($B25="","",IF($G25<>"",VLOOKUP($G25,'base de données'!$C$8:$J$51,7,FALSE),"")) ->  | K25: =IF($B25="","",IF($G25<>"",VLOOKUP($G25,'base de données'!$C$8:$J$51,6,FALSE),"")) ->  | L25: =IF($B25="","",IF($G25<>"",VLOOKUP($G25,'base de données'!$C$8:$J$51,5,FALSE),"")) ->  | M25: =IF($B25="","",IF($G25<>"",VLOOKUP($G25,'base de données'!$C$8:$J$51,8,FALSE),"")) ->  | O25: Pas de Calais
J26: =IF($B26="","",IF($G26<>"",VLOOKUP($G26,'base de données'!$C$8:$J$51,7,FALSE),"")) ->  | K26: =IF($B26="","",IF($G26<>"",VLOOKUP($G26,'base de données'!$C$8:$J$51,6,FALSE),"")) ->  | L26: =IF($B26="","",IF($G26<>"",VLOOKUP($G26,'base de données'!$C$8:$J$51,5,FALSE),"")) ->  | M26: =IF($B26="","",IF($G26<>"",VLOOKUP($G26,'base de données'!$C$8:$J$51,8,FALSE),"")) ->  | O26: Pas de Calais
J27: =IF($B27="","",IF($G27<>"",VLOOKUP($G27,'base de données'!$C$8:$J$51,7,FALSE),"")) ->  | K27: =IF($B27="","",IF($G27<>"",VLOOKUP($G27,'base de données'!$C$8:$J$51,6,FALSE),"")) ->  | L27: =IF($B27="","",IF($G27<>"",VLOOKUP($G27,'base de données'!$C$8:$J$51,5,FALSE),"")) ->  | M27: =IF($B27="","",IF($G27<>"",VLOOKUP($G27,'base de données'!$C$8:$J$51,8,FALSE),"")) ->  | O27: Pas de Calais
J28: =IF($B28="","",IF($G28<>"",VLOOKUP($G28,'base de données'!$C$8:$J$51,7,FALSE),"")) ->  | K28: =IF($B28="","",IF($G28<>"",VLOOKUP($G28,'base de données'!$C$8:$J$51,6,FALSE),"")) ->  | L28: =IF($B28="","",IF($G28<>"",VLOOKUP($G28,'base de données'!$C$8:$J$51,5,FALSE),"")) ->  | M28: =IF($B28="","",IF($G28<>"",VLOOKUP($G28,'base de données'!$C$8:$J$51,8,FALSE),"")) ->  | O28: Pas de Calais
J29: =IF($B29="","",IF($G29<>"",VLOOKUP($G29,'base de données'!$C$8:$J$51,7,FALSE),"")) ->  | K29: =IF($B29="","",IF($G29<>"",VLOOKUP($G29,'base de données'!$C$8:$J$51,6,FALSE),"")) ->  | L29: =IF($B29="","",IF($G29<>"",VLOOKUP($G29,'base de données'!$C$8:$J$51,5,FALSE),"")) ->  | M29: =IF($B29="","",IF($G29<>"",VLOOKUP($G29,'base de données'!$C$8:$J$51,8,FALSE),"")) ->  | O29: Pas de Calais
J30: =IF($B30="","",IF($G30<>"",VLOOKUP($G30,'base de données'!$C$8:$J$51,7,FALSE),"")) ->  | K30: =IF($B30="","",IF($G30<>"",VLOOKUP($G30,'base de données'!$C$8:$J$51,6,FALSE),"")) ->  | L30: =IF($B30="","",IF($G30<>"",VLOOKUP($G30,'base de données'!$C$8:$J$51,5,FALSE),"")) ->  | M30: =IF($B30="","",IF($G30<>"",VLOOKUP($G30,'base de données'!$C$8:$J$51,8,FALSE),"")) ->  | O30: Pas de Calais
J31: =IF($B31="","",IF($G31<>"",VLOOKUP($G31,'base de données'!$C$8:$J$51,7,FALSE),"")) ->  | K31: =IF($B31="","",IF($G31<>"",VLOOKUP($G31,'base de données'!$C$8:$J$51,6,FALSE),"")) ->  | L31: =IF($B31="","",IF($G31<>"",VLOOKUP($G31,'base de données'!$C$8:$J$51,5,FALSE),"")) ->  | M31: =IF($B31="","",IF($G31<>"",VLOOKUP($G31,'base de données'!$C$8:$J$51,8,FALSE),"")) ->  | O31: Pas de Calais
J32: =IF($B32="","",IF($G32<>"",VLOOKUP($G32,'base de données'!$C$8:$J$51,7,FALSE),"")) ->  | K32: =IF($B32="","",IF($G32<>"",VLOOKUP($G32,'base de données'!$C$8:$J$51,6,FALSE),"")) ->  | L32: =IF($B32="","",IF($G32<>"",VLOOKUP($G32,'base de données'!$C$8:$J$51,5,FALSE),"")) ->  | M32: =IF($B32="","",IF($G32<>"",VLOOKUP($G32,'base de données'!$C$8:$J$51,8,FALSE),"")) ->  | O32: Pas de Calais
J33: =IF($B33="","",IF($G33<>"",VLOOKUP($G33,'base de données'!$C$8:$J$51,7,FALSE),"")) ->  | K33: =IF($B33="","",IF($G33<>"",VLOOKUP($G33,'base de données'!$C$8:$J$51,6,FALSE),"")) ->  | L33: =IF($B33="","",IF($G33<>"",VLOOKUP($G33,'base de données'!$C$8:$J$51,5,FALSE),"")) ->  | M33: =IF($B33="","",IF($G33<>"",VLOOKUP($G33,'base de données'!$C$8:$J$51,8,FALSE),"")) ->  | O33: Pas de Calais
J34: =IF($B34="","",IF($G34<>"",VLOOKUP($G34,'base de données'!$C$8:$J$51,7,FALSE),"")) ->  | K34: =IF($B34="","",IF($G34<>"",VLOOKUP($G34,'base de données'!$C$8:$J$51,6,FALSE),"")) ->  | L34: =IF($B34="","",IF($G34<>"",VLOOKUP($G34,'base de données'!$C$8:$J$51,5,FALSE),"")) ->  | M34: =IF($B34="","",IF($G34<>"",VLOOKUP($G34,'base de données'!$C$8:$J$51,8,FALSE),"")) ->  | O34: Pas de Calais
J35: =IF($B35="","",IF($G35<>"",VLOOKUP($G35,'base de données'!$C$8:$J$51,7,FALSE),"")) ->  | K35: =IF($B35="","",IF($G35<>"",VLOOKUP($G35,'base de données'!$C$8:$J$51,6,FALSE),"")) ->  | L35: =IF($B35="","",IF($G35<>"",VLOOKUP($G35,'base de données'!$C$8:$J$51,5,FALSE),"")) ->  | M35: =IF($B35="","",IF($G35<>"",VLOOKUP($G35,'base de données'!$C$8:$J$51,8,FALSE),"")) ->  | O35: Pas de Calais
J36: =IF($B36="","",IF($G36<>"",VLOOKUP($G36,'base de données'!$C$8:$J$51,7,FALSE),"")) ->  | K36: =IF($B36="","",IF($G36<>"",VLOOKUP($G36,'base de données'!$C$8:$J$51,6,FALSE),"")) ->  | L36: =IF($B36="","",IF($G36<>"",VLOOKUP($G36,'base de données'!$C$8:$J$51,5,FALSE),"")) ->  | M36: =IF($B36="","",IF($G36<>"",VLOOKUP($G36,'base de données'!$C$8:$J$51,8,FALSE),"")) ->  | O36: Pas de Calais
J37: =IF($B37="","",IF($G37<>"",VLOOKUP($G37,'base de données'!$C$8:$J$51,7,FALSE),"")) ->  | K37: =IF($B37="","",IF($G37<>"",VLOOKUP($G37,'base de données'!$C$8:$J$51,6,FALSE),"")) ->  | L37: =IF($B37="","",IF($G37<>"",VLOOKUP($G37,'base de données'!$C$8:$J$51,5,FALSE),"")) ->  | M37: =IF($B37="","",IF($G37<>"",VLOOKUP($G37,'base de données'!$C$8:$J$51,8,FALSE),"")) ->  | O37: Pas de Calais
J38: =IF($B38="","",IF($G38<>"",VLOOKUP($G38,'base de données'!$C$8:$J$51,7,FALSE),"")) ->  | K38: =IF($B38="","",IF($G38<>"",VLOOKUP($G38,'base de données'!$C$8:$J$51,6,FALSE),"")) ->  | L38: =IF($B38="","",IF($G38<>"",VLOOKUP($G38,'base de données'!$C$8:$J$51,5,FALSE),"")) ->  | M38: =IF($B38="","",IF($G38<>"",VLOOKUP($G38,'base de données'!$C$8:$J$51,8,FALSE),"")) ->  | O38: Pas de Calais
J39: =IF($B39="","",IF($G39<>"",VLOOKUP($G39,'base de données'!$C$8:$J$51,7,FALSE),"")) ->  | K39: =IF($B39="","",IF($G39<>"",VLOOKUP($G39,'base de données'!$C$8:$J$51,6,FALSE),"")) ->  | L39: =IF($B39="","",IF($G39<>"",VLOOKUP($G39,'base de données'!$C$8:$J$51,5,FALSE),"")) ->  | M39: =IF($B39="","",IF($G39<>"",VLOOKUP($G39,'base de données'!$C$8:$J$51,8,FALSE),"")) ->  | O39: Pas de Calais
J40: =IF($B40="","",IF($G40<>"",VLOOKUP($G40,'base de données'!$C$8:$J$51,7,FALSE),"")) ->  | K40: =IF($B40="","",IF($G40<>"",VLOOKUP($G40,'base de données'!$C$8:$J$51,6,FALSE),"")) ->  | L40: =IF($B40="","",IF($G40<>"",VLOOKUP($G40,'base de données'!$C$8:$J$51,5,FALSE),"")) ->  | M40: =IF($B40="","",IF($G40<>"",VLOOKUP($G40,'base de données'!$C$8:$J$51,8,FALSE),"")) ->  | O40: Pas de Calais
J41: =IF($B41="","",IF($G41<>"",VLOOKUP($G41,'base de données'!$C$8:$J$51,7,FALSE),"")) ->  | K41: =IF($B41="","",IF($G41<>"",VLOOKUP($G41,'base de données'!$C$8:$J$51,6,FALSE),"")) ->  | L41: =IF($B41="","",IF($G41<>"",VLOOKUP($G41,'base de données'!$C$8:$J$51,5,FALSE),"")) ->  | M41: =IF($B41="","",IF($G41<>"",VLOOKUP($G41,'base de données'!$C$8:$J$51,8,FALSE),"")) ->  | O41: Pas de Calais
J42: =IF($B42="","",IF($G42<>"",VLOOKUP($G42,'base de données'!$C$8:$J$51,7,FALSE),"")) ->  | K42: =IF($B42="","",IF($G42<>"",VLOOKUP($G42,'base de données'!$C$8:$J$51,6,FALSE),"")) ->  | L42: =IF($B42="","",IF($G42<>"",VLOOKUP($G42,'base de données'!$C$8:$J$51,5,FALSE),"")) ->  | M42: =IF($B42="","",IF($G42<>"",VLOOKUP($G42,'base de données'!$C$8:$J$51,8,FALSE),"")) ->  | O42: Pas de Calais
J43: =IF($B43="","",IF($G43<>"",VLOOKUP($G43,'base de données'!$C$8:$J$51,7,FALSE),"")) ->  | K43: =IF($B43="","",IF($G43<>"",VLOOKUP($G43,'base de données'!$C$8:$J$51,6,FALSE),"")) ->  | L43: =IF($B43="","",IF($G43<>"",VLOOKUP($G43,'base de données'!$C$8:$J$51,5,FALSE),"")) ->  | M43: =IF($B43="","",IF($G43<>"",VLOOKUP($G43,'base de données'!$C$8:$J$51,8,FALSE),"")) ->  | O43: Pas de Calais
J44: =IF($B44="","",IF($G44<>"",VLOOKUP($G44,'base de données'!$C$8:$J$51,7,FALSE),"")) ->  | K44: =IF($B44="","",IF($G44<>"",VLOOKUP($G44,'base de données'!$C$8:$J$51,6,FALSE),"")) ->  | L44: =IF($B44="","",IF($G44<>"",VLOOKUP($G44,'base de données'!$C$8:$J$51,5,FALSE),"")) ->  | M44: =IF($B44="","",IF($G44<>"",VLOOKUP($G44,'base de données'!$C$8:$J$51,8,FALSE),"")) ->  | O44: Pas de Calais
J45: =IF($B45="","",IF($G45<>"",VLOOKUP($G45,'base de données'!$C$8:$J$51,7,FALSE),"")) ->  | K45: =IF($B45="","",IF($G45<>"",VLOOKUP($G45,'base de données'!$C$8:$J$51,6,FALSE),"")) ->  | L45: =IF($B45="","",IF($G45<>"",VLOOKUP($G45,'base de données'!$C$8:$J$51,5,FALSE),"")) ->  | M45: =IF($B45="","",IF($G45<>"",VLOOKUP($G45,'base de données'!$C$8:$J$51,8,FALSE),"")) ->  | O45: Pas de Calais
J46: =IF($B46="","",IF($G46<>"",VLOOKUP($G46,'base de données'!$C$8:$J$51,7,FALSE),"")) ->  | K46: =IF($B46="","",IF($G46<>"",VLOOKUP($G46,'base de données'!$C$8:$J$51,6,FALSE),"")) ->  | L46: =IF($B46="","",IF($G46<>"",VLOOKUP($G46,'base de données'!$C$8:$J$51,5,FALSE),"")) ->  | M46: =IF($B46="","",IF($G46<>"",VLOOKUP($G46,'base de données'!$C$8:$J$51,8,FALSE),"")) ->  | O46: Pas de Calais
J47: =IF($B47="","",IF($G47<>"",VLOOKUP($G47,'base de données'!$C$8:$J$51,7,FALSE),"")) ->  | K47: =IF($B47="","",IF($G47<>"",VLOOKUP($G47,'base de données'!$C$8:$J$51,6,FALSE),"")) ->  | L47: =IF($B47="","",IF($G47<>"",VLOOKUP($G47,'base de données'!$C$8:$J$51,5,FALSE),"")) ->  | M47: =IF($B47="","",IF($G47<>"",VLOOKUP($G47,'base de données'!$C$8:$J$51,8,FALSE),"")) ->  | O47: Pas de Calais
J48: =IF($B48="","",IF($G48<>"",VLOOKUP($G48,'base de données'!$C$8:$J$51,7,FALSE),"")) ->  | K48: =IF($B48="","",IF($G48<>"",VLOOKUP($G48,'base de données'!$C$8:$J$51,6,FALSE),"")) ->  | L48: =IF($B48="","",IF($G48<>"",VLOOKUP($G48,'base de données'!$C$8:$J$51,5,FALSE),"")) ->  | M48: =IF($B48="","",IF($G48<>"",VLOOKUP($G48,'base de données'!$C$8:$J$51,8,FALSE),"")) ->  | O48: Pas de Calais
J49: =IF($B49="","",IF($G49<>"",VLOOKUP($G49,'base de données'!$C$8:$J$51,7,FALSE),"")) ->  | K49: =IF($B49="","",IF($G49<>"",VLOOKUP($G49,'base de données'!$C$8:$J$51,6,FALSE),"")) ->  | L49: =IF($B49="","",IF($G49<>"",VLOOKUP($G49,'base de données'!$C$8:$J$51,5,FALSE),"")) ->  | M49: =IF($B49="","",IF($G49<>"",VLOOKUP($G49,'base de données'!$C$8:$J$51,8,FALSE),"")) ->  | O49: Pas de Calais
J50: =IF($B50="","",IF($G50<>"",VLOOKUP($G50,'base de données'!$C$8:$J$51,7,FALSE),"")) ->  | K50: =IF($B50="","",IF($G50<>"",VLOOKUP($G50,'base de données'!$C$8:$J$51,6,FALSE),"")) ->  | L50: =IF($B50="","",IF($G50<>"",VLOOKUP($G50,'base de données'!$C$8:$J$51,5,FALSE),"")) ->  | M50: =IF($B50="","",IF($G50<>"",VLOOKUP($G50,'base de données'!$C$8:$J$51,8,FALSE),"")) ->  | O50: Pas de Calais
J51: =IF($B51="","",IF($G51<>"",VLOOKUP($G51,'base de données'!$C$8:$J$51,7,FALSE),"")) ->  | K51: =IF($B51="","",IF($G51<>"",VLOOKUP($G51,'base de données'!$C$8:$J$51,6,FALSE),"")) ->  | L51: =IF($B51="","",IF($G51<>"",VLOOKUP($G51,'base de données'!$C$8:$J$51,5,FALSE),"")) ->  | M51: =IF($B51="","",IF($G51<>"",VLOOKUP($G51,'base de données'!$C$8:$J$51,8,FALSE),"")) ->  | O51: Pas de Calais
J52: =IF($B52="","",IF($G52<>"",VLOOKUP($G52,'base de données'!$C$8:$J$51,7,FALSE),"")) ->  | K52: =IF($B52="","",IF($G52<>"",VLOOKUP($G52,'base de données'!$C$8:$J$51,6,FALSE),"")) ->  | L52: =IF($B52="","",IF($G52<>"",VLOOKUP($G52,'base de données'!$C$8:$J$51,5,FALSE),"")) ->  | M52: =IF($B52="","",IF($G52<>"",VLOOKUP($G52,'base de données'!$C$8:$J$51,8,FALSE),"")) ->  | O52: Pas de Calais
J53: =IF($B53="","",IF($G53<>"",VLOOKUP($G53,'base de données'!$C$8:$J$51,7,FALSE),"")) ->  | K53: =IF($B53="","",IF($G53<>"",VLOOKUP($G53,'base de données'!$C$8:$J$51,6,FALSE),"")) ->  | L53: =IF($B53="","",IF($G53<>"",VLOOKUP($G53,'base de données'!$C$8:$J$51,5,FALSE),"")) ->  | M53: =IF($B53="","",IF($G53<>"",VLOOKUP($G53,'base de données'!$C$8:$J$51,8,FALSE),"")) ->  | O53: Pas de Calais
J54: =IF($B54="","",IF($G54<>"",VLOOKUP($G54,'base de données'!$C$8:$J$51,7,FALSE),"")) ->  | K54: =IF($B54="","",IF($G54<>"",VLOOKUP($G54,'base de données'!$C$8:$J$51,6,FALSE),"")) ->  | L54: =IF($B54="","",IF($G54<>"",VLOOKUP($G54,'base de données'!$C$8:$J$51,5,FALSE),"")) ->  | M54: =IF($B54="","",IF($G54<>"",VLOOKUP($G54,'base de données'!$C$8:$J$51,8,FALSE),"")) ->  | O54: Pas de Calais
J55: =IF($B55="","",IF($G55<>"",VLOOKUP($G55,'base de données'!$C$8:$J$51,7,FALSE),"")) ->  | K55: =IF($B55="","",IF($G55<>"",VLOOKUP($G55,'base de données'!$C$8:$J$51,6,FALSE),"")) ->  | L55: =IF($B55="","",IF($G55<>"",VLOOKUP($G55,'base de données'!$C$8:$J$51,5,FALSE),"")) ->  | M55: =IF($B55="","",IF($G55<>"",VLOOKUP($G55,'base de données'!$C$8:$J$51,8,FALSE),"")) ->  | O55: Pas de Calais
G56: =D56 & " " &E56 ->  | J56: =IF($B56="","",IF($G56<>"",VLOOKUP($G56,'base de données'!$C$8:$J$51,7,FALSE),"")) ->  | K56: =IF($B56="","",IF($G56<>"",VLOOKUP($G56,'base de données'!$C$8:$J$51,6,FALSE),"")) ->  | L56: =IF($B56="","",IF($G56<>"",VLOOKUP($G56,'base de données'!$C$8:$J$51,5,FALSE),"")) ->  | M56: =IF($B56="","",IF($G56<>"",VLOOKUP($G56,'base de données'!$C$8:$J$51,8,FALSE),"")) ->  | O56: Pas de Calais
J57: =IF($B57="","",IF($G57<>"",VLOOKUP($G57,'base de données'!$C$8:$J$51,7,FALSE),"")) ->  | K57: =IF($B57="","",IF($G57<>"",VLOOKUP($G57,'base de données'!$C$8:$J$51,6,FALSE),"")) ->  | L57: =IF($B57="","",IF($G57<>"",VLOOKUP($G57,'base de données'!$C$8:$J$51,5,FALSE),"")) ->  | M57: =IF($B57="","",IF($G57<>"",VLOOKUP($G57,'base de données'!$C$8:$J$51,8,FALSE),"")) ->  | O57: Pas de Calais
J58: =IF($B58="","",IF($G58<>"",VLOOKUP($G58,'base de données'!$C$8:$J$51,7,FALSE),"")) ->  | K58: =IF($B58="","",IF($G58<>"",VLOOKUP($G58,'base de données'!$C$8:$J$51,6,FALSE),"")) ->  | L58: =IF($B58="","",IF($G58<>"",VLOOKUP($G58,'base de données'!$C$8:$J$51,5,FALSE),"")) ->  | M58: =IF($B58="","",IF($G58<>"",VLOOKUP($G58,'base de données'!$C$8:$J$51,8,FALSE),"")) ->  | O58: Pas de Calais
J59: =IF($B59="","",IF($G59<>"",VLOOKUP($G59,'base de données'!$C$8:$J$51,7,FALSE),"")) ->  | K59: =IF($B59="","",IF($G59<>"",VLOOKUP($G59,'base de données'!$C$8:$J$51,6,FALSE),"")) ->  | L59: =IF($B59="","",IF($G59<>"",VLOOKUP($G59,'base de données'!$C$8:$J$51,5,FALSE),"")) ->  | M59: =IF($B59="","",IF($G59<>"",VLOOKUP($G59,'base de données'!$C$8:$J$51,8,FALSE),"")) ->  | O59: Pas de Calais
J60: =IF($B60="","",IF($G60<>"",VLOOKUP($G60,'base de données'!$C$8:$J$51,7,FALSE),"")) ->  | K60: =IF($B60="","",IF($G60<>"",VLOOKUP($G60,'base de données'!$C$8:$J$51,6,FALSE),"")) ->  | L60: =IF($B60="","",IF($G60<>"",VLOOKUP($G60,'base de données'!$C$8:$J$51,5,FALSE),"")) ->  | M60: =IF($B60="","",IF($G60<>"",VLOOKUP($G60,'base de données'!$C$8:$J$51,8,FALSE),"")) ->  | O60: Pas de Calais
J61: =IF($B61="","",IF($G61<>"",VLOOKUP($G61,'base de données'!$C$8:$J$51,7,FALSE),"")) ->  | K61: =IF($B61="","",IF($G61<>"",VLOOKUP($G61,'base de données'!$C$8:$J$51,6,FALSE),"")) ->  | L61: =IF($B61="","",IF($G61<>"",VLOOKUP($G61,'base de données'!$C$8:$J$51,5,FALSE),"")) ->  | M61: =IF($B61="","",IF($G61<>"",VLOOKUP($G61,'base de données'!$C$8:$J$51,8,FALSE),"")) ->  | O61: Pas de Calais
J62: =IF($B62="","",IF($G62<>"",VLOOKUP($G62,'base de données'!$C$8:$J$51,7,FALSE),"")) ->  | K62: =IF($B62="","",IF($G62<>"",VLOOKUP($G62,'base de données'!$C$8:$J$51,6,FALSE),"")) ->  | L62: =IF($B62="","",IF($G62<>"",VLOOKUP($G62,'base de données'!$C$8:$J$51,5,FALSE),"")) ->  | M62: =IF($B62="","",IF($G62<>"",VLOOKUP($G62,'base de données'!$C$8:$J$51,8,FALSE),"")) ->  | O62: Pas de Calais
